﻿Department Family,Entity,Date,Expense Type,Expense Area,Supplier,Transaction Number,Amount,Item Description
BEIS,UKRI - AHRC,01/07/2021,Unspecified,SMT,University of St Andrews,98990274,134569.60,Secondments
BEIS,UKRI - AHRC,01/07/2021,Unspecified,SMT,University of St Andrews,98990275,-135891.42,Secondments
BEIS,UKRI - AHRC,01/07/2021,Unspecified,SMT,University of St Andrews,98996026,57672.68,Secondments
BEIS,UKRI - AHRC,06/07/2021,Non-staff travel and subsistance,SMT,Unspecified,98998847,22.99,Non-staff travel and subsistance
BEIS,UKRI - AHRC,08/07/2021,Consultancy Services,Infrastruture Roadmap,Preservation Matters Ltd,98998303,3500.00,Consultancy Services
BEIS,UKRI - AHRC,09/07/2021,Unspecified,Infrastruture Roadmap,Human Economics Ltd,99002102,6600.00,Legal & Professional Services
BEIS,UKRI - AHRC,12/07/2021,Financial Services,Corporate Services,CCI Credit Management Ltd,99003501,1.32,Financial Services
BEIS,UKRI - AHRC,13/07/2021,T&S UK - Mileage,International,Unspecified,99004857,64.80,T&S UK - Mileage
BEIS,UKRI - AHRC,13/07/2021,T&S UK - Other Charges,International Partnership and Engagement,Unspecified,99004858,8.07,T&S UK - Other Charges
BEIS,UKRI - AHRC,14/07/2021,Unspecified,Balance Sheet,HM Revenue & Customs,99000111,64041.54,NI Payable Salaries
BEIS,UKRI - AHRC,14/07/2021,Unspecified,Balance Sheet,HM Revenue & Customs,99000112,47501.71,PAYE Payable Salaries
BEIS,UKRI - AHRC,14/07/2021,Unspecified,Balance Sheet,HM Revenue & Customs,99000113,5193.00,Student Loans
BEIS,UKRI - AHRC,14/07/2021,Unspecified,Corporate Services,HM Revenue & Customs,99000114,1676.00,Apprenticeship Levy
BEIS,UKRI - AHRC,14/07/2021,Staff Training,Skills Strategy,KNOWLEDGE TRAIN LTD,99000536,958.80,Staff Training
BEIS,UKRI - AHRC,14/07/2021,Fees (Including College Members),New Programme Development,Unspecified,99004249,170.00,Fees (Including College Members)
BEIS,UKRI - AHRC,14/07/2021,Fees (Including College Members),New Programme Development,Unspecified,99004250,170.00,Fees (Including College Members)
BEIS,UKRI - AHRC,14/07/2021,Fees (Including College Members),New Programme Development,Unspecified,99004251,170.00,Fees (Including College Members)
BEIS,UKRI - AHRC,14/07/2021,Fees (Including College Members),New Programme Development,Unspecified,99004252,170.00,Fees (Including College Members)
BEIS,UKRI - AHRC,14/07/2021,T&S UK - Accommodation,AHRC - Creative Industries,Corporate Travel Management (North) Ltd,99004373,0.80,T&S UK - Accommodation
BEIS,UKRI - AHRC,14/07/2021,T&S UK - Accommodation,AHRC - Creative Industries,Corporate Travel Management (North) Ltd,99004373,0.80,T&S UK - Accommodation
BEIS,UKRI - AHRC,14/07/2021,T&S UK - Accommodation,AHRC - Creative Industries,Corporate Travel Management (North) Ltd,99004373,47.99,T&S UK - Accommodation
BEIS,UKRI - AHRC,14/07/2021,T&S UK - Accommodation,AHRC - Creative Industries,Corporate Travel Management (North) Ltd,99004373,0.80,T&S UK - Accommodation
BEIS,UKRI - AHRC,14/07/2021,T&S UK - Accommodation,AHRC - Creative Industries,Corporate Travel Management (North) Ltd,99004373,47.99,T&S UK - Accommodation
BEIS,UKRI - AHRC,14/07/2021,T&S UK - Accommodation,AHRC - Creative Industries,Corporate Travel Management (North) Ltd,99004373,2.00,T&S UK - Accommodation
BEIS,UKRI - AHRC,14/07/2021,T&S UK - Accommodation,AHRC - Creative Industries,Corporate Travel Management (North) Ltd,99004373,50.49,T&S UK - Accommodation
BEIS,UKRI - AHRC,14/07/2021,T&S UK - Accommodation,AHRC - Creative Industries,Corporate Travel Management (North) Ltd,99004373,0.88,T&S UK - Accommodation
BEIS,UKRI - AHRC,14/07/2021,T&S UK - Public Transport,"History, Heritage, Languages and Literature",Corporate Travel Management (North) Ltd,99004373,-104.30,T&S UK - Public Transport
BEIS,UKRI - AHRC,14/07/2021,T&S UK - Public Transport,Infrastruture Roadmap,Corporate Travel Management (North) Ltd,99004373,0.25,T&S UK - Public Transport
BEIS,UKRI - AHRC,14/07/2021,T&S UK - Public Transport,Infrastruture Roadmap,Corporate Travel Management (North) Ltd,99004373,151.60,T&S UK - Public Transport
BEIS,UKRI - AHRC,14/07/2021,T&S UK - Public Transport,International,Corporate Travel Management (North) Ltd,99004373,0.25,T&S UK - Public Transport
BEIS,UKRI - AHRC,14/07/2021,T&S UK - Public Transport,International,Corporate Travel Management (North) Ltd,99004373,12.60,T&S UK - Public Transport
BEIS,UKRI - AHRC,14/07/2021,T&S UK - Public Transport,New Programme Development,Corporate Travel Management (North) Ltd,99004373,-157.70,T&S UK - Public Transport
BEIS,UKRI - AHRC,14/07/2021,T&S UK - Public Transport,SMT,Corporate Travel Management (North) Ltd,99004373,0.25,T&S UK - Public Transport
BEIS,UKRI - AHRC,14/07/2021,T&S UK - Public Transport,SMT,Corporate Travel Management (North) Ltd,99004373,52.10,T&S UK - Public Transport
BEIS,UKRI - AHRC,15/07/2021,Voluntary Deductions,Balance Sheet,Swindon Office Sports and Social Club,99000115,28.00,Voluntary Deductions
BEIS,UKRI - AHRC,15/07/2021,Union Deductions,Balance Sheet,PCS Union,99000116,68.77,Union Deductions
BEIS,UKRI - AHRC,15/07/2021,Unspecified,Balance Sheet,Unspecified,99000117,10242.04,Ees Pension Deductions - JSS
BEIS,UKRI - AHRC,15/07/2021,Unspecified,Balance Sheet,Unspecified,99000118,44361.56,Ers Pension Deductions - JSS
BEIS,UKRI - AHRC,15/07/2021,Unspecified,Balance Sheet,Scottish Widows,99000119,384.68,Partnership Pension Deductions
BEIS,UKRI - AHRC,15/07/2021,Unspecified,Balance Sheet,Cabinet Office RM Shared Services,99000120,13.35,Ers Pension Deductions - JSS
BEIS,UKRI - AHRC,15/07/2021,Unspecified,Balance Sheet,Cabinet Office RM Shared Services,99000121,9009.23,Ees Pension Deductions - MyCSP
BEIS,UKRI - AHRC,15/07/2021,Unspecified,Balance Sheet,Cabinet Office RM Shared Services,99000122,38090.96,Ers Pension Deductions - MyCSP
BEIS,UKRI - AHRC,15/07/2021,Unspecified,Balance Sheet,Unspecified,99000123,173.51,Ees Pension Deductions - MRC
BEIS,UKRI - AHRC,15/07/2021,Unspecified,Balance Sheet,Unspecified,99000124,427.09,Ers Pension Deductions - MRC
BEIS,UKRI - AHRC,15/07/2021,Nursery Deductions,Balance Sheet,UKRI - Engineering & Physical Sciences Research Council,99000125,891.00,Nursery Deductions
BEIS,UKRI - AHRC,15/07/2021,Non-staff travel and subsistance,Board and Committee,Unspecified,99004437,1448.39,Non-staff travel and subsistance
BEIS,UKRI - AHRC,15/07/2021,Fees (Including College Members),New Programme Development,Unspecified,99004438,170.00,Fees (Including College Members)
BEIS,UKRI - AHRC,15/07/2021,T&S UK - Other Charges,Strategy and Evidence,Unspecified,99005751,61.08,T&S UK - Other Charges
BEIS,UKRI - AHRC,16/07/2021,Training Awards - Postgraduates,Collabrative Doctoral Grants - Block Payment,University of York,99000552,5435.50,Training Awards - Postgraduates
BEIS,UKRI - AHRC,16/07/2021,Training Awards - Postgraduates,Collabrative Doctoral Grants - Block Payment,Cardiff University,99000553,5185.50,Training Awards - Postgraduates
BEIS,UKRI - AHRC,16/07/2021,Training Awards - Postgraduates,Collabrative Doctoral Grants - Block Payment,University of Sheffield,99000554,5435.50,Training Awards - Postgraduates
BEIS,UKRI - AHRC,16/07/2021,Training Awards - Postgraduates,Collabrative Doctoral Grants - Block Payment,Heriot Watt University,99000555,5185.50,Training Awards - Postgraduates
BEIS,UKRI - AHRC,16/07/2021,Training Awards - Postgraduates,Collabrative Doctoral Grants - Block Payment,University of Stirling,99000556,5185.50,Training Awards - Postgraduates
BEIS,UKRI - AHRC,16/07/2021,Training Awards - Postgraduates,Collabrative Doctoral Grants - Block Payment,University of Durham,99000557,5435.50,Training Awards - Postgraduates
BEIS,UKRI - AHRC,16/07/2021,Training Awards - Postgraduates,Collabrative Doctoral Grants - Block Payment,University of East Anglia,99000558,5185.50,Training Awards - Postgraduates
BEIS,UKRI - AHRC,16/07/2021,Training Awards - Postgraduates,Collabrative Doctoral Grants - Block Payment,University of East Anglia,99000559,5435.50,Training Awards - Postgraduates
BEIS,UKRI - AHRC,16/07/2021,Training Awards - Postgraduates,Collabrative Doctoral Grants - Block Payment,University of Reading,99000560,5185.50,Training Awards - Postgraduates
BEIS,UKRI - AHRC,16/07/2021,Training Awards - Postgraduates,Collabrative Doctoral Grants - Block Payment,University of Bristol GRANT,99000561,5435.50,Training Awards - Postgraduates
BEIS,UKRI - AHRC,16/07/2021,Training Awards - Postgraduates,Collabrative Doctoral Grants - Block Payment,Birkbeck College,99000562,5685.50,Training Awards - Postgraduates
BEIS,UKRI - AHRC,16/07/2021,Training Awards - Postgraduates,Collabrative Doctoral Grants - Block Payment,University of Lincoln,99000563,5435.50,Training Awards - Postgraduates
BEIS,UKRI - AHRC,16/07/2021,Training Awards - Postgraduates,Collabrative Doctoral Grants - Block Payment,"Royal Holloway, University of London",99000564,5685.50,Training Awards - Postgraduates
BEIS,UKRI - AHRC,16/07/2021,Training Awards - Postgraduates,Collabrative Doctoral Grants - Block Payment,University of Cambridge,99000565,5435.50,Training Awards - Postgraduates
BEIS,UKRI - AHRC,16/07/2021,Training Awards - Postgraduates,Collabrative Doctoral Grants - Block Payment,University of Sheffield,99000566,5185.50,Training Awards - Postgraduates
BEIS,UKRI - AHRC,16/07/2021,Training Awards - Postgraduates,Collabrative Doctoral Grants - Block Payment,University of Cambridge,99000567,5435.50,Training Awards - Postgraduates
BEIS,UKRI - AHRC,16/07/2021,Training Awards - Postgraduates,Collabrative Doctoral Grants - Block Payment,Queen Mary University of London,99000568,5685.50,Training Awards - Postgraduates
BEIS,UKRI - AHRC,16/07/2021,Training Awards - Postgraduates,Collabrative Doctoral Grants - Block Payment,Birkbeck College,99000569,5685.50,Training Awards - Postgraduates
BEIS,UKRI - AHRC,16/07/2021,Training Awards - Postgraduates,Collabrative Doctoral Grants - Block Payment,University of Reading,99000570,5435.50,Training Awards - Postgraduates
BEIS,UKRI - AHRC,16/07/2021,Training Awards - Postgraduates,Collabrative Doctoral Grants - Block Payment,Birkbeck College,99000571,5685.50,Training Awards - Postgraduates
BEIS,UKRI - AHRC,16/07/2021,Training Awards - Postgraduates,Collabrative Doctoral Grants - Block Payment,University of Bath,99000572,5185.50,Training Awards - Postgraduates
BEIS,UKRI - AHRC,16/07/2021,Training Awards - Postgraduates,Collabrative Doctoral Grants - Block Payment,Queen Mary University of London,99000573,5685.50,Training Awards - Postgraduates
BEIS,UKRI - AHRC,16/07/2021,Training Awards - Postgraduates,Collabrative Doctoral Grants - Block Payment,University of Durham,99000574,5435.50,Training Awards - Postgraduates
BEIS,UKRI - AHRC,16/07/2021,Training Awards - Postgraduates,Collabrative Doctoral Grants - Block Payment,Manchester Metropolitan University,99000575,5185.50,Training Awards - Postgraduates
BEIS,UKRI - AHRC,16/07/2021,Training Awards - Postgraduates,Collabrative Doctoral Grants - Block Payment,Birkbeck College,99000576,5685.50,Training Awards - Postgraduates
BEIS,UKRI - AHRC,16/07/2021,Training Awards - Postgraduates,Collabrative Doctoral Grants - Block Payment,Birkbeck College,99000577,5685.50,Training Awards - Postgraduates
BEIS,UKRI - AHRC,16/07/2021,Training Awards - Postgraduates,Collabrative Doctoral Grants - Block Payment,University of London,99000578,5685.50,Training Awards - Postgraduates
BEIS,UKRI - AHRC,16/07/2021,Training Awards - Postgraduates,Collabrative Doctoral Grants - Block Payment,University of London,99000579,5685.50,Training Awards - Postgraduates
BEIS,UKRI - AHRC,16/07/2021,Training Awards - Postgraduates,Collabrative Doctoral Grants - Block Payment,University of Portsmouth,99000580,5435.50,Training Awards - Postgraduates
BEIS,UKRI - AHRC,16/07/2021,Training Awards - Postgraduates,Collabrative Doctoral Grants - Block Payment,Northumbria University,99000581,5185.50,Training Awards - Postgraduates
BEIS,UKRI - AHRC,16/07/2021,Training Awards - Postgraduates,Collabrative Doctoral Grants - Block Payment,University of Winchester,99000582,5531.00,Training Awards - Postgraduates
BEIS,UKRI - AHRC,16/07/2021,Training Awards - Postgraduates,Collabrative Doctoral Grants - Block Payment,Birkbeck College,99000583,5685.50,Training Awards - Postgraduates
BEIS,UKRI - AHRC,16/07/2021,Training Awards - Postgraduates,Collabrative Doctoral Grants - Block Payment,Cardiff University,99000584,5435.50,Training Awards - Postgraduates
BEIS,UKRI - AHRC,16/07/2021,Training Awards - Postgraduates,Collabrative Doctoral Grants - Block Payment,Manchester Metropolitan University,99000585,5435.50,Training Awards - Postgraduates
BEIS,UKRI - AHRC,16/07/2021,Training Awards - Postgraduates,Collabrative Doctoral Grants - Block Payment,University of Reading,99000586,5435.50,Training Awards - Postgraduates
BEIS,UKRI - AHRC,16/07/2021,Training Awards - Postgraduates,International Placement Scheme,University of Cambridge,99000587,6070.00,Training Awards - Postgraduates
BEIS,UKRI - AHRC,16/07/2021,Training Awards - Postgraduates,International Placement Scheme,University of Cambridge,99000588,3870.00,Training Awards - Postgraduates
BEIS,UKRI - AHRC,16/07/2021,Training Awards - Postgraduates,International Placement Scheme,University of Cambridge,99000589,5370.00,Training Awards - Postgraduates
BEIS,UKRI - AHRC,16/07/2021,Training Awards - Postgraduates,International Placement Scheme,University of Cambridge,99000590,5370.00,Training Awards - Postgraduates
BEIS,UKRI - AHRC,16/07/2021,Training Awards - Postgraduates,Collabrative Doctoral Grants - Block Payment,London School of Economics and Political Science,99000591,5685.50,Training Awards - Postgraduates
BEIS,UKRI - AHRC,16/07/2021,Training Awards - Postgraduates,Collabrative Doctoral Grants - Block Payment,University of Exeter,99000592,10035.12,Training Awards - Postgraduates
BEIS,UKRI - AHRC,16/07/2021,Training Awards - Postgraduates,Collabrative Doctoral Grants - Block Payment,University of Warwick,99000593,5185.50,Training Awards - Postgraduates
BEIS,UKRI - AHRC,16/07/2021,Training Awards - Postgraduates,Collabrative Doctoral Grants - Block Payment,Canterbury Christ Church University GRANT,99000594,5435.50,Training Awards - Postgraduates
BEIS,UKRI - AHRC,16/07/2021,Training Awards - Postgraduates,Collabrative Doctoral Grants - Block Payment,University College London,99000595,5685.50,Training Awards - Postgraduates
BEIS,UKRI - AHRC,16/07/2021,Training Awards - Postgraduates,Collabrative Doctoral Grants - Block Payment,University of Bristol GRANT,99000596,5185.50,Training Awards - Postgraduates
BEIS,UKRI - AHRC,16/07/2021,Training Awards - Postgraduates,Collabrative Doctoral Grants - Block Payment,University of Glasgow,99000597,5185.50,Training Awards - Postgraduates
BEIS,UKRI - AHRC,16/07/2021,Training Awards - Postgraduates,Collabrative Doctoral Grants - Block Payment,University of York,99000598,5435.50,Training Awards - Postgraduates
BEIS,UKRI - AHRC,16/07/2021,Training Awards - Postgraduates,Collabrative Doctoral Grants - Block Payment,University of Exeter,99000599,5435.50,Training Awards - Postgraduates
BEIS,UKRI - AHRC,16/07/2021,Training Awards - Postgraduates,Collabrative Doctoral Grants - Block Payment,University of Edinburgh,99000600,5185.50,Training Awards - Postgraduates
BEIS,UKRI - AHRC,16/07/2021,Training Awards - Postgraduates,Collabrative Doctoral Grants - Block Payment,University of Glasgow,99000601,5185.50,Training Awards - Postgraduates
BEIS,UKRI - AHRC,16/07/2021,Training Awards - Postgraduates,Collabrative Doctoral Grants - Block Payment,University of Edinburgh,99000602,5185.50,Training Awards - Postgraduates
BEIS,UKRI - AHRC,16/07/2021,Training Awards - Postgraduates,International Placement Scheme,University of Cambridge,99000603,6070.00,Training Awards - Postgraduates
BEIS,UKRI - AHRC,16/07/2021,Training Awards - Postgraduates,International Placement Scheme,University of Hull,99000604,5370.00,Training Awards - Postgraduates
BEIS,UKRI - AHRC,16/07/2021,Training Awards - Postgraduates,Collabrative Doctoral Grants - Block Payment,"Royal Holloway, University of London",99000605,5685.50,Training Awards - Postgraduates
BEIS,UKRI - AHRC,16/07/2021,Training Awards - Postgraduates,International Placement Scheme,Cardiff University,99000606,5370.00,Training Awards - Postgraduates
BEIS,UKRI - AHRC,16/07/2021,Training Awards - Postgraduates,Collabrative Doctoral Grants - Block Payment,University of Brighton,99000607,5101.75,Training Awards - Postgraduates
BEIS,UKRI - AHRC,16/07/2021,Training Awards - Postgraduates,Collabrative Doctoral Grants - Block Payment,Cardiff University,99000608,4487.55,Training Awards - Postgraduates
BEIS,UKRI - AHRC,16/07/2021,Training Awards - Postgraduates,Collabrative Doctoral Grants - Block Payment,University College London,99000609,5601.75,Training Awards - Postgraduates
BEIS,UKRI - AHRC,16/07/2021,Training Awards - Postgraduates,Collabrative Doctoral Grants - Block Payment,University of Leicester,99000610,5101.75,Training Awards - Postgraduates
BEIS,UKRI - AHRC,16/07/2021,Training Awards - Postgraduates,Collabrative Doctoral Grants - Block Payment,Birkbeck College,99000611,5601.75,Training Awards - Postgraduates
BEIS,UKRI - AHRC,16/07/2021,Training Awards - Postgraduates,Collabrative Doctoral Grants - Block Payment,University of Hertfordshire,99000612,4487.55,Training Awards - Postgraduates
BEIS,UKRI - AHRC,16/07/2021,Training Awards - Postgraduates,Collabrative Doctoral Grants - Block Payment,Goldsmiths College University of London,99000613,5601.75,Training Awards - Postgraduates
BEIS,UKRI - AHRC,16/07/2021,Training Awards - Postgraduates,Collabrative Doctoral Grants - Block Payment,University of Brighton,99000614,5101.75,Training Awards - Postgraduates
BEIS,UKRI - AHRC,16/07/2021,Training Awards - Postgraduates,Collabrative Doctoral Grants - Block Payment,The Open University,99000615,5101.75,Training Awards - Postgraduates
BEIS,UKRI - AHRC,16/07/2021,Training Awards - Postgraduates,Collabrative Doctoral Grants - Block Payment,University of Bristol GRANT,99000616,5101.75,Training Awards - Postgraduates
BEIS,UKRI - AHRC,16/07/2021,Training Awards - Postgraduates,Collabrative Doctoral Grants - Block Payment,University of Bristol GRANT,99000617,5101.75,Training Awards - Postgraduates
BEIS,UKRI - AHRC,16/07/2021,Training Awards - Postgraduates,Collabrative Doctoral Grants - Block Payment,University of Oxford,99000618,5101.75,Training Awards - Postgraduates
BEIS,UKRI - AHRC,16/07/2021,Training Awards - Postgraduates,Collabrative Doctoral Grants - Block Payment,De Montfort University,99000619,4487.52,Training Awards - Postgraduates
BEIS,UKRI - AHRC,16/07/2021,Training Awards - Postgraduates,Collabrative Doctoral Grants - Block Payment,University of Kent,99000620,5101.75,Training Awards - Postgraduates
BEIS,UKRI - AHRC,16/07/2021,Training Awards - Postgraduates,Collabrative Doctoral Grants - Block Payment,University of East Anglia,99000621,5101.75,Training Awards - Postgraduates
BEIS,UKRI - AHRC,16/07/2021,Training Awards - Postgraduates,Collabrative Doctoral Grants - Block Payment,University of East Anglia,99000622,5101.75,Training Awards - Postgraduates
BEIS,UKRI - AHRC,16/07/2021,Training Awards - Postgraduates,Collabrative Doctoral Grants - Block Payment,University of East Anglia,99000623,5101.75,Training Awards - Postgraduates
BEIS,UKRI - AHRC,16/07/2021,Training Awards - Postgraduates,Collabrative Doctoral Grants - Block Payment,University of Edinburgh,99000624,5101.75,Training Awards - Postgraduates
BEIS,UKRI - AHRC,16/07/2021,Training Awards - Postgraduates,Collabrative Doctoral Grants - Block Payment,University of Southampton GRANT,99000625,5101.75,Training Awards - Postgraduates
BEIS,UKRI - AHRC,16/07/2021,Training Awards - Postgraduates,Collabrative Doctoral Grants - Block Payment,University of London,99000626,5601.75,Training Awards - Postgraduates
BEIS,UKRI - AHRC,16/07/2021,Training Awards - Postgraduates,Collabrative Doctoral Grants - Block Payment,University of Edinburgh,99000627,5101.75,Training Awards - Postgraduates
BEIS,UKRI - AHRC,16/07/2021,Training Awards - Postgraduates,Collabrative Doctoral Grants - Block Payment,University of Nottingham,99000628,5101.75,Training Awards - Postgraduates
BEIS,UKRI - AHRC,16/07/2021,Training Awards - Postgraduates,Collabrative Doctoral Grants - Block Payment,University of Brighton,99000629,5101.75,Training Awards - Postgraduates
BEIS,UKRI - AHRC,16/07/2021,Training Awards - Postgraduates,Collabrative Doctoral Grants - Block Payment,Imperial College London,99000630,5601.75,Training Awards - Postgraduates
BEIS,UKRI - AHRC,16/07/2021,Training Awards - Postgraduates,Collabrative Doctoral Grants - Block Payment,Sheffield Hallam University,99000631,5101.75,Training Awards - Postgraduates
BEIS,UKRI - AHRC,16/07/2021,Training Awards - Postgraduates,Collabrative Doctoral Grants - Block Payment,University of Glasgow,99000632,5101.75,Training Awards - Postgraduates
BEIS,UKRI - AHRC,16/07/2021,Training Awards - Postgraduates,Collabrative Doctoral Grants - Block Payment,University College London,99000633,5601.75,Training Awards - Postgraduates
BEIS,UKRI - AHRC,16/07/2021,Training Awards - Postgraduates,Collabrative Doctoral Grants - Block Payment,King's College London,99000634,5601.75,Training Awards - Postgraduates
BEIS,UKRI - AHRC,16/07/2021,Training Awards - Postgraduates,Collabrative Doctoral Grants - Block Payment,King's College London,99000635,5601.75,Training Awards - Postgraduates
BEIS,UKRI - AHRC,16/07/2021,Training Awards - Postgraduates,Collabrative Doctoral Grants - Block Payment,University of Edinburgh,99000636,5101.75,Training Awards - Postgraduates
BEIS,UKRI - AHRC,16/07/2021,Training Awards - Postgraduates,Collabrative Doctoral Grants - Block Payment,University of York,99000637,5101.75,Training Awards - Postgraduates
BEIS,UKRI - AHRC,16/07/2021,Training Awards - Postgraduates,Collabrative Doctoral Grants - Block Payment,University of Durham,99000638,5101.75,Training Awards - Postgraduates
BEIS,UKRI - AHRC,16/07/2021,Training Awards - Postgraduates,Collabrative Doctoral Grants - Block Payment,University College London,99000639,4987.53,Training Awards - Postgraduates
BEIS,UKRI - AHRC,16/07/2021,Training Awards - Postgraduates,Collabrative Doctoral Grants - Block Payment,University of the Arts London,99000640,5601.75,Training Awards - Postgraduates
BEIS,UKRI - AHRC,16/07/2021,Training Awards - Postgraduates,Collabrative Doctoral Grants - Block Payment,University of the Arts London,99000641,5601.75,Training Awards - Postgraduates
BEIS,UKRI - AHRC,16/07/2021,Training Awards - Postgraduates,Collabrative Doctoral Grants - Block Payment,University of Warwick,99000642,5101.75,Training Awards - Postgraduates
BEIS,UKRI - AHRC,16/07/2021,Training Awards - Postgraduates,Collabrative Doctoral Grants - Block Payment,University of Strathclyde,99000643,5101.75,Training Awards - Postgraduates
BEIS,UKRI - AHRC,16/07/2021,Training Awards - Postgraduates,Collabrative Doctoral Grants - Block Payment,Goldsmiths College University of London,99000644,5521.50,Training Awards - Postgraduates
BEIS,UKRI - AHRC,16/07/2021,Training Awards - Postgraduates,Collabrative Doctoral Grants - Block Payment,Goldsmiths College University of London,99000644,5601.75,Training Awards - Postgraduates
BEIS,UKRI - AHRC,16/07/2021,Training Awards - Postgraduates,Collabrative Doctoral Grants - Block Payment,Goldsmiths College University of London,99000644,5521.50,Training Awards - Postgraduates
BEIS,UKRI - AHRC,16/07/2021,Training Awards - Postgraduates,Collabrative Doctoral Grants - Block Payment,Goldsmiths College University of London,99000644,5601.75,Training Awards - Postgraduates
BEIS,UKRI - AHRC,16/07/2021,Training Awards - Postgraduates,Collabrative Doctoral Grants - Block Payment,Goldsmiths College University of London,99000644,5521.50,Training Awards - Postgraduates
BEIS,UKRI - AHRC,16/07/2021,Training Awards - Postgraduates,Collabrative Doctoral Grants - Block Payment,Goldsmiths College University of London,99000644,5521.50,Training Awards - Postgraduates
BEIS,UKRI - AHRC,16/07/2021,Training Awards - Postgraduates,Collabrative Doctoral Grants - Block Payment,Goldsmiths College University of London,99000644,5601.75,Training Awards - Postgraduates
BEIS,UKRI - AHRC,16/07/2021,Training Awards - Postgraduates,Collabrative Doctoral Grants - Block Payment,University of St Andrews,99000645,5101.75,Training Awards - Postgraduates
BEIS,UKRI - AHRC,16/07/2021,Training Awards - Postgraduates,Collabrative Doctoral Grants - Block Payment,University College London,99000646,5601.75,Training Awards - Postgraduates
BEIS,UKRI - AHRC,16/07/2021,Training Awards - Postgraduates,Collabrative Doctoral Grants - Block Payment,University College London,99000647,5601.75,Training Awards - Postgraduates
BEIS,UKRI - AHRC,16/07/2021,Training Awards - Postgraduates,Collabrative Doctoral Grants - Block Payment,University of Hull,99000648,5101.75,Training Awards - Postgraduates
BEIS,UKRI - AHRC,16/07/2021,Training Awards - Postgraduates,Collabrative Doctoral Grants - Block Payment,"City, University of London",99000649,5601.75,Training Awards - Postgraduates
BEIS,UKRI - AHRC,16/07/2021,Training Awards - Postgraduates,Collabrative Doctoral Grants - Block Payment,Glasgow Caledonian University,99000650,5101.75,Training Awards - Postgraduates
BEIS,UKRI - AHRC,16/07/2021,Training Awards - Postgraduates,Collabrative Doctoral Grants - Block Payment,University of Leicester,99000651,5101.75,Training Awards - Postgraduates
BEIS,UKRI - AHRC,16/07/2021,Training Awards - Postgraduates,Collabrative Doctoral Grants - Block Payment,University of York,99000652,5101.75,Training Awards - Postgraduates
BEIS,UKRI - AHRC,16/07/2021,Training Awards - Postgraduates,Collabrative Doctoral Grants - Block Payment,Loughborough University,99000653,5101.75,Training Awards - Postgraduates
BEIS,UKRI - AHRC,16/07/2021,Training Awards - Postgraduates,Collabrative Doctoral Grants - Block Payment,University of Edinburgh,99000654,5101.75,Training Awards - Postgraduates
BEIS,UKRI - AHRC,16/07/2021,Training Awards - Postgraduates,Industrial Strategy Challenge Fund (ISCF) - Skills,University of the West of England,99000655,19665.67,Training Awards - Postgraduates
BEIS,UKRI - AHRC,16/07/2021,Training Awards - Postgraduates,Industrial Strategy Challenge Fund (ISCF) - Skills,University of Nottingham,99000656,19671.98,Training Awards - Postgraduates
BEIS,UKRI - AHRC,16/07/2021,Training Awards - Postgraduates,Industrial Strategy Challenge Fund (ISCF) - Skills,"Royal Holloway, University of London",99000657,21577.56,Training Awards - Postgraduates
BEIS,UKRI - AHRC,16/07/2021,Training Awards - Postgraduates,Industrial Strategy Challenge Fund (ISCF) - Skills,The University of Manchester,99000658,19671.98,Training Awards - Postgraduates
BEIS,UKRI - AHRC,16/07/2021,Training Awards - Postgraduates,Industrial Strategy Challenge Fund (ISCF) - Skills,University of Glasgow,99000659,19671.98,Training Awards - Postgraduates
BEIS,UKRI - AHRC,16/07/2021,Training Awards - Postgraduates,Industrial Strategy Challenge Fund (ISCF) - Skills,University of Newcastle Upon Tyne,99000660,19671.98,Training Awards - Postgraduates
BEIS,UKRI - AHRC,16/07/2021,Training Awards - Postgraduates,Collabrative Doctoral Grants - Block Payment,The National Archives,99000661,0.06,Training Awards - Postgraduates
BEIS,UKRI - AHRC,16/07/2021,Training Awards - Postgraduates,Collabrative Doctoral Grants - Block Payment,Sheffield Hallam University,99000662,5110.00,Training Awards - Postgraduates
BEIS,UKRI - AHRC,16/07/2021,Training Awards - Postgraduates,Collabrative Doctoral Grants - Block Payment,Queen Mary University of London,99000663,5610.00,Training Awards - Postgraduates
BEIS,UKRI - AHRC,16/07/2021,Training Awards - Postgraduates,Collabrative Doctoral Grants - Block Payment,De Montfort University,99000664,5110.00,Training Awards - Postgraduates
BEIS,UKRI - AHRC,16/07/2021,Training Awards - Postgraduates,Collabrative Doctoral Grants - Block Payment,Courtauld Institute of Art,99000665,5610.00,Training Awards - Postgraduates
BEIS,UKRI - AHRC,16/07/2021,Training Awards - Postgraduates,Collabrative Doctoral Grants - Block Payment,University of the Arts London,99000666,5610.00,Training Awards - Postgraduates
BEIS,UKRI - AHRC,16/07/2021,Training Awards - Postgraduates,Collabrative Doctoral Grants - Block Payment,University of Cambridge,99000667,5110.00,Training Awards - Postgraduates
BEIS,UKRI - AHRC,16/07/2021,Training Awards - Postgraduates,Collabrative Doctoral Grants - Block Payment,University of Cambridge,99000668,5110.00,Training Awards - Postgraduates
BEIS,UKRI - AHRC,16/07/2021,Training Awards - Postgraduates,Collabrative Doctoral Grants - Block Payment,University of Cambridge,99000669,5110.00,Training Awards - Postgraduates
BEIS,UKRI - AHRC,16/07/2021,Training Awards - Postgraduates,Collabrative Doctoral Grants - Block Payment,Keele University,99000670,5110.00,Training Awards - Postgraduates
BEIS,UKRI - AHRC,16/07/2021,Training Awards - Postgraduates,Collabrative Doctoral Grants - Block Payment,University of Strathclyde,99000671,5110.00,Training Awards - Postgraduates
BEIS,UKRI - AHRC,16/07/2021,Training Awards - Postgraduates,Collabrative Doctoral Grants - Block Payment,University of Kent,99000672,5110.00,Training Awards - Postgraduates
BEIS,UKRI - AHRC,16/07/2021,Training Awards - Postgraduates,Collabrative Doctoral Grants - Block Payment,University of Kent,99000673,5110.00,Training Awards - Postgraduates
BEIS,UKRI - AHRC,16/07/2021,Training Awards - Postgraduates,Collabrative Doctoral Grants - Block Payment,University College London,99000674,5610.00,Training Awards - Postgraduates
BEIS,UKRI - AHRC,16/07/2021,Training Awards - Postgraduates,Collabrative Doctoral Grants - Block Payment,University of Durham,99000675,5110.00,Training Awards - Postgraduates
BEIS,UKRI - AHRC,16/07/2021,Training Awards - Postgraduates,Collabrative Doctoral Grants - Block Payment,University of Oxford,99000676,5110.00,Training Awards - Postgraduates
BEIS,UKRI - AHRC,16/07/2021,Training Awards - Postgraduates,Collabrative Doctoral Grants - Block Payment,University of Aberdeen,99000677,5110.00,Training Awards - Postgraduates
BEIS,UKRI - AHRC,16/07/2021,Training Awards - Postgraduates,Collabrative Doctoral Grants - Block Payment,University of Newcastle Upon Tyne,99000678,5110.00,Training Awards - Postgraduates
BEIS,UKRI - AHRC,16/07/2021,Training Awards - Postgraduates,Collabrative Doctoral Grants - Block Payment,University of York,99000679,5110.00,Training Awards - Postgraduates
BEIS,UKRI - AHRC,16/07/2021,Training Awards - Postgraduates,Collabrative Doctoral Grants - Block Payment,Royal College of Art,99000680,5610.00,Training Awards - Postgraduates
BEIS,UKRI - AHRC,16/07/2021,Training Awards - Postgraduates,Collabrative Doctoral Grants - Block Payment,University of Glasgow,99000681,5110.00,Training Awards - Postgraduates
BEIS,UKRI - AHRC,16/07/2021,Training Awards - Postgraduates,Collabrative Doctoral Grants - Block Payment,De Montfort University,99000682,5110.00,Training Awards - Postgraduates
BEIS,UKRI - AHRC,16/07/2021,Training Awards - Postgraduates,Collabrative Doctoral Grants - Block Payment,Birkbeck College,99000683,5610.00,Training Awards - Postgraduates
BEIS,UKRI - AHRC,16/07/2021,Training Awards - Postgraduates,Collabrative Doctoral Grants - Block Payment,University of Southampton GRANT,99000684,5110.00,Training Awards - Postgraduates
BEIS,UKRI - AHRC,16/07/2021,Training Awards - Postgraduates,Collabrative Doctoral Grants - Block Payment,University of Stirling,99000685,5110.00,Training Awards - Postgraduates
BEIS,UKRI - AHRC,16/07/2021,Training Awards - Postgraduates,Collabrative Doctoral Grants - Block Payment,King's College London,99000686,5610.00,Training Awards - Postgraduates
BEIS,UKRI - AHRC,16/07/2021,Training Awards - Postgraduates,Collabrative Doctoral Grants - Block Payment,University of Central Lancashire,99000687,5110.00,Training Awards - Postgraduates
BEIS,UKRI - AHRC,16/07/2021,Training Awards - Postgraduates,Collabrative Doctoral Grants - Block Payment,University College London,99000688,5610.00,Training Awards - Postgraduates
BEIS,UKRI - AHRC,16/07/2021,Training Awards - Postgraduates,Collabrative Doctoral Grants - Block Payment,University College London,99000689,5610.00,Training Awards - Postgraduates
BEIS,UKRI - AHRC,16/07/2021,Training Awards - Postgraduates,Collabrative Doctoral Grants - Block Payment,"City, University of London",99000690,5610.00,Training Awards - Postgraduates
BEIS,UKRI - AHRC,16/07/2021,Training Awards - Postgraduates,Collabrative Doctoral Grants - Block Payment,University of Durham,99000691,5110.00,Training Awards - Postgraduates
BEIS,UKRI - AHRC,16/07/2021,Training Awards - Postgraduates,Collabrative Doctoral Grants - Block Payment,Goldsmiths College University of London,99000692,5610.00,Training Awards - Postgraduates
BEIS,UKRI - AHRC,16/07/2021,Training Awards - Postgraduates,Collabrative Doctoral Grants - Block Payment,Robert Gordon University,99000693,5110.00,Training Awards - Postgraduates
BEIS,UKRI - AHRC,16/07/2021,Training Awards - Postgraduates,Collabrative Doctoral Grants - Block Payment,University of Exeter,99000694,5110.00,Training Awards - Postgraduates
BEIS,UKRI - AHRC,16/07/2021,Training Awards - Postgraduates,Collabrative Doctoral Grants - Block Payment,University of Edinburgh,99000695,5110.00,Training Awards - Postgraduates
BEIS,UKRI - AHRC,16/07/2021,Training Awards - Postgraduates,Collabrative Doctoral Grants - Block Payment,King's College London,99000696,5610.00,Training Awards - Postgraduates
BEIS,UKRI - AHRC,16/07/2021,Training Awards - Postgraduates,Collabrative Doctoral Grants - Block Payment,University of Brighton,99000697,5110.00,Training Awards - Postgraduates
BEIS,UKRI - AHRC,16/07/2021,Training Awards - Postgraduates,Collabrative Doctoral Grants - Block Payment,Northumbria University,99000698,5110.00,Training Awards - Postgraduates
BEIS,UKRI - AHRC,16/07/2021,Training Awards - Postgraduates,Collabrative Doctoral Grants - Block Payment,"SOAS, University of London",99000699,5610.00,Training Awards - Postgraduates
BEIS,UKRI - AHRC,16/07/2021,Training Awards - Postgraduates,Collabrative Doctoral Grants - Block Payment,University of Stirling,99000700,5110.00,Training Awards - Postgraduates
BEIS,UKRI - AHRC,16/07/2021,Training Awards - Postgraduates,Collabrative Doctoral Grants - Block Payment,University College London,99000701,5610.00,Training Awards - Postgraduates
BEIS,UKRI - AHRC,16/07/2021,Training Awards - Postgraduates,Collabrative Doctoral Grants - Block Payment,University of Sheffield,99000702,5110.00,Training Awards - Postgraduates
BEIS,UKRI - AHRC,16/07/2021,Training Awards - Postgraduates,Collabrative Doctoral Grants - Block Payment,University of London,99000703,5610.00,Training Awards - Postgraduates
BEIS,UKRI - AHRC,16/07/2021,Training Awards - Postgraduates,Collabrative Doctoral Grants - Block Payment,University of Sheffield,99000704,5110.00,Training Awards - Postgraduates
BEIS,UKRI - AHRC,16/07/2021,Training Awards - Postgraduates,BGP Award,The University of Manchester,99000705,3856.09,Training Awards - Postgraduates
BEIS,UKRI - AHRC,16/07/2021,Training Awards - Postgraduates,BGP Award,University of Sussex,99000706,412684.13,Training Awards - Postgraduates
BEIS,UKRI - AHRC,16/07/2021,Training Awards - Postgraduates,BGP Award,The University of Manchester,99000707,319725.00,Training Awards - Postgraduates
BEIS,UKRI - AHRC,16/07/2021,Training Awards - Postgraduates,BGP Award,University of Bristol GRANT,99000708,212572.50,Training Awards - Postgraduates
BEIS,UKRI - AHRC,16/07/2021,Training Awards - Postgraduates,BGP Award,"Royal Holloway, University of London",99000709,436905.00,Training Awards - Postgraduates
BEIS,UKRI - AHRC,16/07/2021,Training Awards - Postgraduates,BGP Award,University of York,99000710,343047.40,Training Awards - Postgraduates
BEIS,UKRI - AHRC,16/07/2021,Training Awards - Postgraduates,BGP Award,University of Nottingham,99000711,488571.41,Training Awards - Postgraduates
BEIS,UKRI - AHRC,16/07/2021,Training Awards - Postgraduates,BGP Award,University of Glasgow,99000712,404985.00,Training Awards - Postgraduates
BEIS,UKRI - AHRC,16/07/2021,Training Awards - Postgraduates,BGP Award,University of Oxford,99000713,542796.19,Training Awards - Postgraduates
BEIS,UKRI - AHRC,16/07/2021,Training Awards - Postgraduates,BGP Award,University College London,99000714,534273.80,Training Awards - Postgraduates
BEIS,UKRI - AHRC,16/07/2021,Training Awards - Postgraduates,BGP Award,University of Newcastle Upon Tyne,99000715,404985.00,Training Awards - Postgraduates
BEIS,UKRI - AHRC,16/07/2021,Training Awards - Postgraduates,Collabrative Doctoral Grants - Block Payment,Glasgow School of Art,99000716,2580.75,Training Awards - Postgraduates
BEIS,UKRI - AHRC,16/07/2021,Training Awards - Postgraduates,Collabrative Doctoral Grants - Block Payment,Royal College of Art,99000717,2830.75,Training Awards - Postgraduates
BEIS,UKRI - AHRC,16/07/2021,Training Awards - Postgraduates,Collabrative Doctoral Grants - Block Payment,Northumbria University,99000718,2580.75,Training Awards - Postgraduates
BEIS,UKRI - AHRC,16/07/2021,Training Awards - Postgraduates,Collabrative Doctoral Grants - Block Payment,The University of Manchester,99000719,2580.75,Training Awards - Postgraduates
BEIS,UKRI - AHRC,16/07/2021,Training Awards - Postgraduates,Collabrative Doctoral Grants - Block Payment,De Montfort University,99000720,2580.75,Training Awards - Postgraduates
BEIS,UKRI - AHRC,16/07/2021,Training Awards - Postgraduates,Collabrative Doctoral Grants - Block Payment,The University of Manchester,99000721,2580.75,Training Awards - Postgraduates
BEIS,UKRI - AHRC,16/07/2021,Training Awards - Postgraduates,Collabrative Doctoral Grants - Block Payment,Cardiff University,99000722,2580.75,Training Awards - Postgraduates
BEIS,UKRI - AHRC,16/07/2021,Training Awards - Postgraduates,Collabrative Doctoral Grants - Block Payment,University of Leicester,99000723,2580.75,Training Awards - Postgraduates
BEIS,UKRI - AHRC,16/07/2021,Training Awards - Postgraduates,Collabrative Doctoral Grants - Block Payment,University of Leicester,99000724,2580.75,Training Awards - Postgraduates
BEIS,UKRI - AHRC,16/07/2021,Training Awards - Postgraduates,Collabrative Doctoral Grants - Block Payment,De Montfort University,99000725,2580.75,Training Awards - Postgraduates
BEIS,UKRI - AHRC,16/07/2021,Training Awards - Postgraduates,Collabrative Doctoral Grants - Block Payment,King's College London,99000726,2830.75,Training Awards - Postgraduates
BEIS,UKRI - AHRC,16/07/2021,Training Awards - Postgraduates,Collabrative Doctoral Grants - Block Payment,University of Reading,99000727,2580.75,Training Awards - Postgraduates
BEIS,UKRI - AHRC,16/07/2021,Training Awards - Postgraduates,Collabrative Doctoral Grants - Block Payment,University of London,99000728,2830.75,Training Awards - Postgraduates
BEIS,UKRI - AHRC,16/07/2021,Training Awards - Postgraduates,Collabrative Doctoral Grants - Block Payment,University of Oxford,99000729,2580.75,Training Awards - Postgraduates
BEIS,UKRI - AHRC,16/07/2021,Training Awards - Postgraduates,Collabrative Doctoral Grants - Block Payment,Birkbeck College,99000730,2830.75,Training Awards - Postgraduates
BEIS,UKRI - AHRC,16/07/2021,Training Awards - Postgraduates,Collabrative Doctoral Grants - Block Payment,University of Birmingham GRANT,99000731,2580.75,Training Awards - Postgraduates
BEIS,UKRI - AHRC,16/07/2021,Training Awards - Postgraduates,Collabrative Doctoral Grants - Block Payment,University of Reading,99000732,2580.75,Training Awards - Postgraduates
BEIS,UKRI - AHRC,16/07/2021,Training Awards - Postgraduates,Collabrative Doctoral Grants - Block Payment,Birkbeck College,99000733,2830.75,Training Awards - Postgraduates
BEIS,UKRI - AHRC,16/07/2021,Training Awards - Postgraduates,Collabrative Doctoral Grants - Block Payment,University of York,99000734,2580.75,Training Awards - Postgraduates
BEIS,UKRI - AHRC,16/07/2021,Training Awards - Postgraduates,Collabrative Doctoral Grants - Block Payment,University of York,99000735,2580.75,Training Awards - Postgraduates
BEIS,UKRI - AHRC,16/07/2021,Training Awards - Postgraduates,Collabrative Doctoral Grants - Block Payment,Courtauld Institute of Art,99000736,2830.75,Training Awards - Postgraduates
BEIS,UKRI - AHRC,16/07/2021,Training Awards - Postgraduates,Collabrative Doctoral Grants - Block Payment,University of Glasgow,99000737,2580.75,Training Awards - Postgraduates
BEIS,UKRI - AHRC,16/07/2021,Training Awards - Postgraduates,Collabrative Doctoral Grants - Block Payment,University College London,99000738,2830.75,Training Awards - Postgraduates
BEIS,UKRI - AHRC,16/07/2021,Training Awards - Postgraduates,Collabrative Doctoral Grants - Block Payment,University of Nottingham,99000739,2580.75,Training Awards - Postgraduates
BEIS,UKRI - AHRC,16/07/2021,Training Awards - Postgraduates,Collabrative Doctoral Grants - Block Payment,University of Edinburgh,99000740,2580.75,Training Awards - Postgraduates
BEIS,UKRI - AHRC,16/07/2021,Training Awards - Postgraduates,Collabrative Doctoral Grants - Block Payment,University of Sussex,99000741,2580.75,Training Awards - Postgraduates
BEIS,UKRI - AHRC,16/07/2021,Training Awards - Postgraduates,Collabrative Doctoral Grants - Block Payment,University of Exeter,99000742,2580.75,Training Awards - Postgraduates
BEIS,UKRI - AHRC,16/07/2021,Training Awards - Postgraduates,Collabrative Doctoral Grants - Block Payment,University of Central Lancashire,99000743,2580.75,Training Awards - Postgraduates
BEIS,UKRI - AHRC,16/07/2021,Training Awards - Postgraduates,Collabrative Doctoral Grants - Block Payment,University of Stirling,99000744,2580.75,Training Awards - Postgraduates
BEIS,UKRI - AHRC,16/07/2021,Training Awards - Postgraduates,Collabrative Doctoral Grants - Block Payment,University of Leicester,99000745,2580.75,Training Awards - Postgraduates
BEIS,UKRI - AHRC,16/07/2021,Training Awards - Postgraduates,Collabrative Doctoral Grants - Block Payment,University of St Andrews,99000746,2580.75,Training Awards - Postgraduates
BEIS,UKRI - AHRC,16/07/2021,Training Awards - Postgraduates,Collabrative Doctoral Grants - Block Payment,University of Leicester,99000747,2580.75,Training Awards - Postgraduates
BEIS,UKRI - AHRC,16/07/2021,Training Awards - Postgraduates,Collabrative Doctoral Grants - Block Payment,University of Edinburgh,99000748,2580.75,Training Awards - Postgraduates
BEIS,UKRI - AHRC,16/07/2021,Training Awards - Postgraduates,Collabrative Doctoral Grants - Block Payment,University of Durham,99000749,2580.75,Training Awards - Postgraduates
BEIS,UKRI - AHRC,16/07/2021,Training Awards - Postgraduates,Collabrative Doctoral Grants - Block Payment,University of Bristol GRANT,99000750,2580.75,Training Awards - Postgraduates
BEIS,UKRI - AHRC,16/07/2021,Training Awards - Postgraduates,Collabrative Doctoral Grants - Block Payment,University of Wolverhampton,99000751,2580.75,Training Awards - Postgraduates
BEIS,UKRI - AHRC,16/07/2021,Training Awards - Postgraduates,Collabrative Doctoral Grants - Block Payment,University of Edinburgh,99000752,2580.75,Training Awards - Postgraduates
BEIS,UKRI - AHRC,16/07/2021,Training Awards - Postgraduates,Collabrative Doctoral Grants - Block Payment,Birkbeck College,99000753,2830.75,Training Awards - Postgraduates
BEIS,UKRI - AHRC,16/07/2021,Training Awards - Postgraduates,Collabrative Doctoral Grants - Block Payment,University of Sheffield,99000754,2580.75,Training Awards - Postgraduates
BEIS,UKRI - AHRC,16/07/2021,Training Awards - Postgraduates,Collabrative Doctoral Grants - Block Payment,Nottingham Trent University,99000755,2580.75,Training Awards - Postgraduates
BEIS,UKRI - AHRC,16/07/2021,Training Awards - Postgraduates,Collabrative Doctoral Grants - Block Payment,University of Kent,99000756,2580.75,Training Awards - Postgraduates
BEIS,UKRI - AHRC,16/07/2021,Training Awards - Postgraduates,Collabrative Doctoral Grants - Block Payment,"Royal Holloway, University of London",99000757,2830.75,Training Awards - Postgraduates
BEIS,UKRI - AHRC,16/07/2021,Training Awards - Postgraduates,Collabrative Doctoral Grants - Block Payment,University of London,99000758,4342.92,Training Awards - Postgraduates
BEIS,UKRI - AHRC,16/07/2021,Training Awards - Postgraduates,Collabrative Doctoral Grants - Block Payment,University of Oxford,99000759,2580.75,Training Awards - Postgraduates
BEIS,UKRI - AHRC,16/07/2021,Training Awards - Postgraduates,Collabrative Doctoral Grants - Block Payment,University of Edinburgh,99000760,2599.50,Training Awards - Postgraduates
BEIS,UKRI - AHRC,16/07/2021,Training Awards - Postgraduates,Collabrative Doctoral Grants - Block Payment,Nottingham Trent University,99000761,2580.75,Training Awards - Postgraduates
BEIS,UKRI - AHRC,16/07/2021,Training Awards - Postgraduates,BGP Award,"Royal Holloway, University of London",99000762,299653.60,Training Awards - Postgraduates
BEIS,UKRI - AHRC,16/07/2021,Training Awards - Postgraduates,BGP Award,University of Bristol GRANT,99000763,317126.25,Training Awards - Postgraduates
BEIS,UKRI - AHRC,16/07/2021,Training Awards - Postgraduates,BGP Award,University of Newcastle Upon Tyne,99000764,245772.85,Training Awards - Postgraduates
BEIS,UKRI - AHRC,16/07/2021,Training Awards - Postgraduates,BGP Award,University of Glasgow,99000765,317126.25,Training Awards - Postgraduates
BEIS,UKRI - AHRC,16/07/2021,Training Awards - Postgraduates,BGP Award,The University of Manchester,99000766,317126.25,Training Awards - Postgraduates
BEIS,UKRI - AHRC,16/07/2021,Training Awards - Postgraduates,BGP Award,The University of Manchester,99000766,6192.66,Training Awards - Postgraduates
BEIS,UKRI - AHRC,16/07/2021,Training Awards - Postgraduates,BGP Award,University of Cambridge,99000767,317126.25,Training Awards - Postgraduates
BEIS,UKRI - AHRC,16/07/2021,Training Awards - Postgraduates,BGP Award,University of Oxford,99000768,317126.25,Training Awards - Postgraduates
BEIS,UKRI - AHRC,16/07/2021,Training Awards - Postgraduates,BGP Award,University of Oxford,99000768,15607.45,Training Awards - Postgraduates
BEIS,UKRI - AHRC,16/07/2021,Training Awards - Postgraduates,BGP Award,University College London,99000769,426700.52,Training Awards - Postgraduates
BEIS,UKRI - AHRC,16/07/2021,Training Awards - Postgraduates,BGP Award,University of Sussex,99000770,374916.94,Training Awards - Postgraduates
BEIS,UKRI - AHRC,16/07/2021,Training Awards - Postgraduates,BGP Award,University of Nottingham,99000771,325054.41,Training Awards - Postgraduates
BEIS,UKRI - AHRC,16/07/2021,Training Awards - Postgraduates,BGP Award,University of York,99000772,428120.44,Training Awards - Postgraduates
BEIS,UKRI - AHRC,16/07/2021,Training Awards - Postgraduates,BGP Award,Northumbria University,99000773,23784.47,Training Awards - Postgraduates
BEIS,UKRI - AHRC,16/07/2021,Training Awards - Postgraduates,BGP Award,University College London,99000774,57339.85,Training Awards - Postgraduates
BEIS,UKRI - AHRC,16/07/2021,Training Awards - Postgraduates,BGP Award,University of Hull,99000775,39640.79,Training Awards - Postgraduates
BEIS,UKRI - AHRC,16/07/2021,Training Awards - Postgraduates,BGP Award,University of Glasgow,99000776,39640.79,Training Awards - Postgraduates
BEIS,UKRI - AHRC,16/07/2021,Training Awards - Postgraduates,BGP Award,University of the West of England,99000777,52854.38,Training Awards - Postgraduates
BEIS,UKRI - AHRC,16/07/2021,Training Awards - Postgraduates,BGP Award,Royal College of Art,99000778,52293.94,Training Awards - Postgraduates
BEIS,UKRI - AHRC,16/07/2021,Training Awards - Postgraduates,BGP Award,University of Reading,99000779,48663.56,Training Awards - Postgraduates
BEIS,UKRI - AHRC,16/07/2021,Training Awards - Postgraduates,Collabrative Doctoral Grants - Block Payment,University of Edinburgh,99001651,-3342.25,Training Awards - Postgraduates
BEIS,UKRI - AHRC,16/07/2021,Training Awards - Postgraduates,Collabrative Doctoral Grants - Block Payment,University College London,99001652,-11796.00,Training Awards - Postgraduates
BEIS,UKRI - AHRC,16/07/2021,Training Awards - Postgraduates,Collabrative Doctoral Grants - Block Payment,University of Leicester,99001653,-543.30,Training Awards - Postgraduates
BEIS,UKRI - AHRC,16/07/2021,Training Awards - Postgraduates,Collabrative Doctoral Grants - Block Payment,University of Bristol GRANT,99001654,-5136.98,Training Awards - Postgraduates
BEIS,UKRI - AHRC,16/07/2021,Training Awards - Postgraduates,Collabrative Doctoral Grants - Block Payment,University of Brighton,99001655,-2092.50,Training Awards - Postgraduates
BEIS,UKRI - AHRC,16/07/2021,Training Awards - Postgraduates,Collabrative Doctoral Grants - Block Payment,University of Warwick,99001656,-1455.98,Training Awards - Postgraduates
BEIS,UKRI - AHRC,16/07/2021,Training Awards - Postgraduates,Collabrative Doctoral Grants - Block Payment,"Royal Holloway, University of London",99001657,-591.12,Training Awards - Postgraduates
BEIS,UKRI - AHRC,16/07/2021,Training Awards - Postgraduates,Collabrative Doctoral Grants - Block Payment,University of Durham,99001658,-1454.29,Training Awards - Postgraduates
BEIS,UKRI - AHRC,16/07/2021,Training Awards - Postgraduates,Collabrative Doctoral Grants - Block Payment,University College London,99001659,-22279.50,Training Awards - Postgraduates
BEIS,UKRI - AHRC,16/07/2021,Training Awards - Postgraduates,Collabrative Doctoral Grants - Block Payment,University of Sheffield,99001660,-13937.42,Training Awards - Postgraduates
BEIS,UKRI - AHRC,16/07/2021,Training Awards - Postgraduates,Collabrative Doctoral Grants - Block Payment,University of Central Lancashire,99001661,-4193.50,Training Awards - Postgraduates
BEIS,UKRI - AHRC,16/07/2021,Training Awards - Postgraduates,Collabrative Doctoral Grants - Block Payment,University of Exeter,99001662,-7714.20,Training Awards - Postgraduates
BEIS,UKRI - AHRC,19/07/2021,Fees (Including College Members),FIC- Ireland,Unspecified,99006240,340.00,Fees (Including College Members)
BEIS,UKRI - AHRC,19/07/2021,Unspecified,Infrastruture Roadmap,Alexander Mann Solutions Ltd,99007163,2772.24,Legal & Professional Services
BEIS,UKRI - AHRC,20/07/2021,Recruitment Costs,SMT,Onefix Recruitment Ltd,99006145,714.00,Recruitment Costs
BEIS,UKRI - AHRC,20/07/2021,Recruitment Costs,SMT,Onefix Recruitment Ltd,99006146,714.00,Recruitment Costs
BEIS,UKRI - AHRC,21/07/2021,Unspecified,Infrastruture Roadmap,Human Economics Ltd,99001740,6600.00,Legal & Professional Services
BEIS,UKRI - AHRC,22/07/2021,T&S UK - Public Transport,AHRC - Creative Industries,Unspecified,99008184,18.20,T&S UK - Public Transport
BEIS,UKRI - AHRC,22/07/2021,T&S UK - Subsistence,AHRC - Creative Industries,Unspecified,99008184,7.10,T&S UK - Subsistence
BEIS,UKRI - AHRC,23/07/2021,T&S UK - Other Charges,Executive Office,Unspecified,99008498,76.49,T&S UK - Other Charges
BEIS,UKRI - AHRC,23/07/2021,Unspecified,Public Engagement,Unspecified,99009168,2000.00,Legal & Professional Services
BEIS,UKRI - AHRC,27/07/2021,Fees (Including College Members),New Programme Development,Unspecified,99009595,170.00,Fees (Including College Members)
BEIS,UKRI - AHRC,27/07/2021,T&S UK - Other Charges,Operations,Unspecified,99010196,7.79,T&S UK - Other Charges
BEIS,UKRI - AHRC,28/07/2021,Consultancy Services,Infrastruture Roadmap,Unspecified,98968929,4950.00,Consultancy Services
BEIS,UKRI - AHRC,28/07/2021,Consultancy Services,Infrastruture Roadmap,Unspecified,98968929,990.00,Consultancy Services
BEIS,UKRI - AHRC,28/07/2021,Fees (Including College Members),Infrastruture Roadmap,Unspecified,99010352,170.00,Fees (Including College Members)
BEIS,UKRI - AHRC,29/07/2021,Conferences & Seminars,Skills Strategy,Unspecified,98970496,250.00,Conferences & Seminars
BEIS,UKRI - AHRC,29/07/2021,Fees (Including College Members),Infrastruture Roadmap,Unspecified,99012599,170.00,Fees (Including College Members)
BEIS,UKRI - BBSRC,01/07/2021,Non-staff travel and subsistance,European Initiatives,Edinburgh Innovations Ltd,98996977,11520.00,Non-staff travel and subsistance
BEIS,UKRI - BBSRC,02/07/2021,Research Institutes - Capital Grants: Minor Works,Rothamsted Research,Rothamsted Research Ltd,98997396,1683.00,Research Institutes - Capital Grants: Minor Works
BEIS,UKRI - BBSRC,02/07/2021,Research Institutes - Capital Grants: Minor Works,Rothamsted Research,Rothamsted Research Ltd,98997400,8209.48,Research Institutes - Capital Grants: Minor Works
BEIS,UKRI - BBSRC,05/07/2021,Training Awards - Postgraduates,Postgraduate Training: Students,University of Cambridge,98997496,5882.87,Training Awards - Postgraduates
BEIS,UKRI - BBSRC,05/07/2021,Staff Training,PDG - Director,University of Bristol,98998495,-175.00,Staff Training
BEIS,UKRI - BBSRC,06/07/2021,Research Grant Expenditure,Science Group,UKRI - Medical Research Council,98996205,56598.09,Research Grant Expenditure
BEIS,UKRI - BBSRC,06/07/2021,Research Grant Expenditure,Science Group,UKRI - Medical Research Council,98996205,112198.11,Research Grant Expenditure
BEIS,UKRI - BBSRC,06/07/2021,Research Institutes - Competitive Strategic Grant,Rothamsted Research,Rothamsted Research Ltd,98998284,6463.87,Research Institutes - Competitive Strategic Grant
BEIS,UKRI - BBSRC,06/07/2021,Research Institutes - Competitive Strategic Grant,Rothamsted Research,Rothamsted Research Ltd,98998284,27171.64,Research Institutes - Competitive Strategic Grant
BEIS,UKRI - BBSRC,06/07/2021,Research Institutes - Competitive Strategic Grant,Rothamsted Research,Rothamsted Research Ltd,98998284,3757.16,Research Institutes - Competitive Strategic Grant
BEIS,UKRI - BBSRC,06/07/2021,Research Institutes - Competitive Strategic Grant,Rothamsted Research,Rothamsted Research Ltd,98998284,11445.79,Research Institutes - Competitive Strategic Grant
BEIS,UKRI - BBSRC,06/07/2021,Research Institutes - Competitive Strategic Grant,Rothamsted Research,Rothamsted Research Ltd,98998284,411.54,Research Institutes - Competitive Strategic Grant
BEIS,UKRI - BBSRC,06/07/2021,Staff Training,PDG - JSS,LTE Group T/A MOL Learn,98998391,5250.00,Staff Training
BEIS,UKRI - BBSRC,06/07/2021,Conferences & Seminars,Science Group,Unspecified,98998440,102.00,Conferences & Seminars
BEIS,UKRI - BBSRC,06/07/2021,T&S UK - Other Charges,Science Group,Unspecified,98998523,18.97,T&S UK - Other Charges
BEIS,UKRI - BBSRC,06/07/2021,T&S UK - Other Charges,FG - Estates,Unspecified,98998524,5.55,T&S UK - Other Charges
BEIS,UKRI - BBSRC,06/07/2021,T&S UK - Subsistence,FG - Estates,Unspecified,98998524,5.49,T&S UK - Subsistence
BEIS,UKRI - BBSRC,06/07/2021,T&S UK - Vehicle Hire,FG - Estates,Unspecified,98998524,69.35,T&S UK - Vehicle Hire
BEIS,UKRI - BBSRC,06/07/2021,T&S UK - Subsistence,FG - Estates,Unspecified,98998525,3.75,T&S UK - Subsistence
BEIS,UKRI - BBSRC,07/07/2021,Fees (Including College Members),Innovation and Skills Group CDSU,Unspecified,98998618,170.00,Fees (Including College Members)
BEIS,UKRI - BBSRC,07/07/2021,Fees (Including College Members),Innovation and Skills Group CDSU,Unspecified,98998619,340.00,Fees (Including College Members)
BEIS,UKRI - BBSRC,07/07/2021,Fees (Including College Members),Innovation and Skills Group CDSU,Unspecified,98998620,170.00,Fees (Including College Members)
BEIS,UKRI - BBSRC,07/07/2021,Fees (Including College Members),Innovation and Skills Group CDSU,Unspecified,98998621,460.00,Fees (Including College Members)
BEIS,UKRI - BBSRC,07/07/2021,Fees (Including College Members),Science Group – Admin Function,Unspecified,98998622,170.00,Fees (Including College Members)
BEIS,UKRI - BBSRC,07/07/2021,Fees (Including College Members),Innovation and Skills Group CDSU,Unspecified,98998623,170.00,Fees (Including College Members)
BEIS,UKRI - BBSRC,07/07/2021,Fees (Including College Members),Innovation and Skills Group CDSU,Unspecified,98998624,170.00,Fees (Including College Members)
BEIS,UKRI - BBSRC,07/07/2021,T&S UK - Vehicle Hire,FG - Estates,Enterprise Rent-A-Car UK Ltd,99000156,12.43,T&S UK - Vehicle Hire
BEIS,UKRI - BBSRC,07/07/2021,T&S UK - Vehicle Hire,FG - Estates,Enterprise Rent-A-Car UK Ltd,99000156,62.16,T&S UK - Vehicle Hire
BEIS,UKRI - BBSRC,07/07/2021,T&S UK - Other Charges,Innovation and Skills Group CDSU,Unspecified,99000216,195.00,T&S UK - Other Charges
BEIS,UKRI - BBSRC,08/07/2021,Fees (Including College Members),Innovation and Skills Group CDSU,Unspecified,99000962,170.00,Fees (Including College Members)
BEIS,UKRI - BBSRC,08/07/2021,Unspecified,Balance Sheet,Unspecified,99001605,495.82,Ees Pension Deductions - MRC
BEIS,UKRI - BBSRC,08/07/2021,Unspecified,Balance Sheet,Unspecified,99001606,1220.48,Ers Pension Deductions - MRC
BEIS,UKRI - BBSRC,08/07/2021,T&S UK - Mileage,Innovation and Skills Group,Unspecified,99001611,49.50,T&S UK - Mileage
BEIS,UKRI - BBSRC,08/07/2021,T&S UK - Subsistence,Innovation and Skills Group,Unspecified,99001611,14.25,T&S UK - Subsistence
BEIS,UKRI - BBSRC,09/07/2021,Research Institutes - Capital Grants: Minor Works,Rothamsted Research,Rothamsted Research Ltd,98993402,7632.32,Research Institutes - Capital Grants: Minor Works
BEIS,UKRI - BBSRC,09/07/2021,Unspecified,FG - Estates,Womble Bond Dickinson LLP,99002868,201.12,Legal & Professional Services
BEIS,UKRI - BBSRC,09/07/2021,Unspecified,FG - Estates,Womble Bond Dickinson LLP,99002868,88.32,Legal & Professional Services
BEIS,UKRI - BBSRC,12/07/2021,Research Institutes - Capital Grants: Minor Works,Rothamsted Research,Rothamsted Research Ltd,98994094,33759.80,Research Institutes - Capital Grants: Minor Works
BEIS,UKRI - BBSRC,12/07/2021,Research Institutes - Capital Grants: Minor Works,Rothamsted Research,Rothamsted Research Ltd,98997014,1210.46,Research Institutes - Capital Grants: Minor Works
BEIS,UKRI - BBSRC,12/07/2021,Research Institutes - Capital Grants: Minor Works,Pirbright,The Pirbright Institute,99003233,2904.40,Research Institutes - Capital Grants: Minor Works
BEIS,UKRI - BBSRC,12/07/2021,Research Institutes - Capital Grants: Minor Works,Pirbright,The Pirbright Institute,99003235,1375.32,Research Institutes - Capital Grants: Minor Works
BEIS,UKRI - BBSRC,12/07/2021,Research Institutes - Capital Grants: Minor Works,Pirbright,The Pirbright Institute,99003236,32393.69,Research Institutes - Capital Grants: Minor Works
BEIS,UKRI - BBSRC,12/07/2021,Research Institutes - Capital Grants: Major Works,Pirbright,The Pirbright Institute,99003237,324810.48,Research Institutes - Capital Grants: Major Works
BEIS,UKRI - BBSRC,12/07/2021,Research Institutes - Capital Grants: Minor Works,Pirbright,The Pirbright Institute,99003238,2551.20,Research Institutes - Capital Grants: Minor Works
BEIS,UKRI - BBSRC,13/07/2021,Unspecified,FG - Estates,Womble Bond Dickinson LLP,99002865,1313.28,Legal & Professional Services
BEIS,UKRI - BBSRC,13/07/2021,Fees (Including College Members),Science Group – Admin Function,Unspecified,99003642,170.00,Fees (Including College Members)
BEIS,UKRI - BBSRC,13/07/2021,Fees (Including College Members),Science Group – Admin Function,Unspecified,99003643,170.00,Fees (Including College Members)
BEIS,UKRI - BBSRC,13/07/2021,Fees (Including College Members),Innovation and Skills Group CDSU,Unspecified,99003644,170.00,Fees (Including College Members)
BEIS,UKRI - BBSRC,13/07/2021,Fees (Including College Members),Innovation and Skills Group CDSU,Unspecified,99003645,170.00,Fees (Including College Members)
BEIS,UKRI - BBSRC,14/07/2021,Unspecified,Balance Sheet,HM Revenue & Customs,98997736,2230.56,PAYE Payable Salaries
BEIS,UKRI - BBSRC,14/07/2021,Unspecified,FG - Accounts & Business Planning,HM Revenue & Customs,98997738,32.00,Apprenticeship Levy
BEIS,UKRI - BBSRC,14/07/2021,Security Services,FG - Estates,Babraham Institute,99002235,8000.00,Security Services
BEIS,UKRI - BBSRC,14/07/2021,Marketing & PR,CE - CPS,CWTS BV,99005069,2907.40,Marketing & PR
BEIS,UKRI - BBSRC,14/07/2021,T&S UK - Accommodation,FG - Estates,Corporate Travel Management (North) Ltd,99005083,0.80,T&S UK - Accommodation
BEIS,UKRI - BBSRC,14/07/2021,T&S UK - Accommodation,FG - Estates,Corporate Travel Management (North) Ltd,99005083,94.50,T&S UK - Accommodation
BEIS,UKRI - BBSRC,14/07/2021,T&S UK - Accommodation,FG - Estates,Corporate Travel Management (North) Ltd,99005083,0.80,T&S UK - Accommodation
BEIS,UKRI - BBSRC,14/07/2021,T&S UK - Accommodation,FG - Estates,Corporate Travel Management (North) Ltd,99005083,94.50,T&S UK - Accommodation
BEIS,UKRI - BBSRC,14/07/2021,T&S UK - Accommodation,FG - Estates,Corporate Travel Management (North) Ltd,99005083,0.32,T&S UK - Accommodation
BEIS,UKRI - BBSRC,14/07/2021,T&S UK - Public Transport,Innovation and Skills Group,Corporate Travel Management (North) Ltd,99005083,-143.60,T&S UK - Public Transport
BEIS,UKRI - BBSRC,14/07/2021,Other Programme Costs,Innovation and Skills Group CDSU,NNFCC Ltd,99005107,5702.40,Other Programme Costs
BEIS,UKRI - BBSRC,14/07/2021,Unspecified,Balance Sheet,HM Revenue & Customs,99005507,72852.67,PAYE Payable Salaries
BEIS,UKRI - BBSRC,14/07/2021,Unspecified,Balance Sheet,HM Revenue & Customs,99005508,5559.00,Student Loans
BEIS,UKRI - BBSRC,14/07/2021,Unspecified,Balance Sheet,HM Revenue & Customs,99005509,98246.24,NI Payable Salaries
BEIS,UKRI - BBSRC,14/07/2021,Unspecified,FG - Accounts & Business Planning,HM Revenue & Customs,99005510,2559.00,Apprenticeship Levy
BEIS,UKRI - BBSRC,15/07/2021,Training Awards - Postgraduates,FG - Accounts & Business Planning,University of Oxford,99000276,5594.19,Training Awards - Postgraduates
BEIS,UKRI - BBSRC,15/07/2021,Training Awards - Postgraduates,FG - Accounts & Business Planning,University of Edinburgh,99000277,10024.77,Training Awards - Postgraduates
BEIS,UKRI - BBSRC,15/07/2021,Training Awards - Postgraduates,FG - Accounts & Business Planning,University of Edinburgh,99000278,7915.85,Training Awards - Postgraduates
BEIS,UKRI - BBSRC,15/07/2021,Training Awards - Postgraduates,FG - Accounts & Business Planning,University College London,99000279,17079.32,Training Awards - Postgraduates
BEIS,UKRI - BBSRC,15/07/2021,Training Awards - Postgraduates,FG - Accounts & Business Planning,University of Cambridge,99000280,13685.25,Training Awards - Postgraduates
BEIS,UKRI - BBSRC,15/07/2021,Training Awards - Postgraduates,FG - Accounts & Business Planning,Cardiff University,99000281,13293.56,Training Awards - Postgraduates
BEIS,UKRI - BBSRC,15/07/2021,Training Awards - Postgraduates,FG - Accounts & Business Planning,Imperial College London,99000282,17407.91,Training Awards - Postgraduates
BEIS,UKRI - BBSRC,15/07/2021,Training Awards - Postgraduates,FG - Accounts & Business Planning,University of Glasgow,99000283,7302.36,Training Awards - Postgraduates
BEIS,UKRI - BBSRC,15/07/2021,Training Awards - Postgraduates,FG - Accounts & Business Planning,Babraham Institute,99000284,13475.36,Training Awards - Postgraduates
BEIS,UKRI - BBSRC,15/07/2021,Training Awards - Postgraduates,FG - Accounts & Business Planning,The University of Manchester,99000285,15651.00,Training Awards - Postgraduates
BEIS,UKRI - BBSRC,15/07/2021,Training Awards - Postgraduates,FG - Accounts & Business Planning,John Innes Centre,99000286,11947.68,Training Awards - Postgraduates
BEIS,UKRI - BBSRC,15/07/2021,Training Awards - Postgraduates,FG - Accounts & Business Planning,Royal Veterinary College,99000287,14500.57,Training Awards - Postgraduates
BEIS,UKRI - BBSRC,15/07/2021,Training Awards - Postgraduates,FG - Accounts & Business Planning,University of Oxford,99000288,16110.92,Training Awards - Postgraduates
BEIS,UKRI - BBSRC,15/07/2021,Training Awards - Postgraduates,FG - Accounts & Business Planning,University of Oxford,99000289,9369.56,Training Awards - Postgraduates
BEIS,UKRI - BBSRC,15/07/2021,Training Awards - Postgraduates,FG - Accounts & Business Planning,The University of Manchester,99000290,12486.97,Training Awards - Postgraduates
BEIS,UKRI - BBSRC,15/07/2021,Training Awards - Postgraduates,FG - Accounts & Business Planning,University of Dundee,99000291,-1200.66,Training Awards - Postgraduates
BEIS,UKRI - BBSRC,15/07/2021,Training Awards - Postgraduates,FG - Accounts & Business Planning,King's College London,99000292,-27371.03,Training Awards - Postgraduates
BEIS,UKRI - BBSRC,15/07/2021,Training Awards - Postgraduates,FG - Accounts & Business Planning,King's College London,99000293,5909.96,Training Awards - Postgraduates
BEIS,UKRI - BBSRC,15/07/2021,Training Awards - Postgraduates,FG - Accounts & Business Planning,University of Edinburgh,99000294,32718.89,Training Awards - Postgraduates
BEIS,UKRI - BBSRC,15/07/2021,Training Awards - Postgraduates,FG - Accounts & Business Planning,University of Cambridge,99001137,6376.62,Training Awards - Postgraduates
BEIS,UKRI - BBSRC,15/07/2021,Training Awards - Postgraduates,FG - Accounts & Business Planning,Queen Mary University of London,99001138,6876.62,Training Awards - Postgraduates
BEIS,UKRI - BBSRC,15/07/2021,Training Awards - Postgraduates,FG - Accounts & Business Planning,King's College London,99001139,6876.62,Training Awards - Postgraduates
BEIS,UKRI - BBSRC,15/07/2021,Training Awards - Postgraduates,FG - Accounts & Business Planning,University of Southampton GRANT,99001140,6376.62,Training Awards - Postgraduates
BEIS,UKRI - BBSRC,15/07/2021,Training Awards - Postgraduates,FG - Accounts & Business Planning,National Institute For Agricultural Botany (NIAB),99001141,6376.62,Training Awards - Postgraduates
BEIS,UKRI - BBSRC,15/07/2021,Training Awards - Postgraduates,FG - Accounts & Business Planning,National Institute For Agricultural Botany (NIAB),99001142,6376.62,Training Awards - Postgraduates
BEIS,UKRI - BBSRC,15/07/2021,Training Awards - Postgraduates,FG - Accounts & Business Planning,National Institute For Agricultural Botany (NIAB),99001143,6376.62,Training Awards - Postgraduates
BEIS,UKRI - BBSRC,15/07/2021,Training Awards - Postgraduates,FG - Accounts & Business Planning,National Institute For Agricultural Botany (NIAB),99001144,6376.62,Training Awards - Postgraduates
BEIS,UKRI - BBSRC,15/07/2021,Training Awards - Postgraduates,FG - Accounts & Business Planning,National Institute For Agricultural Botany (NIAB),99001145,6376.62,Training Awards - Postgraduates
BEIS,UKRI - BBSRC,15/07/2021,Training Awards - Postgraduates,FG - Accounts & Business Planning,National Institute For Agricultural Botany (NIAB),99001146,6376.62,Training Awards - Postgraduates
BEIS,UKRI - BBSRC,15/07/2021,Training Awards - Postgraduates,FG - Accounts & Business Planning,University of Reading,99001147,6376.62,Training Awards - Postgraduates
BEIS,UKRI - BBSRC,15/07/2021,Training Awards - Postgraduates,FG - Accounts & Business Planning,University of Reading,99001148,6376.62,Training Awards - Postgraduates
BEIS,UKRI - BBSRC,15/07/2021,Training Awards - Postgraduates,FG - Accounts & Business Planning,University of Reading,99001149,6376.62,Training Awards - Postgraduates
BEIS,UKRI - BBSRC,15/07/2021,Training Awards - Postgraduates,FG - Accounts & Business Planning,University of Oxford,99001150,6376.62,Training Awards - Postgraduates
BEIS,UKRI - BBSRC,15/07/2021,Training Awards - Postgraduates,FG - Accounts & Business Planning,University of Warwick,99001151,6376.62,Training Awards - Postgraduates
BEIS,UKRI - BBSRC,15/07/2021,Training Awards - Postgraduates,FG - Accounts & Business Planning,Queen Mary University of London,99001152,6876.62,Training Awards - Postgraduates
BEIS,UKRI - BBSRC,15/07/2021,Training Awards - Postgraduates,FG - Accounts & Business Planning,King's College London,99001153,6876.62,Training Awards - Postgraduates
BEIS,UKRI - BBSRC,15/07/2021,Training Awards - Postgraduates,FG - Accounts & Business Planning,King's College London,99001154,6876.62,Training Awards - Postgraduates
BEIS,UKRI - BBSRC,15/07/2021,Training Awards - Postgraduates,FG - Accounts & Business Planning,King's College London,99001155,6876.62,Training Awards - Postgraduates
BEIS,UKRI - BBSRC,15/07/2021,Training Awards - Postgraduates,FG - Accounts & Business Planning,Imperial College London,99001156,6876.62,Training Awards - Postgraduates
BEIS,UKRI - BBSRC,15/07/2021,Training Awards - Postgraduates,FG - Accounts & Business Planning,Imperial College London,99001157,6876.62,Training Awards - Postgraduates
BEIS,UKRI - BBSRC,15/07/2021,Training Awards - Postgraduates,FG - Accounts & Business Planning,University College London,99001158,6876.62,Training Awards - Postgraduates
BEIS,UKRI - BBSRC,15/07/2021,Training Awards - Postgraduates,FG - Accounts & Business Planning,University College London,99001159,6876.62,Training Awards - Postgraduates
BEIS,UKRI - BBSRC,15/07/2021,Training Awards - Postgraduates,FG - Accounts & Business Planning,University of Reading,99001160,2584.00,Training Awards - Postgraduates
BEIS,UKRI - BBSRC,15/07/2021,Training Awards - Postgraduates,FG - Accounts & Business Planning,University of Sheffield,99001161,6376.62,Training Awards - Postgraduates
BEIS,UKRI - BBSRC,15/07/2021,Training Awards - Postgraduates,FG - Accounts & Business Planning,University of Nottingham,99001162,6376.62,Training Awards - Postgraduates
BEIS,UKRI - BBSRC,15/07/2021,Training Awards - Postgraduates,FG - Accounts & Business Planning,University of Glasgow,99001163,6376.62,Training Awards - Postgraduates
BEIS,UKRI - BBSRC,15/07/2021,Training Awards - Postgraduates,FG - Accounts & Business Planning,University of Leeds,99001164,6376.62,Training Awards - Postgraduates
BEIS,UKRI - BBSRC,15/07/2021,Training Awards - Postgraduates,FG - Accounts & Business Planning,University of Cambridge,99001165,6376.62,Training Awards - Postgraduates
BEIS,UKRI - BBSRC,15/07/2021,Training Awards - Postgraduates,FG - Accounts & Business Planning,University of Cambridge,99001166,6376.62,Training Awards - Postgraduates
BEIS,UKRI - BBSRC,15/07/2021,Training Awards - Postgraduates,FG - Accounts & Business Planning,University of Cambridge,99001167,6376.62,Training Awards - Postgraduates
BEIS,UKRI - BBSRC,15/07/2021,Training Awards - Postgraduates,FG - Accounts & Business Planning,University of Cambridge,99001168,6376.62,Training Awards - Postgraduates
BEIS,UKRI - BBSRC,15/07/2021,Training Awards - Postgraduates,FG - Accounts & Business Planning,The University of Manchester,99001169,6376.62,Training Awards - Postgraduates
BEIS,UKRI - BBSRC,15/07/2021,Training Awards - Postgraduates,FG - Accounts & Business Planning,University of Exeter,99001170,6376.62,Training Awards - Postgraduates
BEIS,UKRI - BBSRC,15/07/2021,Training Awards - Postgraduates,FG - Accounts & Business Planning,Keele University,99001171,6376.62,Training Awards - Postgraduates
BEIS,UKRI - BBSRC,15/07/2021,Training Awards - Postgraduates,FG - Accounts & Business Planning,University of Edinburgh,99001172,6376.62,Training Awards - Postgraduates
BEIS,UKRI - BBSRC,15/07/2021,Training Awards - Postgraduates,FG - Accounts & Business Planning,University of Edinburgh,99001172,6376.62,Training Awards - Postgraduates
BEIS,UKRI - BBSRC,15/07/2021,Training Awards - Postgraduates,FG - Accounts & Business Planning,Wellcome Trust Sanger Institute,99001173,6376.62,Training Awards - Postgraduates
BEIS,UKRI - BBSRC,15/07/2021,Training Awards - Postgraduates,FG - Accounts & Business Planning,University of Sheffield,99001175,6376.62,Training Awards - Postgraduates
BEIS,UKRI - BBSRC,15/07/2021,Training Awards - Postgraduates,FG - Accounts & Business Planning,University of Birmingham GRANT,99001176,6376.62,Training Awards - Postgraduates
BEIS,UKRI - BBSRC,15/07/2021,Training Awards - Postgraduates,FG - Accounts & Business Planning,The University of Manchester,99001177,6376.62,Training Awards - Postgraduates
BEIS,UKRI - BBSRC,15/07/2021,Training Awards - Postgraduates,FG - Accounts & Business Planning,University of Exeter,99001178,6376.62,Training Awards - Postgraduates
BEIS,UKRI - BBSRC,15/07/2021,Training Awards - Postgraduates,FG - Accounts & Business Planning,University of Exeter,99001179,6376.62,Training Awards - Postgraduates
BEIS,UKRI - BBSRC,15/07/2021,Training Awards - Postgraduates,FG - Accounts & Business Planning,University of Cambridge,99001180,6376.62,Training Awards - Postgraduates
BEIS,UKRI - BBSRC,15/07/2021,Training Awards - Postgraduates,FG - Accounts & Business Planning,University of Cambridge,99001181,6376.62,Training Awards - Postgraduates
BEIS,UKRI - BBSRC,15/07/2021,Training Awards - Postgraduates,FG - Accounts & Business Planning,Babraham Institute,99001182,6376.62,Training Awards - Postgraduates
BEIS,UKRI - BBSRC,15/07/2021,Training Awards - Postgraduates,FG - Accounts & Business Planning,University of Nottingham,99001183,6376.62,Training Awards - Postgraduates
BEIS,UKRI - BBSRC,15/07/2021,Training Awards - Postgraduates,FG - Accounts & Business Planning,University of Huddersfield,99001184,6376.62,Training Awards - Postgraduates
BEIS,UKRI - BBSRC,15/07/2021,Training Awards - Postgraduates,FG - Accounts & Business Planning,University of Glasgow,99001185,6376.62,Training Awards - Postgraduates
BEIS,UKRI - BBSRC,15/07/2021,Training Awards - Postgraduates,FG - Accounts & Business Planning,University of Sheffield,99001186,6001.53,Training Awards - Postgraduates
BEIS,UKRI - BBSRC,15/07/2021,Training Awards - Postgraduates,FG - Accounts & Business Planning,University of York,99001187,6376.62,Training Awards - Postgraduates
BEIS,UKRI - BBSRC,15/07/2021,Training Awards - Postgraduates,FG - Accounts & Business Planning,The University of Manchester,99001188,6267.44,Training Awards - Postgraduates
BEIS,UKRI - BBSRC,15/07/2021,Training Awards - Postgraduates,FG - Accounts & Business Planning,The University of Manchester,99001189,6267.44,Training Awards - Postgraduates
BEIS,UKRI - BBSRC,15/07/2021,Training Awards - Postgraduates,FG - Accounts & Business Planning,The University of Manchester,99001190,6267.44,Training Awards - Postgraduates
BEIS,UKRI - BBSRC,15/07/2021,Training Awards - Postgraduates,FG - Accounts & Business Planning,University of Nottingham,99001191,6267.44,Training Awards - Postgraduates
BEIS,UKRI - BBSRC,15/07/2021,Training Awards - Postgraduates,FG - Accounts & Business Planning,University of Warwick,99001192,6267.44,Training Awards - Postgraduates
BEIS,UKRI - BBSRC,15/07/2021,Training Awards - Postgraduates,FG - Accounts & Business Planning,University of Nottingham,99001193,6267.44,Training Awards - Postgraduates
BEIS,UKRI - BBSRC,15/07/2021,Training Awards - Postgraduates,FG - Accounts & Business Planning,University of Durham,99001194,6267.44,Training Awards - Postgraduates
BEIS,UKRI - BBSRC,15/07/2021,Training Awards - Postgraduates,FG - Accounts & Business Planning,University of Cambridge,99001195,6267.44,Training Awards - Postgraduates
BEIS,UKRI - BBSRC,15/07/2021,Training Awards - Postgraduates,FG - Accounts & Business Planning,National Institute For Agricultural Botany (NIAB),99001196,6267.44,Training Awards - Postgraduates
BEIS,UKRI - BBSRC,15/07/2021,Training Awards - Postgraduates,FG - Accounts & Business Planning,National Institute For Agricultural Botany (NIAB),99001197,6267.44,Training Awards - Postgraduates
BEIS,UKRI - BBSRC,15/07/2021,Training Awards - Postgraduates,FG - Accounts & Business Planning,University of Exeter,99001198,6267.44,Training Awards - Postgraduates
BEIS,UKRI - BBSRC,15/07/2021,Training Awards - Postgraduates,FG - Accounts & Business Planning,University of Reading,99001199,6267.44,Training Awards - Postgraduates
BEIS,UKRI - BBSRC,15/07/2021,Training Awards - Postgraduates,FG - Accounts & Business Planning,National Institute For Agricultural Botany (NIAB),99001200,6267.44,Training Awards - Postgraduates
BEIS,UKRI - BBSRC,15/07/2021,Training Awards - Postgraduates,FG - Accounts & Business Planning,National Institute For Agricultural Botany (NIAB),99001201,6267.44,Training Awards - Postgraduates
BEIS,UKRI - BBSRC,15/07/2021,Training Awards - Postgraduates,FG - Accounts & Business Planning,National Institute For Agricultural Botany (NIAB),99001202,6267.44,Training Awards - Postgraduates
BEIS,UKRI - BBSRC,15/07/2021,Training Awards - Postgraduates,FG - Accounts & Business Planning,National Institute For Agricultural Botany (NIAB),99001203,6267.44,Training Awards - Postgraduates
BEIS,UKRI - BBSRC,15/07/2021,Training Awards - Postgraduates,FG - Accounts & Business Planning,Quadram Institute Bioscience,99001204,6267.44,Training Awards - Postgraduates
BEIS,UKRI - BBSRC,15/07/2021,Training Awards - Postgraduates,FG - Accounts & Business Planning,University College London,99001205,6344.49,Training Awards - Postgraduates
BEIS,UKRI - BBSRC,15/07/2021,Training Awards - Postgraduates,FG - Accounts & Business Planning,Lancaster University,99001206,6267.44,Training Awards - Postgraduates
BEIS,UKRI - BBSRC,15/07/2021,Training Awards - Postgraduates,FG - Accounts & Business Planning,University of Nottingham,99001207,6267.44,Training Awards - Postgraduates
BEIS,UKRI - BBSRC,15/07/2021,Training Awards - Postgraduates,FG - Accounts & Business Planning,University of Liverpool,99001208,6267.44,Training Awards - Postgraduates
BEIS,UKRI - BBSRC,15/07/2021,Training Awards - Postgraduates,FG - Accounts & Business Planning,University of Strathclyde,99001209,6267.44,Training Awards - Postgraduates
BEIS,UKRI - BBSRC,15/07/2021,Training Awards - Postgraduates,FG - Accounts & Business Planning,"Royal Holloway, University of London",99001210,6767.44,Training Awards - Postgraduates
BEIS,UKRI - BBSRC,15/07/2021,Training Awards - Postgraduates,FG - Accounts & Business Planning,Lancaster University,99001211,6267.44,Training Awards - Postgraduates
BEIS,UKRI - BBSRC,15/07/2021,Training Awards - Postgraduates,FG - Accounts & Business Planning,University of Reading,99001212,6267.44,Training Awards - Postgraduates
BEIS,UKRI - BBSRC,15/07/2021,Training Awards - Postgraduates,FG - Accounts & Business Planning,Lancaster University,99001213,6267.44,Training Awards - Postgraduates
BEIS,UKRI - BBSRC,15/07/2021,Training Awards - Postgraduates,FG - Accounts & Business Planning,Lancaster University,99001214,6267.44,Training Awards - Postgraduates
BEIS,UKRI - BBSRC,15/07/2021,Training Awards - Postgraduates,FG - Accounts & Business Planning,Lancaster University,99001215,6267.44,Training Awards - Postgraduates
BEIS,UKRI - BBSRC,15/07/2021,Training Awards - Postgraduates,FG - Accounts & Business Planning,University of Liverpool,99001216,6267.44,Training Awards - Postgraduates
BEIS,UKRI - BBSRC,15/07/2021,Training Awards - Postgraduates,FG - Accounts & Business Planning,Queen Mary University of London,99001217,6767.44,Training Awards - Postgraduates
BEIS,UKRI - BBSRC,15/07/2021,Training Awards - Postgraduates,FG - Accounts & Business Planning,King's College London,99001218,6767.44,Training Awards - Postgraduates
BEIS,UKRI - BBSRC,15/07/2021,Training Awards - Postgraduates,FG - Accounts & Business Planning,University of Birmingham GRANT,99001219,6267.44,Training Awards - Postgraduates
BEIS,UKRI - BBSRC,15/07/2021,Training Awards - Postgraduates,FG - Accounts & Business Planning,University of Strathclyde,99001220,6267.44,Training Awards - Postgraduates
BEIS,UKRI - BBSRC,15/07/2021,Training Awards - Postgraduates,FG - Accounts & Business Planning,University of Strathclyde,99001221,6267.44,Training Awards - Postgraduates
BEIS,UKRI - BBSRC,15/07/2021,Training Awards - Postgraduates,FG - Accounts & Business Planning,University of York,99001222,6267.44,Training Awards - Postgraduates
BEIS,UKRI - BBSRC,15/07/2021,Training Awards - Postgraduates,FG - Accounts & Business Planning,University of Newcastle Upon Tyne,99001223,6267.44,Training Awards - Postgraduates
BEIS,UKRI - BBSRC,15/07/2021,Training Awards - Postgraduates,FG - Accounts & Business Planning,University of Edinburgh,99001224,6267.44,Training Awards - Postgraduates
BEIS,UKRI - BBSRC,15/07/2021,Training Awards - Postgraduates,FG - Accounts & Business Planning,Lancaster University,99001225,6267.44,Training Awards - Postgraduates
BEIS,UKRI - BBSRC,15/07/2021,Training Awards - Postgraduates,FG - Accounts & Business Planning,University of Newcastle Upon Tyne,99001226,6267.44,Training Awards - Postgraduates
BEIS,UKRI - BBSRC,15/07/2021,Training Awards - Postgraduates,FG - Accounts & Business Planning,The University of Manchester,99001227,6267.44,Training Awards - Postgraduates
BEIS,UKRI - BBSRC,15/07/2021,Training Awards - Postgraduates,FG - Accounts & Business Planning,The Scottish Association for Marine Science (SAMS Group),99001228,6267.44,Training Awards - Postgraduates
BEIS,UKRI - BBSRC,15/07/2021,Training Awards - Postgraduates,FG - Accounts & Business Planning,University of Edinburgh,99001229,6267.44,Training Awards - Postgraduates
BEIS,UKRI - BBSRC,15/07/2021,Training Awards - Postgraduates,FG - Accounts & Business Planning,University of Edinburgh,99001230,6267.44,Training Awards - Postgraduates
BEIS,UKRI - BBSRC,15/07/2021,Training Awards - Postgraduates,FG - Accounts & Business Planning,The University of Manchester,99001231,6267.44,Training Awards - Postgraduates
BEIS,UKRI - BBSRC,15/07/2021,Training Awards - Postgraduates,FG - Accounts & Business Planning,University of Sheffield,99001232,6267.44,Training Awards - Postgraduates
BEIS,UKRI - BBSRC,15/07/2021,Training Awards - Postgraduates,FG - Accounts & Business Planning,University of Sheffield,99001233,6267.44,Training Awards - Postgraduates
BEIS,UKRI - BBSRC,15/07/2021,Training Awards - Postgraduates,FG - Accounts & Business Planning,University of Cambridge,99001234,6267.44,Training Awards - Postgraduates
BEIS,UKRI - BBSRC,15/07/2021,Training Awards - Postgraduates,FG - Accounts & Business Planning,King's College London,99001235,6767.44,Training Awards - Postgraduates
BEIS,UKRI - BBSRC,15/07/2021,Training Awards - Postgraduates,FG - Accounts & Business Planning,Sheffield Hallam University,99001236,6267.44,Training Awards - Postgraduates
BEIS,UKRI - BBSRC,15/07/2021,Training Awards - Postgraduates,FG - Accounts & Business Planning,University of Leeds,99001237,6267.44,Training Awards - Postgraduates
BEIS,UKRI - BBSRC,15/07/2021,Training Awards - Postgraduates,FG - Accounts & Business Planning,Babraham Institute,99001238,6267.44,Training Awards - Postgraduates
BEIS,UKRI - BBSRC,15/07/2021,Training Awards - Postgraduates,FG - Accounts & Business Planning,The University of Manchester,99001239,6267.44,Training Awards - Postgraduates
BEIS,UKRI - BBSRC,15/07/2021,Training Awards - Postgraduates,FG - Accounts & Business Planning,The University of Manchester,99001240,6267.44,Training Awards - Postgraduates
BEIS,UKRI - BBSRC,15/07/2021,Training Awards - Postgraduates,FG - Accounts & Business Planning,University of Nottingham,99001241,6267.44,Training Awards - Postgraduates
BEIS,UKRI - BBSRC,15/07/2021,Training Awards - Postgraduates,FG - Accounts & Business Planning,University of Nottingham,99001242,6267.44,Training Awards - Postgraduates
BEIS,UKRI - BBSRC,15/07/2021,Training Awards - Postgraduates,FG - Accounts & Business Planning,University of Nottingham,99001243,6267.44,Training Awards - Postgraduates
BEIS,UKRI - BBSRC,15/07/2021,Training Awards - Postgraduates,FG - Accounts & Business Planning,Cardiff University,99001244,6267.44,Training Awards - Postgraduates
BEIS,UKRI - BBSRC,15/07/2021,Training Awards - Postgraduates,FG - Accounts & Business Planning,Queen's University Belfast GRANT,99001245,6267.44,Training Awards - Postgraduates
BEIS,UKRI - BBSRC,15/07/2021,Training Awards - Postgraduates,FG - Accounts & Business Planning,University of Cambridge,99001246,6267.44,Training Awards - Postgraduates
BEIS,UKRI - BBSRC,15/07/2021,Training Awards - Postgraduates,FG - Accounts & Business Planning,University of Glasgow,99001247,6267.44,Training Awards - Postgraduates
BEIS,UKRI - BBSRC,15/07/2021,Training Awards - Postgraduates,FG - Accounts & Business Planning,University of Glasgow,99001248,6267.44,Training Awards - Postgraduates
BEIS,UKRI - BBSRC,15/07/2021,Training Awards - Postgraduates,FG - Accounts & Business Planning,University of Glasgow,99001249,6267.44,Training Awards - Postgraduates
BEIS,UKRI - BBSRC,15/07/2021,Training Awards - Postgraduates,FG - Accounts & Business Planning,University College London,99001250,6767.44,Training Awards - Postgraduates
BEIS,UKRI - BBSRC,15/07/2021,Training Awards - Postgraduates,FG - Accounts & Business Planning,University College London,99001251,6767.44,Training Awards - Postgraduates
BEIS,UKRI - BBSRC,15/07/2021,Training Awards - Postgraduates,FG - Accounts & Business Planning,European Bioinformatics Institute,99001252,6267.44,Training Awards - Postgraduates
BEIS,UKRI - BBSRC,15/07/2021,Training Awards - Postgraduates,FG - Accounts & Business Planning,Rothamsted Research Ltd,99001253,6267.44,Training Awards - Postgraduates
BEIS,UKRI - BBSRC,15/07/2021,Training Awards - Postgraduates,FG - Accounts & Business Planning,University of Newcastle Upon Tyne,99001254,6267.44,Training Awards - Postgraduates
BEIS,UKRI - BBSRC,15/07/2021,Training Awards - Postgraduates,FG - Accounts & Business Planning,University of Newcastle Upon Tyne,99001255,6267.44,Training Awards - Postgraduates
BEIS,UKRI - BBSRC,15/07/2021,Training Awards - Postgraduates,FG - Accounts & Business Planning,University of Newcastle Upon Tyne,99001256,6267.44,Training Awards - Postgraduates
BEIS,UKRI - BBSRC,15/07/2021,Training Awards - Postgraduates,FG - Accounts & Business Planning,University of Bristol GRANT,99001257,6267.44,Training Awards - Postgraduates
BEIS,UKRI - BBSRC,15/07/2021,Training Awards - Postgraduates,FG - Accounts & Business Planning,University of Exeter,99001258,6267.44,Training Awards - Postgraduates
BEIS,UKRI - BBSRC,15/07/2021,Training Awards - Postgraduates,FG - Accounts & Business Planning,University of Birmingham GRANT,99001259,6267.44,Training Awards - Postgraduates
BEIS,UKRI - BBSRC,15/07/2021,Training Awards - Postgraduates,FG - Accounts & Business Planning,University of Birmingham GRANT,99001260,6267.44,Training Awards - Postgraduates
BEIS,UKRI - BBSRC,15/07/2021,Training Awards - Postgraduates,FG - Accounts & Business Planning,University of York,99001261,6267.44,Training Awards - Postgraduates
BEIS,UKRI - BBSRC,15/07/2021,Training Awards - Postgraduates,FG - Accounts & Business Planning,University of York,99001262,6267.44,Training Awards - Postgraduates
BEIS,UKRI - BBSRC,15/07/2021,Training Awards - Postgraduates,FG - Accounts & Business Planning,Queen Mary University of London,99001263,6767.44,Training Awards - Postgraduates
BEIS,UKRI - BBSRC,15/07/2021,Training Awards - Postgraduates,FG - Accounts & Business Planning,University of Edinburgh,99001264,6267.44,Training Awards - Postgraduates
BEIS,UKRI - BBSRC,15/07/2021,Training Awards - Postgraduates,FG - Accounts & Business Planning,University of Reading,99001265,6267.44,Training Awards - Postgraduates
BEIS,UKRI - BBSRC,15/07/2021,Training Awards - Postgraduates,FG - Accounts & Business Planning,University of Leeds,99001266,6267.44,Training Awards - Postgraduates
BEIS,UKRI - BBSRC,15/07/2021,Training Awards - Postgraduates,FG - Accounts & Business Planning,University of Durham,99001267,6267.44,Training Awards - Postgraduates
BEIS,UKRI - BBSRC,15/07/2021,Training Awards - Postgraduates,FG - Accounts & Business Planning,Keele University,99001268,6267.44,Training Awards - Postgraduates
BEIS,UKRI - BBSRC,15/07/2021,Training Awards - Postgraduates,FG - Accounts & Business Planning,King's College London,99001269,6767.44,Training Awards - Postgraduates
BEIS,UKRI - BBSRC,15/07/2021,Training Awards - Postgraduates,FG - Accounts & Business Planning,King's College London,99001270,6767.44,Training Awards - Postgraduates
BEIS,UKRI - BBSRC,15/07/2021,Training Awards - Postgraduates,FG - Accounts & Business Planning,Imperial College London,99001271,7222.95,Training Awards - Postgraduates
BEIS,UKRI - BBSRC,15/07/2021,Training Awards - Postgraduates,FG - Accounts & Business Planning,Imperial College London,99001271,7223.03,Training Awards - Postgraduates
BEIS,UKRI - BBSRC,15/07/2021,Training Awards - Postgraduates,FG - Accounts & Business Planning,Imperial College London,99001271,7222.95,Training Awards - Postgraduates
BEIS,UKRI - BBSRC,15/07/2021,Training Awards - Postgraduates,FG - Accounts & Business Planning,Imperial College London,99001271,7222.95,Training Awards - Postgraduates
BEIS,UKRI - BBSRC,15/07/2021,Training Awards - Postgraduates,FG - Accounts & Business Planning,Imperial College London,99001271,7222.95,Training Awards - Postgraduates
BEIS,UKRI - BBSRC,15/07/2021,Training Awards - Postgraduates,FG - Accounts & Business Planning,Imperial College London,99001272,6767.44,Training Awards - Postgraduates
BEIS,UKRI - BBSRC,15/07/2021,Training Awards - Postgraduates,FG - Accounts & Business Planning,Imperial College London,99001273,6767.44,Training Awards - Postgraduates
BEIS,UKRI - BBSRC,15/07/2021,Training Awards - Postgraduates,FG - Accounts & Business Planning,University of Liverpool,99001274,6267.44,Training Awards - Postgraduates
BEIS,UKRI - BBSRC,15/07/2021,Training Awards - Postgraduates,FG - Accounts & Business Planning,University of Cambridge,99001275,6267.44,Training Awards - Postgraduates
BEIS,UKRI - BBSRC,15/07/2021,Training Awards - Postgraduates,FG - Accounts & Business Planning,University of Sheffield,99001276,6267.44,Training Awards - Postgraduates
BEIS,UKRI - BBSRC,15/07/2021,Training Awards - Postgraduates,FG - Accounts & Business Planning,University of Southampton GRANT,99001277,6267.44,Training Awards - Postgraduates
BEIS,UKRI - BBSRC,15/07/2021,Training Awards - Postgraduates,FG - Accounts & Business Planning,University of Southampton GRANT,99001278,6267.44,Training Awards - Postgraduates
BEIS,UKRI - BBSRC,15/07/2021,Training Awards - Postgraduates,FG - Accounts & Business Planning,University of Hertfordshire,99001279,6267.44,Training Awards - Postgraduates
BEIS,UKRI - BBSRC,15/07/2021,Training Awards - Postgraduates,FG - Accounts & Business Planning,University of Dundee,99001280,6267.44,Training Awards - Postgraduates
BEIS,UKRI - BBSRC,15/07/2021,Training Awards - Postgraduates,FG - Accounts & Business Planning,John Innes Centre,99001281,24988.00,Training Awards - Postgraduates
BEIS,UKRI - BBSRC,15/07/2021,Training Awards - Postgraduates,FG - Accounts & Business Planning,University of Edinburgh,99001282,10057.50,Training Awards - Postgraduates
BEIS,UKRI - BBSRC,15/07/2021,Training Awards - Postgraduates,FG - Accounts & Business Planning,University of Oxford,99001283,176204.00,Training Awards - Postgraduates
BEIS,UKRI - BBSRC,15/07/2021,Training Awards - Postgraduates,FG - Accounts & Business Planning,University of Reading,99001284,151032.00,Training Awards - Postgraduates
BEIS,UKRI - BBSRC,15/07/2021,Training Awards - Postgraduates,FG - Accounts & Business Planning,University of Southampton GRANT,99001285,132153.00,Training Awards - Postgraduates
BEIS,UKRI - BBSRC,15/07/2021,Training Awards - Postgraduates,FG - Accounts & Business Planning,University of Edinburgh,99001286,50344.00,Training Awards - Postgraduates
BEIS,UKRI - BBSRC,15/07/2021,Training Awards - Postgraduates,FG - Accounts & Business Planning,University of Edinburgh,99001286,51150.00,Training Awards - Postgraduates
BEIS,UKRI - BBSRC,15/07/2021,Training Awards - Postgraduates,FG - Accounts & Business Planning,University of Bristol GRANT,99001287,169911.00,Training Awards - Postgraduates
BEIS,UKRI - BBSRC,15/07/2021,Training Awards - Postgraduates,FG - Accounts & Business Planning,The University of Manchester,99001288,169911.00,Training Awards - Postgraduates
BEIS,UKRI - BBSRC,15/07/2021,Training Awards - Postgraduates,FG - Accounts & Business Planning,John Innes Centre,99001289,169911.00,Training Awards - Postgraduates
BEIS,UKRI - BBSRC,15/07/2021,Training Awards - Postgraduates,FG - Accounts & Business Planning,University College London,99001290,298892.00,Training Awards - Postgraduates
BEIS,UKRI - BBSRC,15/07/2021,Training Awards - Postgraduates,FG - Accounts & Business Planning,University of Liverpool,99001291,106981.00,Training Awards - Postgraduates
BEIS,UKRI - BBSRC,15/07/2021,Training Awards - Postgraduates,FG - Accounts & Business Planning,University of Nottingham,99001292,188790.00,Training Awards - Postgraduates
BEIS,UKRI - BBSRC,15/07/2021,Training Awards - Postgraduates,FG - Accounts & Business Planning,University of Warwick,99001293,239718.50,Training Awards - Postgraduates
BEIS,UKRI - BBSRC,15/07/2021,Training Awards - Postgraduates,FG - Accounts & Business Planning,University of Leeds,99001294,132153.00,Training Awards - Postgraduates
BEIS,UKRI - BBSRC,15/07/2021,Training Awards - Postgraduates,FG - Accounts & Business Planning,University of Edinburgh,99001295,8252.85,Training Awards - Postgraduates
BEIS,UKRI - BBSRC,15/07/2021,Training Awards - Postgraduates,FG - Accounts & Business Planning,National Institute For Agricultural Botany (NIAB),99001296,6189.63,Training Awards - Postgraduates
BEIS,UKRI - BBSRC,15/07/2021,Training Awards - Postgraduates,FG - Accounts & Business Planning,University of Cambridge,99001297,6189.63,Training Awards - Postgraduates
BEIS,UKRI - BBSRC,15/07/2021,Training Awards - Postgraduates,FG - Accounts & Business Planning,University of Oxford,99001298,6189.63,Training Awards - Postgraduates
BEIS,UKRI - BBSRC,15/07/2021,Training Awards - Postgraduates,FG - Accounts & Business Planning,University of Oxford,99001299,6189.63,Training Awards - Postgraduates
BEIS,UKRI - BBSRC,15/07/2021,Training Awards - Postgraduates,FG - Accounts & Business Planning,University of Oxford,99001300,6189.63,Training Awards - Postgraduates
BEIS,UKRI - BBSRC,15/07/2021,Training Awards - Postgraduates,FG - Accounts & Business Planning,University of Oxford,99001301,6189.63,Training Awards - Postgraduates
BEIS,UKRI - BBSRC,15/07/2021,Training Awards - Postgraduates,FG - Accounts & Business Planning,University of Cambridge,99001302,6189.63,Training Awards - Postgraduates
BEIS,UKRI - BBSRC,15/07/2021,Training Awards - Postgraduates,FG - Accounts & Business Planning,University of Cambridge,99001303,6189.63,Training Awards - Postgraduates
BEIS,UKRI - BBSRC,15/07/2021,Training Awards - Postgraduates,FG - Accounts & Business Planning,King's College London,99001304,8919.51,Training Awards - Postgraduates
BEIS,UKRI - BBSRC,15/07/2021,Training Awards - Postgraduates,FG - Accounts & Business Planning,Queen Mary University of London,99001305,6243.66,Training Awards - Postgraduates
BEIS,UKRI - BBSRC,15/07/2021,Training Awards - Postgraduates,FG - Accounts & Business Planning,London School of Hygiene & Tropical Medicine,99001306,6689.63,Training Awards - Postgraduates
BEIS,UKRI - BBSRC,15/07/2021,Training Awards - Postgraduates,FG - Accounts & Business Planning,University College London,99001307,6689.63,Training Awards - Postgraduates
BEIS,UKRI - BBSRC,15/07/2021,Training Awards - Postgraduates,FG - Accounts & Business Planning,University College London,99001308,6689.63,Training Awards - Postgraduates
BEIS,UKRI - BBSRC,15/07/2021,Training Awards - Postgraduates,FG - Accounts & Business Planning,King's College London,99001309,6689.63,Training Awards - Postgraduates
BEIS,UKRI - BBSRC,15/07/2021,Training Awards - Postgraduates,FG - Accounts & Business Planning,University of Leeds,99001310,6189.63,Training Awards - Postgraduates
BEIS,UKRI - BBSRC,15/07/2021,Training Awards - Postgraduates,FG - Accounts & Business Planning,University of Bath,99001311,6189.63,Training Awards - Postgraduates
BEIS,UKRI - BBSRC,15/07/2021,Training Awards - Postgraduates,FG - Accounts & Business Planning,University of Exeter,99001312,6189.63,Training Awards - Postgraduates
BEIS,UKRI - BBSRC,15/07/2021,Training Awards - Postgraduates,FG - Accounts & Business Planning,National Institute For Agricultural Botany (NIAB),99001313,6189.63,Training Awards - Postgraduates
BEIS,UKRI - BBSRC,15/07/2021,Training Awards - Postgraduates,FG - Accounts & Business Planning,Earlham Institute,99001314,6189.63,Training Awards - Postgraduates
BEIS,UKRI - BBSRC,15/07/2021,Training Awards - Postgraduates,FG - Accounts & Business Planning,Earlham Institute,99001315,6189.63,Training Awards - Postgraduates
BEIS,UKRI - BBSRC,15/07/2021,Training Awards - Postgraduates,FG - Accounts & Business Planning,John Innes Centre,99001316,6189.63,Training Awards - Postgraduates
BEIS,UKRI - BBSRC,15/07/2021,Training Awards - Postgraduates,FG - Accounts & Business Planning,University of York,99001317,6189.63,Training Awards - Postgraduates
BEIS,UKRI - BBSRC,15/07/2021,Training Awards - Postgraduates,FG - Accounts & Business Planning,University of East Anglia,99001318,6189.63,Training Awards - Postgraduates
BEIS,UKRI - BBSRC,15/07/2021,Training Awards - Postgraduates,FG - Accounts & Business Planning,University of Edinburgh,99001319,6189.63,Training Awards - Postgraduates
BEIS,UKRI - BBSRC,15/07/2021,Training Awards - Postgraduates,FG - Accounts & Business Planning,University of Edinburgh,99001320,6189.63,Training Awards - Postgraduates
BEIS,UKRI - BBSRC,15/07/2021,Training Awards - Postgraduates,FG - Accounts & Business Planning,University of Edinburgh,99001321,6189.63,Training Awards - Postgraduates
BEIS,UKRI - BBSRC,15/07/2021,Training Awards - Postgraduates,FG - Accounts & Business Planning,University of Nottingham,99001322,6189.63,Training Awards - Postgraduates
BEIS,UKRI - BBSRC,15/07/2021,Training Awards - Postgraduates,FG - Accounts & Business Planning,University of Aberdeen,99001323,6189.63,Training Awards - Postgraduates
BEIS,UKRI - BBSRC,15/07/2021,Training Awards - Postgraduates,FG - Accounts & Business Planning,University of Aberdeen,99001324,6189.63,Training Awards - Postgraduates
BEIS,UKRI - BBSRC,15/07/2021,Training Awards - Postgraduates,FG - Accounts & Business Planning,University of Warwick,99001325,6189.63,Training Awards - Postgraduates
BEIS,UKRI - BBSRC,15/07/2021,Training Awards - Postgraduates,FG - Accounts & Business Planning,University of Reading,99001326,6189.63,Training Awards - Postgraduates
BEIS,UKRI - BBSRC,15/07/2021,Training Awards - Postgraduates,FG - Accounts & Business Planning,University of Sheffield,99001327,6189.63,Training Awards - Postgraduates
BEIS,UKRI - BBSRC,15/07/2021,Training Awards - Postgraduates,FG - Accounts & Business Planning,Imperial College London,99001328,6689.63,Training Awards - Postgraduates
BEIS,UKRI - BBSRC,15/07/2021,Training Awards - Postgraduates,FG - Accounts & Business Planning,University of Bristol GRANT,99001329,6189.63,Training Awards - Postgraduates
BEIS,UKRI - BBSRC,15/07/2021,Training Awards - Postgraduates,FG - Accounts & Business Planning,University of Birmingham GRANT,99001330,6189.63,Training Awards - Postgraduates
BEIS,UKRI - BBSRC,15/07/2021,Training Awards - Postgraduates,FG - Accounts & Business Planning,University of Warwick,99001331,6189.63,Training Awards - Postgraduates
BEIS,UKRI - BBSRC,15/07/2021,Training Awards - Postgraduates,FG - Accounts & Business Planning,University of Glasgow,99001332,6189.63,Training Awards - Postgraduates
BEIS,UKRI - BBSRC,15/07/2021,Training Awards - Postgraduates,FG - Accounts & Business Planning,University of Nottingham,99001333,6189.63,Training Awards - Postgraduates
BEIS,UKRI - BBSRC,15/07/2021,Training Awards - Postgraduates,FG - Accounts & Business Planning,University of Cambridge,99001334,5501.89,Training Awards - Postgraduates
BEIS,UKRI - BBSRC,15/07/2021,Training Awards - Postgraduates,FG - Accounts & Business Planning,University of Leeds,99001335,6189.63,Training Awards - Postgraduates
BEIS,UKRI - BBSRC,15/07/2021,Training Awards - Postgraduates,FG - Accounts & Business Planning,The University of Manchester,99001336,4285.12,Training Awards - Postgraduates
BEIS,UKRI - BBSRC,15/07/2021,Training Awards - Postgraduates,FG - Accounts & Business Planning,Lancaster University,99001337,6189.63,Training Awards - Postgraduates
BEIS,UKRI - BBSRC,15/07/2021,Training Awards - Postgraduates,FG - Accounts & Business Planning,University of Reading,99001338,6189.63,Training Awards - Postgraduates
BEIS,UKRI - BBSRC,15/07/2021,Training Awards - Postgraduates,FG - Accounts & Business Planning,National Institute For Agricultural Botany (NIAB),99001339,6189.63,Training Awards - Postgraduates
BEIS,UKRI - BBSRC,15/07/2021,Training Awards - Postgraduates,FG - Accounts & Business Planning,National Institute For Agricultural Botany (NIAB),99001340,6189.63,Training Awards - Postgraduates
BEIS,UKRI - BBSRC,15/07/2021,Training Awards - Postgraduates,FG - Accounts & Business Planning,Sheffield Hallam University,99001341,6189.63,Training Awards - Postgraduates
BEIS,UKRI - BBSRC,15/07/2021,Training Awards - Postgraduates,FG - Accounts & Business Planning,National Institute For Agricultural Botany (NIAB),99001342,6189.63,Training Awards - Postgraduates
BEIS,UKRI - BBSRC,15/07/2021,Training Awards - Postgraduates,FG - Accounts & Business Planning,University of St Andrews,99001343,6189.63,Training Awards - Postgraduates
BEIS,UKRI - BBSRC,15/07/2021,Training Awards - Postgraduates,FG - Accounts & Business Planning,Robert Gordon University,99001344,6189.63,Training Awards - Postgraduates
BEIS,UKRI - BBSRC,15/07/2021,Training Awards - Postgraduates,FG - Accounts & Business Planning,Heriot Watt University,99001345,6189.63,Training Awards - Postgraduates
BEIS,UKRI - BBSRC,15/07/2021,Training Awards - Postgraduates,FG - Accounts & Business Planning,University of Sheffield,99001346,6189.63,Training Awards - Postgraduates
BEIS,UKRI - BBSRC,15/07/2021,Training Awards - Postgraduates,FG - Accounts & Business Planning,University of Strathclyde,99001347,6189.63,Training Awards - Postgraduates
BEIS,UKRI - BBSRC,15/07/2021,Training Awards - Postgraduates,FG - Accounts & Business Planning,University of Strathclyde,99001348,6189.63,Training Awards - Postgraduates
BEIS,UKRI - BBSRC,15/07/2021,Training Awards - Postgraduates,FG - Accounts & Business Planning,University of Surrey,99001349,6189.63,Training Awards - Postgraduates
BEIS,UKRI - BBSRC,15/07/2021,Training Awards - Postgraduates,FG - Accounts & Business Planning,University of York,99001350,6189.63,Training Awards - Postgraduates
BEIS,UKRI - BBSRC,15/07/2021,Training Awards - Postgraduates,FG - Accounts & Business Planning,University of Exeter,99001351,6189.63,Training Awards - Postgraduates
BEIS,UKRI - BBSRC,15/07/2021,Training Awards - Postgraduates,FG - Accounts & Business Planning,University of Birmingham GRANT,99001352,6189.63,Training Awards - Postgraduates
BEIS,UKRI - BBSRC,15/07/2021,Training Awards - Postgraduates,FG - Accounts & Business Planning,University of Leicester,99001353,6189.63,Training Awards - Postgraduates
BEIS,UKRI - BBSRC,15/07/2021,Training Awards - Postgraduates,FG - Accounts & Business Planning,The University of Manchester,99001354,6189.63,Training Awards - Postgraduates
BEIS,UKRI - BBSRC,15/07/2021,Training Awards - Postgraduates,FG - Accounts & Business Planning,University of Newcastle Upon Tyne,99001355,6189.63,Training Awards - Postgraduates
BEIS,UKRI - BBSRC,15/07/2021,Training Awards - Postgraduates,FG - Accounts & Business Planning,University of Nottingham,99001356,6189.63,Training Awards - Postgraduates
BEIS,UKRI - BBSRC,15/07/2021,Training Awards - Postgraduates,FG - Accounts & Business Planning,University of Oxford,99001357,6189.63,Training Awards - Postgraduates
BEIS,UKRI - BBSRC,15/07/2021,Training Awards - Postgraduates,FG - Accounts & Business Planning,University of Oxford,99001358,6189.63,Training Awards - Postgraduates
BEIS,UKRI - BBSRC,15/07/2021,Training Awards - Postgraduates,FG - Accounts & Business Planning,Cardiff University,99001359,6189.63,Training Awards - Postgraduates
BEIS,UKRI - BBSRC,15/07/2021,Training Awards - Postgraduates,FG - Accounts & Business Planning,Cardiff University,99001360,6189.63,Training Awards - Postgraduates
BEIS,UKRI - BBSRC,15/07/2021,Training Awards - Postgraduates,FG - Accounts & Business Planning,University of Kent,99001361,6189.63,Training Awards - Postgraduates
BEIS,UKRI - BBSRC,15/07/2021,Training Awards - Postgraduates,FG - Accounts & Business Planning,Imperial College London,99001362,6689.63,Training Awards - Postgraduates
BEIS,UKRI - BBSRC,15/07/2021,Training Awards - Postgraduates,FG - Accounts & Business Planning,University of Edinburgh,99001363,6189.63,Training Awards - Postgraduates
BEIS,UKRI - BBSRC,15/07/2021,Training Awards - Postgraduates,FG - Accounts & Business Planning,University of Edinburgh,99001364,6189.63,Training Awards - Postgraduates
BEIS,UKRI - BBSRC,15/07/2021,Training Awards - Postgraduates,FG - Accounts & Business Planning,University of Glasgow,99001365,6189.63,Training Awards - Postgraduates
BEIS,UKRI - BBSRC,15/07/2021,Training Awards - Postgraduates,FG - Accounts & Business Planning,University of Nottingham,99001366,6189.63,Training Awards - Postgraduates
BEIS,UKRI - BBSRC,15/07/2021,Training Awards - Postgraduates,FG - Accounts & Business Planning,University of Aberdeen,99001367,6189.63,Training Awards - Postgraduates
BEIS,UKRI - BBSRC,15/07/2021,Training Awards - Postgraduates,FG - Accounts & Business Planning,University of Liverpool,99001368,6189.63,Training Awards - Postgraduates
BEIS,UKRI - BBSRC,15/07/2021,Training Awards - Postgraduates,FG - Accounts & Business Planning,King's College London,99001369,6689.63,Training Awards - Postgraduates
BEIS,UKRI - BBSRC,15/07/2021,Training Awards - Postgraduates,FG - Accounts & Business Planning,University College London,99001370,6689.63,Training Awards - Postgraduates
BEIS,UKRI - BBSRC,15/07/2021,Training Awards - Postgraduates,FG - Accounts & Business Planning,Imperial College London,99001371,6689.63,Training Awards - Postgraduates
BEIS,UKRI - BBSRC,15/07/2021,Training Awards - Postgraduates,FG - Accounts & Business Planning,University of Southampton GRANT,99001372,6189.63,Training Awards - Postgraduates
BEIS,UKRI - BBSRC,15/07/2021,Training Awards - Postgraduates,FG - Accounts & Business Planning,University of Bristol GRANT,99001373,6189.63,Training Awards - Postgraduates
BEIS,UKRI - BBSRC,15/07/2021,Training Awards - Postgraduates,FG - Accounts & Business Planning,University of Sheffield,99001374,4733.24,Training Awards - Postgraduates
BEIS,UKRI - BBSRC,15/07/2021,Training Awards - Postgraduates,FG - Accounts & Business Planning,University of Newcastle Upon Tyne,99001375,6189.63,Training Awards - Postgraduates
BEIS,UKRI - BBSRC,15/07/2021,Training Awards - Postgraduates,FG - Accounts & Business Planning,University of Leeds,99001376,6189.63,Training Awards - Postgraduates
BEIS,UKRI - BBSRC,15/07/2021,Training Awards - Postgraduates,FG - Accounts & Business Planning,University of Leeds,99001377,6189.63,Training Awards - Postgraduates
BEIS,UKRI - BBSRC,15/07/2021,Training Awards - Postgraduates,FG - Accounts & Business Planning,King's College London,99001378,6638.25,Training Awards - Postgraduates
BEIS,UKRI - BBSRC,15/07/2021,Training Awards - Postgraduates,FG - Accounts & Business Planning,University of Oxford,99001379,6138.25,Training Awards - Postgraduates
BEIS,UKRI - BBSRC,15/07/2021,Training Awards - Postgraduates,FG - Accounts & Business Planning,University of Oxford,99001380,6138.25,Training Awards - Postgraduates
BEIS,UKRI - BBSRC,15/07/2021,Training Awards - Postgraduates,FG - Accounts & Business Planning,University of Nottingham,99001381,6138.25,Training Awards - Postgraduates
BEIS,UKRI - BBSRC,15/07/2021,Training Awards - Postgraduates,FG - Accounts & Business Planning,University of Nottingham,99001382,6138.25,Training Awards - Postgraduates
BEIS,UKRI - BBSRC,15/07/2021,Training Awards - Postgraduates,FG - Accounts & Business Planning,University of Nottingham,99001383,6138.25,Training Awards - Postgraduates
BEIS,UKRI - BBSRC,15/07/2021,Training Awards - Postgraduates,FG - Accounts & Business Planning,University of Nottingham,99001384,6138.25,Training Awards - Postgraduates
BEIS,UKRI - BBSRC,15/07/2021,Training Awards - Postgraduates,FG - Accounts & Business Planning,University of Nottingham,99001385,6138.25,Training Awards - Postgraduates
BEIS,UKRI - BBSRC,15/07/2021,Training Awards - Postgraduates,FG - Accounts & Business Planning,The University of Manchester,99001386,3069.10,Training Awards - Postgraduates
BEIS,UKRI - BBSRC,15/07/2021,Training Awards - Postgraduates,FG - Accounts & Business Planning,University of Edinburgh,99001387,3069.10,Training Awards - Postgraduates
BEIS,UKRI - BBSRC,15/07/2021,Training Awards - Postgraduates,FG - Accounts & Business Planning,Oxford Brookes University,99001388,6138.25,Training Awards - Postgraduates
BEIS,UKRI - BBSRC,15/07/2021,Training Awards - Postgraduates,FG - Accounts & Business Planning,University of Cambridge,99001389,6138.25,Training Awards - Postgraduates
BEIS,UKRI - BBSRC,15/07/2021,Training Awards - Postgraduates,FG - Accounts & Business Planning,University of Reading,99001390,5729.04,Training Awards - Postgraduates
BEIS,UKRI - BBSRC,15/07/2021,Training Awards - Postgraduates,FG - Accounts & Business Planning,"Royal Holloway, University of London",99001391,6638.25,Training Awards - Postgraduates
BEIS,UKRI - BBSRC,15/07/2021,Training Awards - Postgraduates,FG - Accounts & Business Planning,University of Sheffield,99001392,6138.25,Training Awards - Postgraduates
BEIS,UKRI - BBSRC,15/07/2021,Training Awards - Postgraduates,FG - Accounts & Business Planning,Imperial College London,99001393,6638.25,Training Awards - Postgraduates
BEIS,UKRI - BBSRC,15/07/2021,Training Awards - Postgraduates,FG - Accounts & Business Planning,Imperial College London,99001394,6638.25,Training Awards - Postgraduates
BEIS,UKRI - BBSRC,15/07/2021,Training Awards - Postgraduates,FG - Accounts & Business Planning,University of Cambridge,99001395,6138.25,Training Awards - Postgraduates
BEIS,UKRI - BBSRC,15/07/2021,Training Awards - Postgraduates,FG - Accounts & Business Planning,National Institute For Agricultural Botany (NIAB),99001396,4987.33,Training Awards - Postgraduates
BEIS,UKRI - BBSRC,15/07/2021,Training Awards - Postgraduates,FG - Accounts & Business Planning,University of Edinburgh,99001397,6224.53,Training Awards - Postgraduates
BEIS,UKRI - BBSRC,15/07/2021,Training Awards - Postgraduates,FG - Accounts & Business Planning,University of Aberdeen,99001398,6138.25,Training Awards - Postgraduates
BEIS,UKRI - BBSRC,15/07/2021,Training Awards - Postgraduates,FG - Accounts & Business Planning,University of Leeds,99001399,5193.90,Training Awards - Postgraduates
BEIS,UKRI - BBSRC,15/07/2021,Training Awards - Postgraduates,FG - Accounts & Business Planning,University of Southampton GRANT,99001400,6138.25,Training Awards - Postgraduates
BEIS,UKRI - BBSRC,15/07/2021,Training Awards - Postgraduates,FG - Accounts & Business Planning,Queen Mary University of London,99001401,375.00,Training Awards - Postgraduates
BEIS,UKRI - BBSRC,15/07/2021,Training Awards - Postgraduates,FG - Accounts & Business Planning,University of Exeter,99001402,6138.25,Training Awards - Postgraduates
BEIS,UKRI - BBSRC,15/07/2021,Training Awards - Postgraduates,FG - Accounts & Business Planning,Queen Mary University of London,99001403,375.00,Training Awards - Postgraduates
BEIS,UKRI - BBSRC,15/07/2021,Training Awards - Postgraduates,FG - Accounts & Business Planning,Liverpool John Moores University,99001404,3682.95,Training Awards - Postgraduates
BEIS,UKRI - BBSRC,15/07/2021,Training Awards - Postgraduates,FG - Accounts & Business Planning,Imperial College London,99001405,375.00,Training Awards - Postgraduates
BEIS,UKRI - BBSRC,15/07/2021,Training Awards - Postgraduates,FG - Accounts & Business Planning,Heriot Watt University,99001406,6138.25,Training Awards - Postgraduates
BEIS,UKRI - BBSRC,15/07/2021,Training Awards - Postgraduates,FG - Accounts & Business Planning,Quadram Institute Bioscience,99001407,6138.25,Training Awards - Postgraduates
BEIS,UKRI - BBSRC,15/07/2021,Training Awards - Postgraduates,FG - Accounts & Business Planning,King's College London,99001408,6669.50,Training Awards - Postgraduates
BEIS,UKRI - BBSRC,15/07/2021,Training Awards - Postgraduates,FG - Accounts & Business Planning,University of York,99001409,5699.80,Training Awards - Postgraduates
BEIS,UKRI - BBSRC,15/07/2021,Training Awards - Postgraduates,FG - Accounts & Business Planning,University of Sheffield,99001410,1334.28,Training Awards - Postgraduates
BEIS,UKRI - BBSRC,15/07/2021,Training Awards - Postgraduates,FG - Accounts & Business Planning,University of Exeter,99001411,3453.42,Training Awards - Postgraduates
BEIS,UKRI - BBSRC,15/07/2021,Training Awards - Postgraduates,FG - Accounts & Business Planning,Royal Veterinary College,99001412,3904.16,Training Awards - Postgraduates
BEIS,UKRI - BBSRC,15/07/2021,Training Awards - Postgraduates,FG - Accounts & Business Planning,University of Glasgow,99001413,7531.78,Training Awards - Postgraduates
BEIS,UKRI - BBSRC,15/07/2021,Training Awards - Postgraduates,FG - Accounts & Business Planning,University of Oxford,99001414,644407.50,Training Awards - Postgraduates
BEIS,UKRI - BBSRC,15/07/2021,Training Awards - Postgraduates,FG - Accounts & Business Planning,John Innes Centre,99001415,644407.50,Training Awards - Postgraduates
BEIS,UKRI - BBSRC,15/07/2021,Training Awards - Postgraduates,FG - Accounts & Business Planning,The University of Manchester,99001416,379461.00,Training Awards - Postgraduates
BEIS,UKRI - BBSRC,15/07/2021,Training Awards - Postgraduates,FG - Accounts & Business Planning,University of Cambridge,99001417,777101.25,Training Awards - Postgraduates
BEIS,UKRI - BBSRC,15/07/2021,Training Awards - Postgraduates,FG - Accounts & Business Planning,University of Newcastle Upon Tyne,99001418,208497.75,Training Awards - Postgraduates
BEIS,UKRI - BBSRC,15/07/2021,Training Awards - Postgraduates,FG - Accounts & Business Planning,Imperial College London,99001419,429434.25,Training Awards - Postgraduates
BEIS,UKRI - BBSRC,15/07/2021,Training Awards - Postgraduates,FG - Accounts & Business Planning,University of Warwick,99001420,663321.75,Training Awards - Postgraduates
BEIS,UKRI - BBSRC,15/07/2021,Training Awards - Postgraduates,FG - Accounts & Business Planning,University of Leeds,99001421,587664.75,Training Awards - Postgraduates
BEIS,UKRI - BBSRC,15/07/2021,Training Awards - Postgraduates,FG - Accounts & Business Planning,University of Edinburgh,99001422,379020.00,Training Awards - Postgraduates
BEIS,UKRI - BBSRC,15/07/2021,Training Awards - Postgraduates,FG - Accounts & Business Planning,University College London,99001423,838601.25,Training Awards - Postgraduates
BEIS,UKRI - BBSRC,15/07/2021,Training Awards - Postgraduates,FG - Accounts & Business Planning,University of Bristol GRANT,99001424,397934.25,Training Awards - Postgraduates
BEIS,UKRI - BBSRC,15/07/2021,Training Awards - Postgraduates,FG - Accounts & Business Planning,University of Nottingham,99001425,644407.50,Training Awards - Postgraduates
BEIS,UKRI - BBSRC,15/07/2021,Research Institutes - Capital Grants: Minor Works,Rothamsted Research,Rothamsted Research Ltd,99004147,66952.92,Research Institutes - Capital Grants: Minor Works
BEIS,UKRI - BBSRC,15/07/2021,Union Deductions,Balance Sheet,PCS Union,99005511,45.21,Union Deductions
BEIS,UKRI - BBSRC,15/07/2021,Voluntary Deductions,Balance Sheet,Swindon Office Sports and Social Club,99005512,48.00,Voluntary Deductions
BEIS,UKRI - BBSRC,15/07/2021,Unspecified,Balance Sheet,Unspecified,99005513,21220.81,Ees Pension Deductions - JSS
BEIS,UKRI - BBSRC,15/07/2021,Unspecified,Balance Sheet,Unspecified,99005514,86486.26,Ers Pension Deductions - JSS
BEIS,UKRI - BBSRC,15/07/2021,Unspecified,Balance Sheet,Scottish Widows Life Assurance,99005515,10.00,Other Pension Deductions
BEIS,UKRI - BBSRC,15/07/2021,Unspecified,Balance Sheet,Cabinet Office RM Shared Services,99005516,14.02,Ers Pension Deductions - JSS
BEIS,UKRI - BBSRC,15/07/2021,Unspecified,Balance Sheet,Cabinet Office RM Shared Services,99005517,10939.56,Ees Pension Deductions - MyCSP
BEIS,UKRI - BBSRC,15/07/2021,Unspecified,Balance Sheet,Cabinet Office RM Shared Services,99005518,46800.94,Ers Pension Deductions - MyCSP
BEIS,UKRI - BBSRC,15/07/2021,Nursery Deductions,Balance Sheet,UKRI - Engineering & Physical Sciences Research Council,99005519,1364.00,Nursery Deductions
BEIS,UKRI - BBSRC,15/07/2021,Doctoral Training Accounts,FG - Accounts & Business Planning,UKRI - Engineering & Physical Sciences Research Council,99005617,39427.13,Doctoral Training Accounts
BEIS,UKRI - BBSRC,15/07/2021,T&S UK - Subsistence,Science Group,Unspecified,99005750,14.25,T&S UK - Subsistence
BEIS,UKRI - BBSRC,16/07/2021,Fees (Including College Members),Science Group – Admin Function,Unspecified,99004755,170.00,Fees (Including College Members)
BEIS,UKRI - BBSRC,16/07/2021,Fees (Including College Members),Science Group – Admin Function,Unspecified,99004756,170.00,Fees (Including College Members)
BEIS,UKRI - BBSRC,16/07/2021,Fees (Including College Members),Science Group – Admin Function,Unspecified,99004757,170.00,Fees (Including College Members)
BEIS,UKRI - BBSRC,16/07/2021,Fees (Including College Members),Innovation and Skills Group CDSU,Unspecified,99004758,170.00,Fees (Including College Members)
BEIS,UKRI - BBSRC,16/07/2021,Fees (Including College Members),Innovation and Skills Group CDSU,Unspecified,99004759,170.00,Fees (Including College Members)
BEIS,UKRI - BBSRC,19/07/2021,Research Institutes - Capital Grants: Minor Works,JIC,John Innes Centre,98998067,-3900.00,Research Institutes - Capital Grants: Minor Works
BEIS,UKRI - BBSRC,19/07/2021,Fees (Including College Members),Science Group – Admin Function,Unspecified,99006241,170.00,Fees (Including College Members)
BEIS,UKRI - BBSRC,19/07/2021,Research Institutes - Capital Grants: Minor Works,JIC,John Innes Centre,99006386,172202.69,Research Institutes - Capital Grants: Minor Works
BEIS,UKRI - BBSRC,19/07/2021,Research Grant Expenditure,Rothamsted Research,Aberystwyth University,99006387,15126.00,Research Grant Expenditure
BEIS,UKRI - BBSRC,19/07/2021,T&S UK - Other Charges,Innovation and Skills Group,Unspecified,99006410,77.65,T&S UK - Other Charges
BEIS,UKRI - BBSRC,20/07/2021,Research Institutes - Capital Grants: Minor Works,Rothamsted Research,Rothamsted Research Ltd,98992124,7056.35,Research Institutes - Capital Grants: Minor Works
BEIS,UKRI - BBSRC,20/07/2021,Research Grant Expenditure,NPIF EMBL EBI,EMBL (European Molecular Biology Laboratory),98996810,22750.00,Research Grant Expenditure
BEIS,UKRI - BBSRC,20/07/2021,T&S UK - Public Transport,Science Group,Unspecified,99006574,8.80,T&S UK - Public Transport
BEIS,UKRI - BBSRC,20/07/2021,T&S UK - Subsistence,Science Group,Unspecified,99006574,13.75,T&S UK - Subsistence
BEIS,UKRI - BBSRC,20/07/2021,T&S UK - Subsistence,Science Group,Unspecified,99006574,2.20,T&S UK - Subsistence
BEIS,UKRI - BBSRC,20/07/2021,Fees (Including College Members),Innovation and Skills Group CDSU,Unspecified,99007229,340.00,Fees (Including College Members)
BEIS,UKRI - BBSRC,20/07/2021,Fees (Including College Members),Innovation and Skills Group CDSU,Unspecified,99007230,340.00,Fees (Including College Members)
BEIS,UKRI - BBSRC,20/07/2021,Fees (Including College Members),Innovation and Skills Group CDSU,Unspecified,99007231,340.00,Fees (Including College Members)
BEIS,UKRI - BBSRC,20/07/2021,Fees (Including College Members),Innovation and Skills Group CDSU,Unspecified,99007232,340.00,Fees (Including College Members)
BEIS,UKRI - BBSRC,20/07/2021,Fees (Including College Members),Innovation and Skills Group CDSU,Unspecified,99007233,460.00,Fees (Including College Members)
BEIS,UKRI - BBSRC,20/07/2021,Fees (Including College Members),Science Group – Admin Function,Unspecified,99007234,230.00,Fees (Including College Members)
BEIS,UKRI - BBSRC,20/07/2021,Fees (Including College Members),Innovation and Skills Group CDSU,Unspecified,99007235,340.00,Fees (Including College Members)
BEIS,UKRI - BBSRC,20/07/2021,Fees (Including College Members),Innovation and Skills Group CDSU,Unspecified,99007236,460.00,Fees (Including College Members)
BEIS,UKRI - BBSRC,20/07/2021,Fees (Including College Members),Innovation and Skills Group CDSU,Unspecified,99007237,340.00,Fees (Including College Members)
BEIS,UKRI - BBSRC,20/07/2021,Fees (Including College Members),Innovation and Skills Group CDSU,Unspecified,99007238,340.00,Fees (Including College Members)
BEIS,UKRI - BBSRC,20/07/2021,Fees (Including College Members),Innovation and Skills Group CDSU,Unspecified,99007239,340.00,Fees (Including College Members)
BEIS,UKRI - BBSRC,20/07/2021,Fees (Including College Members),Innovation and Skills Group CDSU,Unspecified,99007240,340.00,Fees (Including College Members)
BEIS,UKRI - BBSRC,20/07/2021,Fees (Including College Members),Innovation and Skills Group CDSU,Unspecified,99007241,340.00,Fees (Including College Members)
BEIS,UKRI - BBSRC,20/07/2021,Fees (Including College Members),Innovation and Skills Group CDSU,Unspecified,99007242,340.00,Fees (Including College Members)
BEIS,UKRI - BBSRC,20/07/2021,Fees (Including College Members),Innovation and Skills Group CDSU,Unspecified,99007243,340.00,Fees (Including College Members)
BEIS,UKRI - BBSRC,20/07/2021,Fees (Including College Members),SPF W2 Food Systems,Unspecified,99007244,510.00,Fees (Including College Members)
BEIS,UKRI - BBSRC,20/07/2021,Fees (Including College Members),SPF W2 Food Systems,Unspecified,99007245,510.00,Fees (Including College Members)
BEIS,UKRI - BBSRC,20/07/2021,Fees (Including College Members),SPF W2 Food Systems,Unspecified,99007246,510.00,Fees (Including College Members)
BEIS,UKRI - BBSRC,20/07/2021,Fees (Including College Members),SPF W2 Food Systems,Unspecified,99007247,510.00,Fees (Including College Members)
BEIS,UKRI - BBSRC,20/07/2021,Fees (Including College Members),SPF W2 Food Systems,Unspecified,99007248,510.00,Fees (Including College Members)
BEIS,UKRI - BBSRC,20/07/2021,Fees (Including College Members),SPF W2 Food Systems,Unspecified,99007249,510.00,Fees (Including College Members)
BEIS,UKRI - BBSRC,20/07/2021,Fees (Including College Members),SPF W2 Food Systems,Unspecified,99007250,510.00,Fees (Including College Members)
BEIS,UKRI - BBSRC,20/07/2021,Fees (Including College Members),SPF W2 Food Systems,Unspecified,99007251,510.00,Fees (Including College Members)
BEIS,UKRI - BBSRC,20/07/2021,Fees (Including College Members),SPF W2 Food Systems,Unspecified,99007252,510.00,Fees (Including College Members)
BEIS,UKRI - BBSRC,20/07/2021,Fees (Including College Members),SPF W2 Food Systems,Unspecified,99007253,510.00,Fees (Including College Members)
BEIS,UKRI - BBSRC,20/07/2021,Fees (Including College Members),SPF W2 Food Systems,Unspecified,99007254,510.00,Fees (Including College Members)
BEIS,UKRI - BBSRC,20/07/2021,Fees (Including College Members),SPF W2 Food Systems,Unspecified,99007255,510.00,Fees (Including College Members)
BEIS,UKRI - BBSRC,20/07/2021,Fees (Including College Members),SPF W2 Food Systems,Unspecified,99007256,510.00,Fees (Including College Members)
BEIS,UKRI - BBSRC,20/07/2021,Fees (Including College Members),SPF W2 Food Systems,Unspecified,99007257,510.00,Fees (Including College Members)
BEIS,UKRI - BBSRC,20/07/2021,Fees (Including College Members),SPF W2 Food Systems,Unspecified,99007258,340.00,Fees (Including College Members)
BEIS,UKRI - BBSRC,20/07/2021,Fees (Including College Members),SPF W2 Food Systems,Unspecified,99007259,690.00,Fees (Including College Members)
BEIS,UKRI - BBSRC,20/07/2021,Fees (Including College Members),SPF W2 Food Systems,Unspecified,99007260,510.00,Fees (Including College Members)
BEIS,UKRI - BBSRC,20/07/2021,Fees (Including College Members),SPF W2 Food Systems,Unspecified,99007261,510.00,Fees (Including College Members)
BEIS,UKRI - BBSRC,20/07/2021,Fees (Including College Members),SPF W2 Food Systems,Unspecified,99007262,510.00,Fees (Including College Members)
BEIS,UKRI - BBSRC,20/07/2021,Fees (Including College Members),SPF W2 Food Systems,Unspecified,99007263,510.00,Fees (Including College Members)
BEIS,UKRI - BBSRC,20/07/2021,Fees (Including College Members),SPF W2 Food Systems,Unspecified,99007264,690.00,Fees (Including College Members)
BEIS,UKRI - BBSRC,20/07/2021,Fees (Including College Members),SPF W2 Food Systems,Unspecified,99007265,510.00,Fees (Including College Members)
BEIS,UKRI - BBSRC,20/07/2021,Fees (Including College Members),SPF W2 Food Systems,Unspecified,99007266,510.00,Fees (Including College Members)
BEIS,UKRI - BBSRC,20/07/2021,Fees (Including College Members),SPF W2 Food Systems,Unspecified,99007267,510.00,Fees (Including College Members)
BEIS,UKRI - BBSRC,20/07/2021,Fees (Including College Members),SPF W2 Food Systems,Unspecified,99007268,690.00,Fees (Including College Members)
BEIS,UKRI - BBSRC,20/07/2021,Fees (Including College Members),SPF W2 Food Systems,Unspecified,99007269,510.00,Fees (Including College Members)
BEIS,UKRI - BBSRC,20/07/2021,Fees (Including College Members),SPF W2 Food Systems,Unspecified,99007270,510.00,Fees (Including College Members)
BEIS,UKRI - BBSRC,20/07/2021,Fees (Including College Members),SPF W2 Food Systems,Unspecified,99007271,510.00,Fees (Including College Members)
BEIS,UKRI - BBSRC,20/07/2021,Fees (Including College Members),SPF W2 Food Systems,Unspecified,99007272,510.00,Fees (Including College Members)
BEIS,UKRI - BBSRC,20/07/2021,Fees (Including College Members),SPF W2 Food Systems,Unspecified,99007273,510.00,Fees (Including College Members)
BEIS,UKRI - BBSRC,21/07/2021,Research Institutes - Competitive Strategic Grant,JIC,John Innes Centre,98997740,21999.99,Research Institutes - Competitive Strategic Grant
BEIS,UKRI - BBSRC,21/07/2021,Research Institutes - Competitive Strategic Grant,JIC,John Innes Centre,98997740,511416.52,Research Institutes - Competitive Strategic Grant
BEIS,UKRI - BBSRC,21/07/2021,Research Institutes - Competitive Strategic Grant,JIC,John Innes Centre,98997740,65333.31,Research Institutes - Competitive Strategic Grant
BEIS,UKRI - BBSRC,21/07/2021,Research Institutes - Competitive Strategic Grant,JIC,John Innes Centre,98997740,501249.85,Research Institutes - Competitive Strategic Grant
BEIS,UKRI - BBSRC,21/07/2021,Research Institutes - Competitive Strategic Grant,JIC,John Innes Centre,98997740,7083.33,Research Institutes - Competitive Strategic Grant
BEIS,UKRI - BBSRC,21/07/2021,Research Institutes - Competitive Strategic Grant,TGAC,Earlham Institute,98997751,163172.03,Research Institutes - Competitive Strategic Grant
BEIS,UKRI - BBSRC,21/07/2021,Research Institutes - Competitive Strategic Grant,TGAC,Earlham Institute,98997751,81239.48,Research Institutes - Competitive Strategic Grant
BEIS,UKRI - BBSRC,21/07/2021,Research Institutes - Competitive Strategic Grant,TGAC,Earlham Institute,98997751,42166.70,Research Institutes - Competitive Strategic Grant
BEIS,UKRI - BBSRC,21/07/2021,Research Institutes - Competitive Strategic Grant,TGAC,Earlham Institute,98997751,33333.36,Research Institutes - Competitive Strategic Grant
BEIS,UKRI - BBSRC,21/07/2021,Research Institutes - Competitive Strategic Grant,TGAC,Earlham Institute,98997751,121088.76,Research Institutes - Competitive Strategic Grant
BEIS,UKRI - BBSRC,21/07/2021,Research Institutes - Competitive Strategic Grant,TGAC,Earlham Institute,98997751,2916.67,Research Institutes - Competitive Strategic Grant
BEIS,UKRI - BBSRC,21/07/2021,Research Institutes - Competitive Strategic Grant,IFR,Quadram Institute Bioscience,98997753,23624.41,Research Institutes - Competitive Strategic Grant
BEIS,UKRI - BBSRC,21/07/2021,Research Institutes - Competitive Strategic Grant,IFR,Quadram Institute Bioscience,98997753,347920.37,Research Institutes - Competitive Strategic Grant
BEIS,UKRI - BBSRC,21/07/2021,Research Institutes - Competitive Strategic Grant,IFR,Quadram Institute Bioscience,98997753,46083.32,Research Institutes - Competitive Strategic Grant
BEIS,UKRI - BBSRC,21/07/2021,Research Institutes - Competitive Strategic Grant,IFR,Quadram Institute Bioscience,98997753,261521.57,Research Institutes - Competitive Strategic Grant
BEIS,UKRI - BBSRC,21/07/2021,Research Institutes - Competitive Strategic Grant,IFR,Quadram Institute Bioscience,98997753,5833.33,Research Institutes - Competitive Strategic Grant
BEIS,UKRI - BBSRC,21/07/2021,Research Institutes - Competitive Strategic Grant,Babraham Institute,Babraham Institute,98998091,352459.91,Research Institutes - Competitive Strategic Grant
BEIS,UKRI - BBSRC,21/07/2021,Research Institutes - Competitive Strategic Grant,Babraham Institute,Babraham Institute,98998091,48750.01,Research Institutes - Competitive Strategic Grant
BEIS,UKRI - BBSRC,21/07/2021,Research Institutes - Competitive Strategic Grant,Babraham Institute,Babraham Institute,98998091,395666.75,Research Institutes - Competitive Strategic Grant
BEIS,UKRI - BBSRC,21/07/2021,Research Institutes - Competitive Strategic Grant,Babraham Institute,Babraham Institute,98998091,5833.33,Research Institutes - Competitive Strategic Grant
BEIS,UKRI - BBSRC,21/07/2021,Other Programme Costs,FG - Accounts & Business Planning,Rothamsted Research Ltd,98998287,50000.00,Other Programme Costs
BEIS,UKRI - BBSRC,21/07/2021,Research Institutes - Competitive Strategic Grant,Rothamsted Research,Rothamsted Research Ltd,98998320,104789.47,Research Institutes - Competitive Strategic Grant
BEIS,UKRI - BBSRC,21/07/2021,Research Institutes - Competitive Strategic Grant,Rothamsted Research,Rothamsted Research Ltd,98998320,440495.03,Research Institutes - Competitive Strategic Grant
BEIS,UKRI - BBSRC,21/07/2021,Research Institutes - Competitive Strategic Grant,Rothamsted Research,Rothamsted Research Ltd,98998320,60909.50,Research Institutes - Competitive Strategic Grant
BEIS,UKRI - BBSRC,21/07/2021,Research Institutes - Competitive Strategic Grant,Rothamsted Research,Rothamsted Research Ltd,98998320,185554.21,Research Institutes - Competitive Strategic Grant
BEIS,UKRI - BBSRC,21/07/2021,Research Institutes - Competitive Strategic Grant,Rothamsted Research,Rothamsted Research Ltd,98998320,6671.79,Research Institutes - Competitive Strategic Grant
BEIS,UKRI - BBSRC,21/07/2021,Research Institutes - Competitive Strategic Grant,IBERS,Ibers - Aberystwyth University,99000194,86360.99,Research Institutes - Competitive Strategic Grant
BEIS,UKRI - BBSRC,21/07/2021,Research Institutes - Competitive Strategic Grant,IBERS,Ibers - Aberystwyth University,99000194,46980.67,Research Institutes - Competitive Strategic Grant
BEIS,UKRI - BBSRC,21/07/2021,Research Institutes - Competitive Strategic Grant,IBERS,Ibers - Aberystwyth University,99000194,2916.67,Research Institutes - Competitive Strategic Grant
BEIS,UKRI - BBSRC,21/07/2021,Research Institutes - Competitive Strategic Grant,EBRC (Roslin),University of Edinburgh,99000474,277179.92,Research Institutes - Competitive Strategic Grant
BEIS,UKRI - BBSRC,21/07/2021,Research Institutes - Competitive Strategic Grant,EBRC (Roslin),University of Edinburgh,99000474,206087.50,Research Institutes - Competitive Strategic Grant
BEIS,UKRI - BBSRC,21/07/2021,Research Institutes - Competitive Strategic Grant,EBRC (Roslin),University of Edinburgh,99000474,5833.33,Research Institutes - Competitive Strategic Grant
BEIS,UKRI - BBSRC,21/07/2021,Research Institutes - Capital Grants: Major Works,Pirbright,The Pirbright Institute,99005930,19750.70,Research Institutes - Capital Grants: Major Works
BEIS,UKRI - BBSRC,21/07/2021,Research Institutes - Capital Grants: Major Works,Pirbright,The Pirbright Institute,99005987,712102.50,Research Institutes - Capital Grants: Major Works
BEIS,UKRI - BBSRC,21/07/2021,Research Grant Expenditure,Impact & Knowledge Exchange,ABERYSTWYTH INNOVATION AND ENTERPRISE CAMPUS LTD (AIEC),99006389,142218.76,Research Grant Expenditure
BEIS,UKRI - BBSRC,26/07/2021,Research Institutes - Competitive Strategic Grant,Pirbright,The Pirbright Institute,99003521,817500.00,Research Institutes - Competitive Strategic Grant
BEIS,UKRI - BBSRC,26/07/2021,Research Institutes - Competitive Strategic Grant,Pirbright,The Pirbright Institute,99003521,231500.00,Research Institutes - Competitive Strategic Grant
BEIS,UKRI - BBSRC,26/07/2021,Research Institutes - Competitive Strategic Grant,Pirbright,The Pirbright Institute,99003521,33333.33,Research Institutes - Competitive Strategic Grant
BEIS,UKRI - BBSRC,26/07/2021,Research Institutes - Competitive Strategic Grant,Pirbright,The Pirbright Institute,99003521,201083.33,Research Institutes - Competitive Strategic Grant
BEIS,UKRI - BBSRC,26/07/2021,Research Institutes - Competitive Strategic Grant,Pirbright,The Pirbright Institute,99003521,4166.67,Research Institutes - Competitive Strategic Grant
BEIS,UKRI - BBSRC,27/07/2021,Unspecified,CE - CPS,University of Southampton,99008413,26731.00,Secondments
BEIS,UKRI - BBSRC,27/07/2021,Fees (Including College Members),Science Group – Admin Function,Unspecified,99009596,170.00,Fees (Including College Members)
BEIS,UKRI - BBSRC,27/07/2021,Fees (Including College Members),Innovation and Skills Group CDSU,Unspecified,99009597,170.00,Fees (Including College Members)
BEIS,UKRI - BBSRC,27/07/2021,Fees (Including College Members),Innovation and Skills Group CDSU,Unspecified,99009598,170.00,Fees (Including College Members)
BEIS,UKRI - BBSRC,27/07/2021,Fees (Including College Members),Innovation and Skills Group CDSU,Unspecified,99009599,170.00,Fees (Including College Members)
BEIS,UKRI - BBSRC,27/07/2021,Fees (Including College Members),Innovation and Skills Group CDSU,Unspecified,99009600,170.00,Fees (Including College Members)
BEIS,UKRI - BBSRC,27/07/2021,Fees (Including College Members),Innovation and Skills Group CDSU,Unspecified,99009601,170.00,Fees (Including College Members)
BEIS,UKRI - BBSRC,27/07/2021,Fees (Including College Members),Innovation and Skills Group CDSU,Unspecified,99009602,170.00,Fees (Including College Members)
BEIS,UKRI - BBSRC,27/07/2021,Fees (Including College Members),Innovation and Skills Group CDSU,Unspecified,99009603,230.00,Fees (Including College Members)
BEIS,UKRI - BBSRC,28/07/2021,Conferences & Seminars,Science Group,Materials Research Society,99009240,4030.26,Conferences & Seminars
BEIS,UKRI - BBSRC,28/07/2021,Fees (Including College Members),Innovation and Skills Group CDSU,Unspecified,99010360,170.00,Fees (Including College Members)
BEIS,UKRI - BBSRC,28/07/2021,Fees (Including College Members),CE - Chief Executive,Unspecified,99010361,170.00,Fees (Including College Members)
BEIS,UKRI - BBSRC,28/07/2021,Fees (Including College Members),CE - Chief Executive,Unspecified,99010362,170.00,Fees (Including College Members)
BEIS,UKRI - BBSRC,28/07/2021,Fees (Including College Members),CE - Chief Executive,Unspecified,99010363,170.00,Fees (Including College Members)
BEIS,UKRI - BBSRC,28/07/2021,Fees (Including College Members),CE - Chief Executive,Unspecified,99010364,170.00,Fees (Including College Members)
BEIS,UKRI - BBSRC,28/07/2021,Fees (Including College Members),CE - Chief Executive,Unspecified,99010365,170.00,Fees (Including College Members)
BEIS,UKRI - BBSRC,28/07/2021,Fees (Including College Members),CE - Chief Executive,Unspecified,99010366,170.00,Fees (Including College Members)
BEIS,UKRI - BBSRC,28/07/2021,T&S UK - Public Transport,CE - Chief Executive,Unspecified,99012540,42.90,T&S UK - Public Transport
BEIS,UKRI - BBSRC,28/07/2021,T&S UK - Parking Tolls Congestion Charges,CE - Chief Executive,Unspecified,99012541,8.20,T&S UK - Parking Tolls Congestion Charges
BEIS,UKRI - BBSRC,28/07/2021,Health & Safety (inc. Medicals & Opticians),Innovation and Skills Group,Unspecified,99012542,25.00,Health & Safety (inc. Medicals & Opticians)
BEIS,UKRI - BBSRC,28/07/2021,T&S UK - Other Charges,FG - Estates,Unspecified,99012543,4.09,T&S UK - Other Charges
BEIS,UKRI - BBSRC,28/07/2021,T&S UK - Vehicle Hire,FG - Estates,Unspecified,99012543,37.04,T&S UK - Vehicle Hire
BEIS,UKRI - BBSRC,29/07/2021,Fees (Including College Members),SPF W2 Food Systems,Unspecified,99011134,510.00,Fees (Including College Members)
BEIS,UKRI - BBSRC,29/07/2021,Research Institutes - Capital Grants: Minor Works,Rothamsted Research,Rothamsted Research Ltd,99012610,1110.00,Research Institutes - Capital Grants: Minor Works
BEIS,UKRI - UKRI,01/07/2021,Hardware/Software Maintenance,UKRI - Digital Data and Technology Recharges,Park Place Technologies Ltd,98973296,35523.89,Hardware/Software Maintenance
BEIS,UKRI - UKRI,01/07/2021,T&S UK - Other Charges,UKRI - Procurement and Commercial,Unspecified,98991065,45.06,T&S UK - Other Charges
BEIS,UKRI - UKRI,01/07/2021,Library Services,UKRI - Financial Accounting,Martin Ince Communications Ltd,98992184,550.00,Library Services
BEIS,UKRI - UKRI,01/07/2021,Unspecified,UKRI - Funding Service,Alexander Mann Solutions Ltd,98993357,4896.66,Contract Staff
BEIS,UKRI - UKRI,01/07/2021,Unspecified,UKRI - Funding Service,Alexander Mann Solutions Ltd,98993359,3937.86,Contract Staff
BEIS,UKRI - UKRI,01/07/2021,Unspecified,UKRI - Digital Data and Technology BAU Costs,Alexander Mann Solutions Ltd,98993380,4095.36,Contract Staff
BEIS,UKRI - UKRI,01/07/2021,Unspecified,UKRI - Funding Service,Alexander Mann Solutions Ltd,98994052,4003.56,Contract Staff
BEIS,UKRI - UKRI,01/07/2021,Unspecified,UKRI - Funding Service,Alexander Mann Solutions Ltd,98994056,4619.52,Contract Staff
BEIS,UKRI - UKRI,01/07/2021,Unspecified,UKRI - Digital Data and Technology Project Costs,Alexander Mann Solutions Ltd,98994071,4095.36,Contract Staff
BEIS,UKRI - UKRI,01/07/2021,Electricity,UKRI - JBOS,EDF Energy,98995665,34606.15,Electricity
BEIS,UKRI - EPSRC,01/07/2021,Fees (Including College Members),SPF - NICER OpEx,Unspecified,98996112,80.00,Fees (Including College Members)
BEIS,UKRI - UKRI,01/07/2021,General Building Maintenance,UKRI - Estates Projects,Interior Design And Developments,98996256,9349.20,General Building Maintenance
BEIS,UKRI - UKRI,01/07/2021,T&S UK - Mileage,UKRI - Communications Projects and Services,Unspecified,98996266,37.80,T&S UK - Mileage
BEIS,UKRI - UKRI,01/07/2021,T&S UK - Other Charges,"UKRI People, Policies and Management",Unspecified,98996267,291.98,T&S UK - Other Charges
BEIS,UKRI - UKRI,01/07/2021,T&S UK - Mileage,UKRI Strategic HR Business Partners,Unspecified,98996268,27.90,T&S UK - Mileage
BEIS,UKRI - EPSRC,01/07/2021,T&S UK - Other Charges,Programme Delivery Physical Sciences,Unspecified,98996269,115.55,T&S UK - Other Charges
BEIS,UKRI - UKRI,01/07/2021,Books Professional Journals & Guides,UKRI - Digital Data and Technology Library Services,University Of Bristol Spelaeological Society,98996800,12.00,Books Professional Journals & Guides
BEIS,UKRI - UKRI,01/07/2021,Other Staff Benefits,UKRI Strategic HR Business Partners,Emma Riggs t/a Cotswold Psychology,98996947,100.00,Other Staff Benefits
BEIS,UKRI - UKRI,01/07/2021,Computer Software Licences,UKRI - Digital Data and Technology BAU Costs,Phoenix Software Ltd,98996957,37.14,Computer Software Licences
BEIS,UKRI - UKRI,01/07/2021,Computer Software Licences,UKRI - Digital Data and Technology BAU Costs,Phoenix Software Ltd,98996959,7.08,Computer Software Licences
BEIS,UKRI - UKRI,01/07/2021,Equipment Rentals Under Operating Leases,UKRI - JRS,Grenke Leasing Ltd,98996960,2040.01,Equipment Rentals Under Operating Leases
BEIS,UKRI - UKRI,01/07/2021,General Building Maintenance,UKRI - Digital Data and Technology BAU Costs,Interior Design And Developments,98996982,4089.60,General Building Maintenance
BEIS,UKRI - UKRI,01/07/2021,Health & Safety (inc. Medicals & Opticians),UKRI - Health and Safety,AM Health & Safety Ltd,98996995,969.00,Health & Safety (inc. Medicals & Opticians)
BEIS,UKRI - UKRI,01/07/2021,Health & Safety (inc. Medicals & Opticians),UKRI - Health and Safety,AM Health & Safety Ltd,98996998,945.00,Health & Safety (inc. Medicals & Opticians)
BEIS,UKRI - UKRI,01/07/2021,Computer Software Licences,UKRI - Digital Data and Technology BAU Costs,PatSnap (UK) Ltd,98997008,21936.00,Computer Software Licences
BEIS,UKRI - UKRI,01/07/2021,Marketing & PR,UKRI - Transformation Communications,CASS Productions Ltd,98997010,1200.00,Marketing & PR
BEIS,UKRI - Research England,01/07/2021,Unspecified,RE - Research Excellence Framework (REF),Keele University,98997182,10725.00,Council & Committee Honoraria
BEIS,UKRI - Research England,01/07/2021,Unspecified,RE - Research Excellence Framework (REF),University of Sheffield,98997206,15510.00,Council & Committee Honoraria
BEIS,UKRI - Research England,01/07/2021,Unspecified,RE - Research Excellence Framework (REF),University of Durham,98997213,17160.00,Council & Committee Honoraria
BEIS,UKRI - Research England,01/07/2021,Unspecified,RE - Research Excellence Framework (REF),University of Lincoln,98997215,9750.00,Council & Committee Honoraria
BEIS,UKRI - UKRI,01/07/2021,Computer Software Licences,UKRI - Digital Data and Technology BAU Costs,Phoenix Software Ltd,98997238,3343.80,Computer Software Licences
BEIS,UKRI - Research England,02/07/2021,Recruitment Costs,RE - Operations and Private Office,University of Warwick,98780503,-245.00,Recruitment Costs
BEIS,UKRI - Research England,02/07/2021,Recruitment Costs,RE - Operations and Private Office,University of Warwick,98780508,-490.00,Recruitment Costs
BEIS,UKRI - Research England,02/07/2021,Unspecified,RE - Research Excellence Framework (REF),University of Warwick,98973888,750.00,Council & Committee Honoraria
BEIS,UKRI - Research England,02/07/2021,Unspecified,RE - Research Excellence Framework (REF),University of Stirling,98979025,1250.00,Council & Committee Honoraria
BEIS,UKRI - Research England,02/07/2021,Unspecified,RE - Research Excellence Framework (REF),University of Stirling,98979027,750.00,Council & Committee Honoraria
BEIS,UKRI - Research England,02/07/2021,Unspecified,RE - Research Excellence Framework (REF),University of Liverpool,98987122,750.00,Council & Committee Honoraria
BEIS,UKRI - Research England,02/07/2021,Unspecified,RE - Research Excellence Framework (REF),University of Stirling,98988886,750.00,Council & Committee Honoraria
BEIS,UKRI - UKRI,02/07/2021,T&S Overseas - Flights,UKRI - Funds for International Collaboration,Corporate Travel Management (North) Ltd,98988941,7.00,T&S Overseas - Flights
BEIS,UKRI - UKRI,02/07/2021,T&S UK - Accommodation,UKRI - Communications Content,Corporate Travel Management (North) Ltd,98988941,0.80,T&S UK - Accommodation
BEIS,UKRI - UKRI,02/07/2021,T&S UK - Accommodation,UKRI - Communications Content,Corporate Travel Management (North) Ltd,98988941,251.00,T&S UK - Accommodation
BEIS,UKRI - UKRI,02/07/2021,T&S UK - Accommodation,UKRI - Communications Content,Corporate Travel Management (North) Ltd,98988941,0.80,T&S UK - Accommodation
BEIS,UKRI - UKRI,02/07/2021,T&S UK - Accommodation,UKRI - Communications Content,Corporate Travel Management (North) Ltd,98988941,155.00,T&S UK - Accommodation
BEIS,UKRI - UKRI,02/07/2021,T&S UK - Accommodation,UKRI - Communications Content,Corporate Travel Management (North) Ltd,98988941,0.32,T&S UK - Accommodation
BEIS,UKRI - UKRI,02/07/2021,T&S UK - Public Transport,UKRI - Communications Content,Corporate Travel Management (North) Ltd,98988941,0.25,T&S UK - Public Transport
BEIS,UKRI - UKRI,02/07/2021,T&S UK - Public Transport,UKRI - Communications Content,Corporate Travel Management (North) Ltd,98988941,59.00,T&S UK - Public Transport
BEIS,UKRI - UKRI,02/07/2021,T&S UK - Public Transport,UKRI - Corporate Services,Corporate Travel Management (North) Ltd,98988941,0.25,T&S UK - Public Transport
BEIS,UKRI - UKRI,02/07/2021,T&S UK - Public Transport,UKRI - Corporate Services,Corporate Travel Management (North) Ltd,98988941,81.20,T&S UK - Public Transport
BEIS,UKRI - UKRI,02/07/2021,T&S UK - Public Transport,UKRI - Estates,Corporate Travel Management (North) Ltd,98988941,0.25,T&S UK - Public Transport
BEIS,UKRI - UKRI,02/07/2021,T&S UK - Public Transport,UKRI - Estates,Corporate Travel Management (North) Ltd,98988941,152.60,T&S UK - Public Transport
BEIS,UKRI - UKRI,02/07/2021,T&S UK - Public Transport,UKRI - Estates,Corporate Travel Management (North) Ltd,98988941,0.25,T&S UK - Public Transport
BEIS,UKRI - UKRI,02/07/2021,T&S UK - Public Transport,UKRI - Estates,Corporate Travel Management (North) Ltd,98988941,24.00,T&S UK - Public Transport
BEIS,UKRI - UKRI,02/07/2021,Advertising & Promotion,UKRI - Communications Content,Unspecified,98991206,780.00,Advertising & Promotion
BEIS,UKRI - UKRI,02/07/2021,Advertising & Promotion,UKRI - Communications Content,Unspecified,98993917,250.00,Advertising & Promotion
BEIS,UKRI - UKRI,02/07/2021,Postage & Courier Services,UKRI - Estates,St John Ambulance (Supplies),98994471,5.94,Postage & Courier Services
BEIS,UKRI - UKRI,02/07/2021,Safety Materials & Equipment,UKRI - Estates,St John Ambulance (Supplies),98994471,6.43,Safety Materials & Equipment
BEIS,UKRI - UKRI,02/07/2021,Safety Materials & Equipment,UKRI - Estates,St John Ambulance (Supplies),98994471,4.80,Safety Materials & Equipment
BEIS,UKRI - UKRI,02/07/2021,Safety Materials & Equipment,UKRI - Estates,St John Ambulance (Supplies),98994471,11.29,Safety Materials & Equipment
BEIS,UKRI - UKRI,02/07/2021,Safety Materials & Equipment,UKRI - Estates,St John Ambulance (Supplies),98994471,3.20,Safety Materials & Equipment
BEIS,UKRI - UKRI,02/07/2021,Computer Software Licences,UKRI - Information Governance,Fivium Ltd,98996235,180.00,Computer Software Licences
BEIS,UKRI - UKRI,02/07/2021,Computer Software Licences,UKRI - Information Governance,Fivium Ltd,98996235,3360.00,Computer Software Licences
BEIS,UKRI - UKRI,02/07/2021,Hardware/Software Maintenance,UKRI - JRS,Ricoh Uk Ltd,98996477,2616.46,Hardware/Software Maintenance
BEIS,UKRI - UKRI,02/07/2021,Advertising & Promotion,UKRI - Communications Projects and Services,Dragon Rouge Ltd,98996490,7680.00,Advertising & Promotion
BEIS,UKRI - UKRI,02/07/2021,Advertising & Promotion,UKRI - Communications Projects and Services,Dragon Rouge Ltd,98996491,1200.00,Advertising & Promotion
BEIS,UKRI - UKRI,02/07/2021,Advertising & Promotion,UKRI - Communications Projects and Services,Dragon Rouge Ltd,98996493,5370.00,Advertising & Promotion
BEIS,UKRI - UKRI,02/07/2021,Advertising & Promotion,UKRI - Communications Projects and Services,Dragon Rouge Ltd,98996496,2775.00,Advertising & Promotion
BEIS,UKRI - UKRI,02/07/2021,Advertising & Promotion,UKRI - Communications Projects and Services,Dragon Rouge Ltd,98996499,2025.00,Advertising & Promotion
BEIS,UKRI - UKRI,02/07/2021,Unspecified,UKRI - Risk and Counter Fraud,DNV Services UK Ltd,98996538,30417.60,Legal & Professional Services
BEIS,UKRI - UKRI,02/07/2021,T&S UK - Subsistence,Global Mobility & Employee Diversity,Unspecified,98996614,30.00,T&S UK - Subsistence
BEIS,UKRI - UKRI,02/07/2021,T&S UK - Other Charges,UKRI - Research Funding Support,Unspecified,98996615,25.00,T&S UK - Other Charges
BEIS,UKRI - UKRI,02/07/2021,UK - Professional Memberships & Subscriptions,UKRI Strategic HR Business Partners,Unspecified,98996616,216.00,UK - Professional Memberships & Subscriptions
BEIS,UKRI - UKRI,02/07/2021,T&S UK - Other Charges,"UKRI People, Policies and Management",Unspecified,98996617,25.18,T&S UK - Other Charges
BEIS,UKRI - UKRI,02/07/2021,UK - Professional Memberships & Subscriptions,UKRI People and Organisation Development,Unspecified,98996618,190.00,UK - Professional Memberships & Subscriptions
BEIS,UKRI - UKRI,02/07/2021,UK - Professional Memberships & Subscriptions,UKRI Strategic HR Business Partners,Unspecified,98996619,163.00,UK - Professional Memberships & Subscriptions
BEIS,UKRI - UKRI,02/07/2021,UK - Professional Memberships & Subscriptions,UKRI People and Organisation Development,Unspecified,98996620,163.00,UK - Professional Memberships & Subscriptions
BEIS,UKRI - UKRI,02/07/2021,UK - Professional Memberships & Subscriptions,"UKRI People, Policies and Management",Unspecified,98996623,163.00,UK - Professional Memberships & Subscriptions
BEIS,UKRI - UKRI,02/07/2021,Advertising & Promotion,UKRI - Communications Content,Martin Ince Communications Ltd,98997006,1650.00,Advertising & Promotion
BEIS,UKRI - EPSRC,02/07/2021,Fees (Including College Members),Business Improvement,Unspecified,98997252,320.00,Fees (Including College Members)
BEIS,UKRI - EPSRC,02/07/2021,Fees (Including College Members),Business Improvement,Unspecified,98997253,320.00,Fees (Including College Members)
BEIS,UKRI - EPSRC,02/07/2021,Fees (Including College Members),Business Improvement,Unspecified,98997254,320.00,Fees (Including College Members)
BEIS,UKRI - EPSRC,02/07/2021,Fees (Including College Members),Business Improvement,Unspecified,98997255,160.00,Fees (Including College Members)
BEIS,UKRI - EPSRC,02/07/2021,Fees (Including College Members),Business Improvement,Unspecified,98997256,160.00,Fees (Including College Members)
BEIS,UKRI - UKRI,02/07/2021,Consultancy Services,UKRI - Digital Data and Technology BAU Costs,JC Web Services Ltd,98997270,10800.00,Consultancy Services
BEIS,UKRI - UKRI,02/07/2021,Computer Software Licences,UKRI - Digital Data and Technology BAU Costs,Phoenix Software Ltd,98997275,311.16,Computer Software Licences
BEIS,UKRI - UKRI,02/07/2021,Consumables,UKRI - JRS,Antalis Ltd t/a Antalis Document Supplies,98997347,350.14,Consumables
BEIS,UKRI - UKRI,02/07/2021,Unspecified,"UKRI People, Policies and Management",Unspecified,98997383,6240.00,Legal & Professional Services
BEIS,UKRI - UKRI,02/07/2021,Staff Training,UKRI - Information Governance,PDP Conferences,98997394,474.00,Staff Training
BEIS,UKRI - UKRI,02/07/2021,Unspecified,"UKRI People, Policies and Management",Unspecified,98997432,3600.00,Legal & Professional Services
BEIS,UKRI - UKRI,02/07/2021,Unspecified,"UKRI People, Policies and Management",Unspecified,98997435,7140.00,Legal & Professional Services
BEIS,UKRI - UKRI,02/07/2021,Unspecified,"UKRI People, Policies and Management",Unspecified,98997437,5709.60,Legal & Professional Services
BEIS,UKRI - UKRI,02/07/2021,Computer Software Licences,UKRI - Digital Data and Technology Recharges,Softcat plc,98997482,4.25,Computer Software Licences
BEIS,UKRI - UKRI,02/07/2021,Computer Software Licences,UKRI - Digital Data and Technology Recharges,Softcat plc,98997486,4.25,Computer Software Licences
BEIS,UKRI - UKRI,02/07/2021,Computer Software Licences,UKRI - Digital Data and Technology Recharges,Softcat plc,98997487,4.25,Computer Software Licences
BEIS,UKRI - UKRI,02/07/2021,Rates,UKRI - Estates,City of London,98998027,18360.00,Rates
BEIS,UKRI - UKRI,02/07/2021,Rates,UKRI - Estates,City of London,98998029,18360.00,Rates
BEIS,UKRI - UKRI,02/07/2021,Rates,UKRI - JBOS,Swindon Borough Council,98998030,64000.00,Rates
BEIS,UKRI - UKRI,05/07/2021,Unspecified,UKRI - Digital Data and Technology BAU Costs,Softcat plc,98983602,25560.00,IT Cloud Services
BEIS,UKRI - UKRI,05/07/2021,Mechanical & Electrical Maintenance,UKRI - Estates,Zip Heaters (UK) Ltd,98990175,3683.04,Mechanical & Electrical Maintenance
BEIS,UKRI - UKRI,05/07/2021,Mechanical & Electrical Maintenance,UKRI - Estates,Zip Heaters (UK) Ltd,98991234,-3683.04,Mechanical & Electrical Maintenance
BEIS,UKRI - UKRI,05/07/2021,Unspecified,UKRI - Funding Assurance,The Office for Students,98992285,271080.80,Legal & Professional Services
BEIS,UKRI - UKRI,05/07/2021,Consumables,UKRI - JRS,Premier Paper Group Ltd,98992408,200.88,Consumables
BEIS,UKRI - UKRI,05/07/2021,Consumables,UKRI - JRS,Premier Paper Group Ltd,98992408,16.72,Consumables
BEIS,UKRI - UKRI,05/07/2021,Consumables,UKRI - JRS,Premier Paper Group Ltd,98992408,3.34,Consumables
BEIS,UKRI - UKRI,05/07/2021,Telecoms - Non Capital Hardware Costs,UKRI - Digital Data and Technology BAU Costs,Telefonica UK Ltd (O2),98994486,39.60,Telecoms - Non Capital Hardware Costs
BEIS,UKRI - UKRI,05/07/2021,Consumables,UKRI - JRS,Premier Paper Group Ltd,98996196,-200.88,Consumables
BEIS,UKRI - UKRI,05/07/2021,Consumables,UKRI - JRS,Premier Paper Group Ltd,98996196,-20.06,Consumables
BEIS,UKRI - UKRI,05/07/2021,Computer Software Licences,UKRI - Funding Service,Softcat plc,98996445,3896.93,Computer Software Licences
BEIS,UKRI - UKRI,05/07/2021,Cleaning & Sterilisation,UKRI - Estates,RS Components,98997472,33.31,Cleaning & Sterilisation
BEIS,UKRI - EPSRC,05/07/2021,Fees (Including College Members),Governance and Planning,Unspecified,98997490,160.00,Fees (Including College Members)
BEIS,UKRI - UKRI,05/07/2021,Printing & Stationery,UKRI - JBOS,Banner Group Ltd,98997607,20.28,Printing & Stationery
BEIS,UKRI - UKRI,05/07/2021,Printing & Stationery,UKRI - JBOS,Banner Group Ltd,98997608,74.88,Printing & Stationery
BEIS,UKRI - Research England,05/07/2021,Unspecified,RE - Operations and Private Office,Element Recruitment Ltd,98997682,1254.43,Agency Staff
BEIS,UKRI - Research England,05/07/2021,Unspecified,RE - Operations and Private Office,Element Recruitment Ltd,98997683,690.90,Agency Staff
BEIS,UKRI - Research England,05/07/2021,Unspecified,RE - Research Excellence Framework (REF),University College London,98997689,750.00,Council & Committee Honoraria
BEIS,UKRI - EPSRC,05/07/2021,Other Programme Costs,ARCHER 2,University of Edinburgh,98997749,476470.12,Other Programme Costs
BEIS,UKRI - UKRI,05/07/2021,Unspecified,UKRI-SHARP,Alexander Mann Solutions Ltd,98997765,2771.70,Contract Staff
BEIS,UKRI - UKRI,05/07/2021,Unspecified,UKRI - Financial Accounting,Alexander Mann Solutions Ltd,98997771,3695.58,Contract Staff
BEIS,UKRI - UKRI,05/07/2021,Unspecified,"UKRI People, Policies and Management",Alexander Mann Solutions Ltd,98997779,4189.85,Agency Staff
BEIS,UKRI - UKRI,05/07/2021,Unspecified,UKRI - Digital Data and Technology Project Costs,Scroll Ltd,98997994,114127.50,Legal & Professional Services
BEIS,UKRI - Research England,05/07/2021,Unspecified,RE - Research Excellence Framework (REF),University College London,98998069,450.00,Council & Committee Honoraria
BEIS,UKRI - UKRI,05/07/2021,Unspecified,UKRI - Communications Web and Intranet Service,Derek Holmes T/A Derek Holmes Media,98998093,512.50,Legal & Professional Services
BEIS,UKRI - UKRI,05/07/2021,Unspecified,UKRI - Digital Data and Technology BAU Costs,Alexander Mann Solutions Ltd,98998175,3465.30,Contract Staff
BEIS,UKRI - UKRI,05/07/2021,Unspecified,UKRI People and Organisation Development,Alexander Mann Solutions Ltd,98998177,2155.80,Contract Staff
BEIS,UKRI - UKRI,05/07/2021,Unspecified,UKRI - Strategic Finance Business Partners,Alexander Mann Solutions Ltd,98998179,2835.29,Contract Staff
BEIS,UKRI - UKRI,05/07/2021,Unspecified,UKRI - Digital Data and Technology Project Costs,Alexander Mann Solutions Ltd,98998784,3387.66,Contract Staff
BEIS,UKRI - UKRI,05/07/2021,Unspecified,"UKRI People, Policies and Management",Alexander Mann Solutions Ltd,98998790,1512.14,Contract Staff
BEIS,UKRI - UKRI,05/07/2021,Unspecified,UKRI - Strategic Finance Business Partners,Alexander Mann Solutions Ltd,98998791,1134.10,Agency Staff
BEIS,UKRI - UKRI,05/07/2021,Unspecified,"UKRI People, Policies and Management",Alexander Mann Solutions Ltd,98998793,7560.58,Contract Staff
BEIS,UKRI - UKRI,05/07/2021,UK - Professional Memberships & Subscriptions,UKRI Strategic HR Business Partners,Unspecified,98998814,98.00,UK - Professional Memberships & Subscriptions
BEIS,UKRI - UKRI,05/07/2021,T&S UK - Accommodation,UKRI - Procurement and Commercial,Unspecified,98998815,80.10,T&S UK - Accommodation
BEIS,UKRI - UKRI,05/07/2021,T&S UK - Mileage,UKRI - Procurement and Commercial,Unspecified,98998815,158.32,T&S UK - Mileage
BEIS,UKRI - UKRI,05/07/2021,T&S UK - Parking Tolls Congestion Charges,UKRI - Procurement and Commercial,Unspecified,98998815,12.80,T&S UK - Parking Tolls Congestion Charges
BEIS,UKRI - UKRI,05/07/2021,T&S UK - Subsistence,UKRI - Procurement and Commercial,Unspecified,98998815,7.50,T&S UK - Subsistence
BEIS,UKRI - UKRI,05/07/2021,T&S UK - Subsistence,UKRI - Procurement and Commercial,Unspecified,98998815,24.10,T&S UK - Subsistence
BEIS,UKRI - UKRI,05/07/2021,T&S UK - Other Charges,UKRI - Project Management Office,Unspecified,98998816,99.00,T&S UK - Other Charges
BEIS,UKRI - UKRI,05/07/2021,T&S UK - Other Charges,UKRI - Communication and Engagement,Unspecified,98998818,119.25,T&S UK - Other Charges
BEIS,UKRI - UKRI,05/07/2021,UK - Professional Memberships & Subscriptions,UKRI Strategic HR Business Partners,Unspecified,98998820,163.00,UK - Professional Memberships & Subscriptions
BEIS,UKRI - UKRI,05/07/2021,UK - Professional Memberships & Subscriptions,UKRI Strategic HR Business Partners,Unspecified,98998822,163.00,UK - Professional Memberships & Subscriptions
BEIS,UKRI - UKRI,06/07/2021,Staff Training,UKRI - Strategy,Common Purpose Ltd,98971682,1200.00,Staff Training
BEIS,UKRI - UKRI,06/07/2021,Unspecified,UKRI - Digital Data and Technology BAU Costs,Changepoint Canada ULC,98987563,3049.36,Legal & Professional Services
BEIS,UKRI - UKRI,06/07/2021,Unspecified,UKRI - GCRF Delivery,UKRI - Arts & Humanities Research Council,98993474,3295.25,Recharges From Councils - Salary
BEIS,UKRI - UKRI,06/07/2021,Unspecified,UKRI - GCRF Challenge Leaders,UKRI - Arts & Humanities Research Council,98993477,6107.76,Recharges From Councils - Salary
BEIS,UKRI - UKRI,06/07/2021,Unspecified,UKRI - GCRF Challenge Leaders,UKRI - Arts & Humanities Research Council,98993478,6805.64,Recharges From Councils - Salary
BEIS,UKRI - UKRI,06/07/2021,Unspecified,UKRI - GCRF Challenge Leaders,UKRI - Arts & Humanities Research Council,98993480,6836.07,Recharges From Councils - Salary
BEIS,UKRI - UKRI,06/07/2021,Recharges From Councils - Non-Salary,UKRI - GCRF Delivery,UKRI - Arts & Humanities Research Council,98993482,4947.30,Recharges From Councils - Non-Salary
BEIS,UKRI - UKRI,06/07/2021,Unspecified,UKRI - GCRF Delivery,UKRI - Arts & Humanities Research Council,98993482,19859.70,Recharges From Councils - Salary
BEIS,UKRI - UKRI,06/07/2021,Unspecified,UKRI - GCRF Delivery,UKRI - Arts & Humanities Research Council,98993483,4943.00,Recharges From Councils - Salary
BEIS,UKRI - UKRI,06/07/2021,Unspecified,UKRI - Digital Data and Technology BAU Costs,LA International Computer Consultants Ltd,98994095,3593.40,Contract Staff
BEIS,UKRI - EPSRC,06/07/2021,Research Grant Expenditure,Healthcare Healthcare,UKRI - Medical Research Council,98996202,336594.34,Research Grant Expenditure
BEIS,UKRI - EPSRC,06/07/2021,Research Grant Expenditure,NC ICT,UKRI - Medical Research Council,98996204,56598.09,Research Grant Expenditure
BEIS,UKRI - UKRI,06/07/2021,Unspecified,UKRI - GCRF Delivery,UKRI - Natural Environment Research Council,98996273,6279.53,Recharges From Councils - Salary
BEIS,UKRI - UKRI,06/07/2021,Unspecified,UKRI - GCRF Delivery,UKRI - Natural Environment Research Council,98996274,10414.42,Recharges From Councils - Salary
BEIS,UKRI - UKRI,06/07/2021,Unspecified,UKRI - GCRF Delivery,UKRI - Natural Environment Research Council,98996275,12179.30,Recharges From Councils - Salary
BEIS,UKRI - UKRI,06/07/2021,Recruitment Costs,UKRI People and Organisation Development,Onefix Recruitment Ltd,98996566,55.50,Recruitment Costs
BEIS,UKRI - UKRI,06/07/2021,Recruitment Costs,UKRI People and Organisation Development,Onefix Recruitment Ltd,98996567,33.30,Recruitment Costs
BEIS,UKRI - UKRI,06/07/2021,Recruitment Costs,UKRI People and Organisation Development,Onefix Recruitment Ltd,98996569,1290.00,Recruitment Costs
BEIS,UKRI - UKRI,06/07/2021,Recruitment Costs,UKRI People and Organisation Development,Onefix Recruitment Ltd,98996570,205.50,Recruitment Costs
BEIS,UKRI - UKRI,06/07/2021,Recruitment Costs,UKRI People and Organisation Development,Onefix Recruitment Ltd,98996571,263.41,Recruitment Costs
BEIS,UKRI - UKRI,06/07/2021,Recruitment Costs,UKRI People and Organisation Development,Onefix Recruitment Ltd,98996572,360.00,Recruitment Costs
BEIS,UKRI - Research England,06/07/2021,Unspecified,RE - Research Excellence Framework (REF),University of Southampton,98996811,750.00,Council & Committee Honoraria
BEIS,UKRI - UKRI,06/07/2021,General Building Maintenance,UKRI - Estates Projects,Interior Design And Developments,98997167,11728.80,General Building Maintenance
BEIS,UKRI - UKRI,06/07/2021,Rates,UKRI - Estates,Stamford Street Tenant Ltd T/A Weework,98998082,57754.80,Rates
BEIS,UKRI - UKRI,06/07/2021,Advertising & Promotion,UKRI - Communications Content,Tightype (trading division of 3x3 Project GmbH),98998085,6041.89,Advertising & Promotion
BEIS,UKRI - UKRI,06/07/2021,Unspecified,UKRI - Funding Service,Alexander Mann Solutions Ltd,98998234,2786.62,Contract Staff
BEIS,UKRI - EPSRC,06/07/2021,Fees (Including College Members),Programme Delivery Physical Sciences,Unspecified,98998235,160.00,Fees (Including College Members)
BEIS,UKRI - EPSRC,06/07/2021,Fees (Including College Members),Programme Delivery Physical Sciences,Unspecified,98998236,160.00,Fees (Including College Members)
BEIS,UKRI - EPSRC,06/07/2021,Fees (Including College Members),Programme Delivery Physical Sciences,Unspecified,98998237,160.00,Fees (Including College Members)
BEIS,UKRI - EPSRC,06/07/2021,Fees (Including College Members),Business Improvement,Unspecified,98998238,160.00,Fees (Including College Members)
BEIS,UKRI - EPSRC,06/07/2021,Fees (Including College Members),Programme Delivery Energy,Unspecified,98998239,80.00,Fees (Including College Members)
BEIS,UKRI - EPSRC,06/07/2021,Fees (Including College Members),Programme Delivery Physical Sciences,Unspecified,98998240,160.00,Fees (Including College Members)
BEIS,UKRI - EPSRC,06/07/2021,Fees (Including College Members),Programme Delivery Energy,Unspecified,98998241,80.00,Fees (Including College Members)
BEIS,UKRI - EPSRC,06/07/2021,Fees (Including College Members),SPF - NICER OpEx,Unspecified,98998242,80.00,Fees (Including College Members)
BEIS,UKRI - EPSRC,06/07/2021,Fees (Including College Members),Programme Delivery Physical Sciences,Unspecified,98998243,160.00,Fees (Including College Members)
BEIS,UKRI - EPSRC,06/07/2021,Fees (Including College Members),Business Improvement,Unspecified,98998244,80.00,Fees (Including College Members)
BEIS,UKRI - EPSRC,06/07/2021,Fees (Including College Members),Business Improvement,Unspecified,98998245,320.00,Fees (Including College Members)
BEIS,UKRI - EPSRC,06/07/2021,Fees (Including College Members),Business Improvement,Unspecified,98998246,320.00,Fees (Including College Members)
BEIS,UKRI - EPSRC,06/07/2021,Fees (Including College Members),Business Improvement,Unspecified,98998247,320.00,Fees (Including College Members)
BEIS,UKRI - EPSRC,06/07/2021,Fees (Including College Members),Business Improvement,Unspecified,98998248,320.00,Fees (Including College Members)
BEIS,UKRI - EPSRC,06/07/2021,Fees (Including College Members),Business Improvement,Unspecified,98998249,320.00,Fees (Including College Members)
BEIS,UKRI - EPSRC,06/07/2021,Fees (Including College Members),Business Improvement,Unspecified,98998250,320.00,Fees (Including College Members)
BEIS,UKRI - EPSRC,06/07/2021,Fees (Including College Members),Business Improvement,Unspecified,98998251,320.00,Fees (Including College Members)
BEIS,UKRI - EPSRC,06/07/2021,Fees (Including College Members),Business Improvement,Unspecified,98998252,80.00,Fees (Including College Members)
BEIS,UKRI - EPSRC,06/07/2021,Fees (Including College Members),Programme Delivery Energy,Unspecified,98998253,80.00,Fees (Including College Members)
BEIS,UKRI - UKRI,06/07/2021,Unspecified,UKRI - Estates,Jones Lang LaSalle Ltd,98998305,18600.00,Legal & Professional Services
BEIS,UKRI - UKRI,06/07/2021,Unspecified,UKRI - Estates,Jones Lang LaSalle Ltd,98998305,35400.00,Legal & Professional Services
BEIS,UKRI - UKRI,06/07/2021,Unspecified,UKRI - Digital Data and Technology BAU Costs,LA International Computer Consultants Ltd,98998314,3593.40,Contract Staff
BEIS,UKRI - UKRI,06/07/2021,Consumables,UKRI - JRS,Antalis Ltd t/a Antalis Document Supplies,98998413,378.00,Consumables
BEIS,UKRI - UKRI,06/07/2021,Unspecified,UKRI - Strategy,Technopolis Ltd,98998454,219870.00,Legal & Professional Services
BEIS,UKRI - UKRI,06/07/2021,Recruitment Costs,UKRI People and Organisation Development,Onefix Recruitment Ltd,98998841,744.00,Recruitment Costs
BEIS,UKRI - EPSRC,06/07/2021,Fees (Including College Members),Business Improvement,Unspecified,98998853,319.60,Fees (Including College Members)
BEIS,UKRI - EPSRC,06/07/2021,Fees (Including College Members),Business Improvement,Unspecified,98998854,319.60,Fees (Including College Members)
BEIS,UKRI - UKRI,06/07/2021,Computer Software Licences,UKRI - Digital Data and Technology BAU Costs,SCREENREACH INTERACTIVE LTD,98999066,576.00,Computer Software Licences
BEIS,UKRI - UKRI,06/07/2021,Advertising & Promotion,UKRI - Communications Content,Sure Languages Ltd,98999798,143.33,Advertising & Promotion
BEIS,UKRI - UKRI,06/07/2021,T&S UK - Other Charges,UKRI - Information Governance,Unspecified,98999872,72.00,T&S UK - Other Charges
BEIS,UKRI - UKRI,06/07/2021,T&S UK - Mileage,UKRI - Strategic Finance Business Partners,Unspecified,98999873,41.58,T&S UK - Mileage
BEIS,UKRI - UKRI,06/07/2021,T&S UK - Parking Tolls Congestion Charges,UKRI - Strategic Finance Business Partners,Unspecified,98999873,6.40,T&S UK - Parking Tolls Congestion Charges
BEIS,UKRI - UKRI,07/07/2021,Health & Safety (inc. Medicals & Opticians),UKRI Strategic HR Business Partners,Swindon Occupational Medical Services Ltd,98960398,1050.00,Health & Safety (inc. Medicals & Opticians)
BEIS,UKRI - UKRI,07/07/2021,Unspecified,UKRI - Information Governance,Alexander Mann Solutions Ltd,98986778,2268.22,Agency Staff
BEIS,UKRI - UKRI,07/07/2021,Unspecified,UKRI - Information Governance,Alexander Mann Solutions Ltd,98989632,2646.25,Agency Staff
BEIS,UKRI - UKRI,07/07/2021,Unspecified,UKRI - Information Governance,Alexander Mann Solutions Ltd,98993395,3780.36,Agency Staff
BEIS,UKRI - UKRI,07/07/2021,T&S UK - Other Charges,UKRI - Procurement and Commercial,Unspecified,98994169,29.99,T&S UK - Other Charges
BEIS,UKRI - UKRI,07/07/2021,UK - Professional Memberships & Subscriptions,UKRI - Procurement and Commercial,Unspecified,98994169,206.00,UK - Professional Memberships & Subscriptions
BEIS,UKRI - UKRI,07/07/2021,Education Fees & Study Materials,UKRI - Strategic Finance Business Partners,Unspecified,98996105,467.00,Education Fees & Study Materials
BEIS,UKRI - UKRI,07/07/2021,UK - Professional Memberships & Subscriptions,UKRI - Strategic Finance Business Partners,Unspecified,98996105,132.00,UK - Professional Memberships & Subscriptions
BEIS,UKRI - UKRI,07/07/2021,Computer Software Licences,UKRI - Digital Data and Technology BAU Costs,Softcat plc,98996437,78232.76,Computer Software Licences
BEIS,UKRI - UKRI,07/07/2021,Unspecified,UKRI - Information Governance,Alexander Mann Solutions Ltd,98998254,3780.36,Agency Staff
BEIS,UKRI - UKRI,07/07/2021,Consumables,UKRI - JRS,Premier Paper Group Ltd,98998424,154.14,Consumables
BEIS,UKRI - UKRI,07/07/2021,Consumables,UKRI - JRS,Premier Paper Group Ltd,98998424,43.19,Consumables
BEIS,UKRI - UKRI,07/07/2021,Consumables,UKRI - JRS,Premier Paper Group Ltd,98998425,88.92,Consumables
BEIS,UKRI - UKRI,07/07/2021,Recruitment Costs,UKRI People and Organisation Development,Agenda Resource Management Ltd,98998494,1033.63,Recruitment Costs
BEIS,UKRI - UKRI,07/07/2021,Recruitment Costs,UKRI People and Organisation Development,Agenda Resource Management Ltd,98998497,153.91,Recruitment Costs
BEIS,UKRI - UKRI,07/07/2021,Corporate Events,UKRI - Communications Projects and Services,Galaxy Real Estate Limited,98998631,10.99,Corporate Events
BEIS,UKRI - UKRI,07/07/2021,Corporate Events,UKRI - Communications Projects and Services,Galaxy Real Estate Limited,98998633,825.00,Corporate Events
BEIS,UKRI - UKRI,07/07/2021,Design services,UKRI - JRS,Artejano Limited,98998768,90.00,Design services
BEIS,UKRI - UKRI,07/07/2021,Recruitment Costs,UKRI People and Organisation Development,Agenda Resource Management Ltd,98999815,210.02,Recruitment Costs
BEIS,UKRI - UKRI,07/07/2021,Recruitment Costs,UKRI People and Organisation Development,Agenda Resource Management Ltd,98999816,461.72,Recruitment Costs
BEIS,UKRI - UKRI,07/07/2021,Recruitment Costs,UKRI People and Organisation Development,Agenda Resource Management Ltd,98999819,153.91,Recruitment Costs
BEIS,UKRI - UKRI,07/07/2021,Recruitment Costs,UKRI People and Organisation Development,Agenda Resource Management Ltd,98999820,153.91,Recruitment Costs
BEIS,UKRI - UKRI,07/07/2021,Recruitment Costs,UKRI People and Organisation Development,Agenda Resource Management Ltd,98999829,153.91,Recruitment Costs
BEIS,UKRI - UKRI,07/07/2021,Recruitment Costs,UKRI People and Organisation Development,Agenda Resource Management Ltd,98999846,1953.91,Recruitment Costs
BEIS,UKRI - EPSRC,07/07/2021,Fees (Including College Members),Programme Delivery Energy,Unspecified,98999874,80.00,Fees (Including College Members)
BEIS,UKRI - EPSRC,07/07/2021,Fees (Including College Members),Business Improvement,Unspecified,98999875,320.00,Fees (Including College Members)
BEIS,UKRI - UKRI,07/07/2021,Consumables,UKRI - JRS,Antalis Ltd t/a Antalis Document Supplies,99000110,28.60,Consumables
BEIS,UKRI - UKRI,07/07/2021,Consumables,UKRI - JRS,Antalis Ltd t/a Antalis Document Supplies,99000110,110.62,Consumables
BEIS,UKRI - UKRI,07/07/2021,Design services,UKRI - JRS,Winwood Haines Ltd,99000128,930.00,Design services
BEIS,UKRI - UKRI,07/07/2021,Hardware/Software Maintenance,UKRI - JRS,Kodak Ltd,99000130,1644.12,Hardware/Software Maintenance
BEIS,UKRI - UKRI,07/07/2021,Health & Safety (inc. Medicals & Opticians),UKRI Strategic HR Business Partners,Swindon Occupational Medical Services Ltd,99000804,175.00,Health & Safety (inc. Medicals & Opticians)
BEIS,UKRI - UKRI,07/07/2021,Postage & Courier Services,UKRI - JBOS,CitySprint (UK) Ltd,99000815,507.82,Postage & Courier Services
BEIS,UKRI - UKRI,07/07/2021,Consumables,UKRI - JRS,Premier Paper Group Ltd,99000818,25.40,Consumables
BEIS,UKRI - UKRI,07/07/2021,Consumables,UKRI - JRS,Premier Paper Group Ltd,99000822,38.11,Consumables
BEIS,UKRI - EPSRC,07/07/2021,Other Programme Costs,NC Physical Sciences,The University of Manchester,99000825,149305.92,Other Programme Costs
BEIS,UKRI - Research England,07/07/2021,Unspecified,RE - Research Excellence Framework (REF),University of Strathclyde,99000829,750.00,Council & Committee Honoraria
BEIS,UKRI - UKRI,07/07/2021,Unspecified,UKRI - Funding Service,Nexer Digital Ltd,99000841,64800.00,Legal & Professional Services
BEIS,UKRI - UKRI,07/07/2021,Advertising & Promotion,UKRI - Communications Content,Robot Dinosaur Productions Ltd,99000847,3000.00,Advertising & Promotion
BEIS,UKRI - UKRI,07/07/2021,T&S UK - Other Charges,UKRI - Governance,Unspecified,99000922,40.00,T&S UK - Other Charges
BEIS,UKRI - UKRI,07/07/2021,UK - Professional Memberships & Subscriptions,UKRI - Governance,Unspecified,99000922,371.89,UK - Professional Memberships & Subscriptions
BEIS,UKRI - UKRI,07/07/2021,T&S UK - Mileage,UKRI Strategic HR Business Partners,Unspecified,99000924,10.80,T&S UK - Mileage
BEIS,UKRI - UKRI,07/07/2021,UK - Professional Memberships & Subscriptions,UKRI Strategic HR Business Partners,Unspecified,99000925,216.00,UK - Professional Memberships & Subscriptions
BEIS,UKRI - UKRI,07/07/2021,T&S UK - Other Charges,UKRI - Strategic Finance Business Partners,Unspecified,99000927,191.84,T&S UK - Other Charges
BEIS,UKRI - UKRI,07/07/2021,T&S UK - Public Transport,UKRI - Estates,Unspecified,99000928,12.30,T&S UK - Public Transport
BEIS,UKRI - UKRI,07/07/2021,T&S UK - Subsistence,UKRI - Estates,Unspecified,99000928,12.14,T&S UK - Subsistence
BEIS,UKRI - UKRI,07/07/2021,T&S UK - Other Charges,UKRI - Strategic Finance Business Partners,Unspecified,99000930,112.00,T&S UK - Other Charges
BEIS,UKRI - UKRI,07/07/2021,T&S UK - Public Transport,UKRI - Strategic Finance Business Partners,Unspecified,99000930,38.35,T&S UK - Public Transport
BEIS,UKRI - UKRI,07/07/2021,T&S UK - Other Charges,UKRI - Communications Strategy and Planning,Unspecified,99000931,5.99,T&S UK - Other Charges
BEIS,UKRI - UKRI,07/07/2021,T&S UK - Other Charges,"Corporate Strategy, Governance and Performance",Unspecified,99000932,301.49,T&S UK - Other Charges
BEIS,UKRI - UKRI,07/07/2021,T&S UK - Mileage,UKRI - Corporate Services,Unspecified,99000933,79.40,T&S UK - Mileage
BEIS,UKRI - UKRI,07/07/2021,T&S UK - Other Charges,"UKRI People, Policies and Management",Unspecified,99000934,54.00,T&S UK - Other Charges
BEIS,UKRI - UKRI,07/07/2021,T&S UK - Mileage,UKRI People and Organisation Development,Unspecified,99000935,105.12,T&S UK - Mileage
BEIS,UKRI - UKRI,07/07/2021,UK - Professional Memberships & Subscriptions,UKRI People and Organisation Development,Unspecified,99000935,98.00,UK - Professional Memberships & Subscriptions
BEIS,UKRI - UKRI,08/07/2021,Computer Software Licences,UKRI - Digital Data and Technology BAU Costs,Phoenix Software Ltd,98968459,30.89,Computer Software Licences
BEIS,UKRI - UKRI,08/07/2021,Conferences & Seminars,UKRI - Digital Data and Technology BAU Costs,The Saville Group Ltd,98970330,1398.00,Conferences & Seminars
BEIS,UKRI - UKRI,08/07/2021,Unspecified,"UKRI People, Policies and Management",Alexander Mann Solutions Ltd,98971688,3000.00,Agency Staff
BEIS,UKRI - UKRI,08/07/2021,Unspecified,UKRI - Funding Service,Alexander Mann Solutions Ltd,98986762,1890.18,Contract Staff
BEIS,UKRI - UKRI,08/07/2021,Unspecified,UKRI - Digital Data and Technology BAU Costs,Alexander Mann Solutions Ltd,98986765,1663.02,Contract Staff
BEIS,UKRI - UKRI,08/07/2021,Hardware/Software Maintenance,UKRI - Digital Data and Technology Recharges,Dell Corporation Ltd,98988893,5308.80,Hardware/Software Maintenance
BEIS,UKRI - UKRI,08/07/2021,Hardware/Software Maintenance,UKRI - Digital Data and Technology Recharges,Dell Corporation Ltd,98988895,2461.99,Hardware/Software Maintenance
BEIS,UKRI - UKRI,08/07/2021,Unspecified,UKRI - Digital Data and Technology BAU Costs,Alexander Mann Solutions Ltd,98989637,2771.70,Contract Staff
BEIS,UKRI - UKRI,08/07/2021,Unspecified,UKRI - Funding Service,Alexander Mann Solutions Ltd,98990574,3150.30,Contract Staff
BEIS,UKRI - UKRI,08/07/2021,Unspecified,"UKRI People, Policies and Management",Alexander Mann Solutions Ltd,98990575,2700.00,Agency Staff
BEIS,UKRI - UKRI,08/07/2021,Unspecified,UKRI - Funding Service,Alexander Mann Solutions Ltd,98993378,3150.30,Contract Staff
BEIS,UKRI - UKRI,08/07/2021,Unspecified,UKRI - Digital Data and Technology BAU Costs,Alexander Mann Solutions Ltd,98993401,2771.70,Contract Staff
BEIS,UKRI - Research England,08/07/2021,Recruitment Costs,RE - Research Excellence Framework (REF),Element Recruitment Ltd,98993431,488.66,Recruitment Costs
BEIS,UKRI - UKRI,08/07/2021,Unspecified,"UKRI People, Policies and Management",Alexander Mann Solutions Ltd,98994057,3000.00,Agency Staff
BEIS,UKRI - Research England,08/07/2021,Recruitment Costs,RE - Research Excellence Framework (REF),Element Recruitment Ltd,98995549,832.96,Recruitment Costs
BEIS,UKRI - UKRI,08/07/2021,External Audit Fees,UKRI - Strategic Finance Business Partners,Broadey & Baumgardt Ltd t/a Essential VAT Services,98996559,2538.00,External Audit Fees
BEIS,UKRI - UKRI,08/07/2021,Advertising & Promotion,UKRI - Communications Content,Unspecified,98997718,2700.00,Advertising & Promotion
BEIS,UKRI - UKRI,08/07/2021,Unspecified,UKRI - Digital Data and Technology Project Costs,Alexander Mann Solutions Ltd,98997769,2205.18,Contract Staff
BEIS,UKRI - UKRI,08/07/2021,Unspecified,UKRI - Digital Data and Technology BAU Costs,Alexander Mann Solutions Ltd,98997773,7016.69,Contract Staff
BEIS,UKRI - UKRI,08/07/2021,Unspecified,UKRI - Funding Service,Alexander Mann Solutions Ltd,98997774,4003.56,Contract Staff
BEIS,UKRI - UKRI,08/07/2021,Unspecified,UKRI - Funding Service,Alexander Mann Solutions Ltd,98997776,3150.30,Contract Staff
BEIS,UKRI - UKRI,08/07/2021,Unspecified,UKRI - Funding Service,Alexander Mann Solutions Ltd,98997780,3937.86,Contract Staff
BEIS,UKRI - Research England,08/07/2021,Recruitment Costs,RE - Research Excellence Framework (REF),Element Recruitment Ltd,98998056,832.96,Recruitment Costs
BEIS,UKRI - Research England,08/07/2021,Recruitment Costs,RE - Research Excellence Framework (REF),Element Recruitment Ltd,98998058,166.60,Recruitment Costs
BEIS,UKRI - UKRI,08/07/2021,Unspecified,UKRI - Digital Data and Technology Project Costs,Alexander Mann Solutions Ltd,98998167,4003.56,Contract Staff
BEIS,UKRI - UKRI,08/07/2021,Unspecified,UKRI - Funding Service,Alexander Mann Solutions Ltd,98998169,4619.52,Contract Staff
BEIS,UKRI - UKRI,08/07/2021,Unspecified,UKRI - Digital Data and Technology Project Costs,Alexander Mann Solutions Ltd,98998171,2771.70,Contract Staff
BEIS,UKRI - UKRI,08/07/2021,Unspecified,UKRI - Funding Service,Alexander Mann Solutions Ltd,98998172,4139.04,Contract Staff
BEIS,UKRI - UKRI,08/07/2021,Unspecified,UKRI - Digital Data and Technology Project Costs,Alexander Mann Solutions Ltd,98998173,4003.56,Contract Staff
BEIS,UKRI - UKRI,08/07/2021,Unspecified,"UKRI People, Policies and Management",Alexander Mann Solutions Ltd,98998178,3000.00,Agency Staff
BEIS,UKRI - UKRI,08/07/2021,Unspecified,UKRI - Digital Data and Technology BAU Costs,Alexander Mann Solutions Ltd,98998181,4095.36,Contract Staff
BEIS,UKRI - UKRI,08/07/2021,Unspecified,UKRI - Digital Data and Technology Project Costs,Alexander Mann Solutions Ltd,98998182,4095.36,Contract Staff
BEIS,UKRI - UKRI,08/07/2021,Unspecified,UKRI-SHARP,Alexander Mann Solutions Ltd,98998255,4095.36,Contract Staff
BEIS,UKRI - Research England,08/07/2021,Unspecified,RE - Research Excellence Framework (REF),University of Leeds,98998427,750.00,Council & Committee Honoraria
BEIS,UKRI - UKRI,08/07/2021,Unspecified,UKRI - Digital Data and Technology Project Costs,Talend Ltd,98998444,1728.00,Legal & Professional Services
BEIS,UKRI - UKRI,08/07/2021,Unspecified,UKRI - Digital Data and Technology Project Costs,Talend Ltd,98998447,21542.40,Legal & Professional Services
BEIS,UKRI - UKRI,08/07/2021,Other Staff Benefits,UKRI - Digital Data and Technology BAU Costs,EDENRED (UK GROUP) LTD,98998706,2680.00,Other Staff Benefits
BEIS,UKRI - UKRI,08/07/2021,Unspecified,UKRI - Funding Service,Alexander Mann Solutions Ltd,98998782,3150.30,Contract Staff
BEIS,UKRI - UKRI,08/07/2021,Unspecified,UKRI - Digital Data and Technology Project Costs,Alexander Mann Solutions Ltd,98998785,3150.30,Contract Staff
BEIS,UKRI - UKRI,08/07/2021,Unspecified,UKRI - Digital Data and Technology BAU Costs,Alexander Mann Solutions Ltd,98998786,2771.70,Contract Staff
BEIS,UKRI - UKRI,08/07/2021,Unspecified,UKRI - Digital Data and Technology Project Costs,Alexander Mann Solutions Ltd,98998788,3159.76,Contract Staff
BEIS,UKRI - UKRI,08/07/2021,Unspecified,UKRI - Digital Data and Technology BAU Costs,Alexander Mann Solutions Ltd,98998794,3780.36,Contract Staff
BEIS,UKRI - UKRI,08/07/2021,Advertising & Promotion,UKRI - Communications Content,Douglas Walker & Brian Ross T/A STROMA Films,98999142,1831.20,Advertising & Promotion
BEIS,UKRI - UKRI,08/07/2021,Staff Training,UKRI - Risk and Counter Fraud,Internet Investigations Solutions Ltd,99000079,1620.00,Staff Training
BEIS,UKRI - UKRI,08/07/2021,Catering Contracts,UKRI - Communications External Affairs,Brenda Grant and Peter Walker T/A Vista Events,99000203,4567.84,Catering Contracts
BEIS,UKRI - UKRI,08/07/2021,Health & Safety (inc. Medicals & Opticians),"UKRI People, Policies and Management",Benenden Healthcare Society,99000234,1535.10,Health & Safety (inc. Medicals & Opticians)
BEIS,UKRI - UKRI,08/07/2021,Staff Training,"UKRI People, Policies and Management",ACAS,99000235,6420.00,Staff Training
BEIS,UKRI - UKRI,08/07/2021,Health & Safety (inc. Medicals & Opticians),"UKRI People, Policies and Management",Benenden Healthcare Society,99000237,12590.20,Health & Safety (inc. Medicals & Opticians)
BEIS,UKRI - UKRI,08/07/2021,Health & Safety (inc. Medicals & Opticians),"UKRI People, Policies and Management",Benenden Healthcare Society,99000238,1370.50,Health & Safety (inc. Medicals & Opticians)
BEIS,UKRI - UKRI,08/07/2021,Health & Safety (inc. Medicals & Opticians),"UKRI People, Policies and Management",Benenden Healthcare Society,99000239,2344.30,Health & Safety (inc. Medicals & Opticians)
BEIS,UKRI - UKRI,08/07/2021,Health & Safety (inc. Medicals & Opticians),"UKRI People, Policies and Management",Benenden Healthcare Society,99000240,999.60,Health & Safety (inc. Medicals & Opticians)
BEIS,UKRI - UKRI,08/07/2021,Health & Safety (inc. Medicals & Opticians),"UKRI People, Policies and Management",Benenden Healthcare Society,99000241,2772.70,Health & Safety (inc. Medicals & Opticians)
BEIS,UKRI - UKRI,08/07/2021,Health & Safety (inc. Medicals & Opticians),"UKRI People, Policies and Management",Benenden Healthcare Society,99000242,3046.40,Health & Safety (inc. Medicals & Opticians)
BEIS,UKRI - UKRI,08/07/2021,Health & Safety (inc. Medicals & Opticians),"UKRI People, Policies and Management",Benenden Healthcare Society,99000246,1404.20,Health & Safety (inc. Medicals & Opticians)
BEIS,UKRI - UKRI,08/07/2021,Corporate Events,UKRI - Communications Projects and Services,GLASGOWS LTD,99000250,3450.00,Corporate Events
BEIS,UKRI - UKRI,08/07/2021,Building Rents,UKRI - Estates,Government Property Agency,99000312,275.46,Building Rents
BEIS,UKRI - Research England,08/07/2021,Unspecified,RE - Research Excellence Framework (REF),The University of Manchester,99000331,7590.00,Council & Committee Honoraria
BEIS,UKRI - UKRI,08/07/2021,Unspecified,UKRI - Overseas Office USA,"Foreign, Commonwealth and Development Office",99000342,2830.93,Secondments
BEIS,UKRI - UKRI,08/07/2021,Unspecified,UKRI - Overseas Office USA,"Foreign, Commonwealth and Development Office",99000364,1965.04,Secondments
BEIS,UKRI - UKRI,08/07/2021,IT / Computing Support Services,UKRI - Digital Data and Technology BAU Costs,AMAZON WEB SERVICES INC,99000365,3619.10,IT / Computing Support Services
BEIS,UKRI - UKRI,08/07/2021,IT / Computing Support Services,UKRI - Digital Data and Technology BAU Costs,AMAZON WEB SERVICES INC,99000370,2134.57,IT / Computing Support Services
BEIS,UKRI - UKRI,08/07/2021,Unspecified,UKRI - Overseas Office USA,"Foreign, Commonwealth and Development Office",99000375,269.27,Secondments
BEIS,UKRI - UKRI,08/07/2021,Unspecified,UKRI - Overseas Office USA,"Foreign, Commonwealth and Development Office",99000378,233.96,Secondments
BEIS,UKRI - UKRI,08/07/2021,Meetings & Catering,UKRI - Human Resources Support,Baxter Storey Ltd,99000380,40.50,Meetings & Catering
BEIS,UKRI - UKRI,08/07/2021,Printing & Stationery,UKRI - JBOS,Banner Group Ltd,99000382,25.92,Printing & Stationery
BEIS,UKRI - UKRI,08/07/2021,Printing & Stationery,UKRI - JBOS,Banner Group Ltd,99000382,59.28,Printing & Stationery
BEIS,UKRI - UKRI,08/07/2021,Printing & Stationery,UKRI - JBOS,Banner Group Ltd,99000382,5.88,Printing & Stationery
BEIS,UKRI - UKRI,08/07/2021,Printing & Stationery,UKRI - JBOS,Banner Group Ltd,99000382,82.20,Printing & Stationery
BEIS,UKRI - UKRI,08/07/2021,Printing & Stationery,UKRI - JBOS,Banner Group Ltd,99000382,11.04,Printing & Stationery
BEIS,UKRI - UKRI,08/07/2021,Printing & Stationery,UKRI - JBOS,Banner Group Ltd,99000382,9.42,Printing & Stationery
BEIS,UKRI - UKRI,08/07/2021,Printing & Stationery,UKRI - JBOS,Banner Group Ltd,99000382,253.80,Printing & Stationery
BEIS,UKRI - UKRI,08/07/2021,Printing & Stationery,UKRI - JBOS,Banner Group Ltd,99000382,58.32,Printing & Stationery
BEIS,UKRI - UKRI,08/07/2021,Printing & Stationery,UKRI - JBOS,Banner Group Ltd,99000382,58.32,Printing & Stationery
BEIS,UKRI - UKRI,08/07/2021,Printing & Stationery,UKRI - JBOS,Banner Group Ltd,99000382,58.32,Printing & Stationery
BEIS,UKRI - UKRI,08/07/2021,Printing & Stationery,UKRI - JBOS,Banner Group Ltd,99000382,76.08,Printing & Stationery
BEIS,UKRI - UKRI,08/07/2021,Printing & Stationery,UKRI - JBOS,Banner Group Ltd,99000382,30.00,Printing & Stationery
BEIS,UKRI - UKRI,08/07/2021,Printing & Stationery,UKRI - JBOS,Banner Group Ltd,99000382,117.36,Printing & Stationery
BEIS,UKRI - UKRI,08/07/2021,Printing & Stationery,UKRI - JBOS,Banner Group Ltd,99000382,48.36,Printing & Stationery
BEIS,UKRI - UKRI,08/07/2021,Printing & Stationery,UKRI - JBOS,Banner Group Ltd,99000382,21.72,Printing & Stationery
BEIS,UKRI - UKRI,08/07/2021,Printing & Stationery,UKRI - JBOS,Banner Group Ltd,99000382,3.96,Printing & Stationery
BEIS,UKRI - UKRI,08/07/2021,Printing & Stationery,UKRI - JBOS,Banner Group Ltd,99000382,42.17,Printing & Stationery
BEIS,UKRI - UKRI,08/07/2021,Printing & Stationery,UKRI - JBOS,Banner Group Ltd,99000382,148.32,Printing & Stationery
BEIS,UKRI - UKRI,08/07/2021,Printing & Stationery,UKRI - JBOS,Banner Group Ltd,99000382,55.80,Printing & Stationery
BEIS,UKRI - UKRI,08/07/2021,Printing & Stationery,UKRI - JBOS,Banner Group Ltd,99000382,23.28,Printing & Stationery
BEIS,UKRI - UKRI,08/07/2021,Printing & Stationery,UKRI - JBOS,Banner Group Ltd,99000382,90.34,Printing & Stationery
BEIS,UKRI - UKRI,08/07/2021,Printing & Stationery,UKRI - JBOS,Banner Group Ltd,99000382,9.90,Printing & Stationery
BEIS,UKRI - UKRI,08/07/2021,Printing & Stationery,UKRI - JBOS,Banner Group Ltd,99000382,20.16,Printing & Stationery
BEIS,UKRI - UKRI,08/07/2021,Printing & Stationery,UKRI - JBOS,Banner Group Ltd,99000382,26.64,Printing & Stationery
BEIS,UKRI - UKRI,08/07/2021,Printing & Stationery,UKRI - JBOS,Banner Group Ltd,99000382,26.64,Printing & Stationery
BEIS,UKRI - UKRI,08/07/2021,Printing & Stationery,UKRI - JBOS,Banner Group Ltd,99000382,393.95,Printing & Stationery
BEIS,UKRI - UKRI,08/07/2021,Printing & Stationery,UKRI - JBOS,Banner Group Ltd,99000382,3.35,Printing & Stationery
BEIS,UKRI - UKRI,08/07/2021,Printing & Stationery,UKRI - JBOS,Banner Group Ltd,99000382,4.80,Printing & Stationery
BEIS,UKRI - UKRI,08/07/2021,Printing & Stationery,UKRI - JBOS,Banner Group Ltd,99000382,18.00,Printing & Stationery
BEIS,UKRI - UKRI,08/07/2021,Printing & Stationery,UKRI - JBOS,Banner Group Ltd,99000382,360.00,Printing & Stationery
BEIS,UKRI - UKRI,08/07/2021,Printing & Stationery,UKRI - JBOS,Banner Group Ltd,99000382,34.80,Printing & Stationery
BEIS,UKRI - UKRI,08/07/2021,Printing & Stationery,UKRI - JBOS,Banner Group Ltd,99000382,17.86,Printing & Stationery
BEIS,UKRI - UKRI,08/07/2021,Printing & Stationery,UKRI - JBOS,Banner Group Ltd,99000382,17.86,Printing & Stationery
BEIS,UKRI - UKRI,08/07/2021,Printing & Stationery,UKRI - JBOS,Banner Group Ltd,99000382,0.66,Printing & Stationery
BEIS,UKRI - UKRI,08/07/2021,Printing & Stationery,UKRI - JBOS,Banner Group Ltd,99000382,54.94,Printing & Stationery
BEIS,UKRI - UKRI,08/07/2021,Printing & Stationery,UKRI - JBOS,Banner Group Ltd,99000382,28.08,Printing & Stationery
BEIS,UKRI - UKRI,08/07/2021,Printing & Stationery,UKRI - JBOS,Banner Group Ltd,99000382,12.00,Printing & Stationery
BEIS,UKRI - UKRI,08/07/2021,Printing & Stationery,UKRI - JBOS,Banner Group Ltd,99000382,12.00,Printing & Stationery
BEIS,UKRI - UKRI,08/07/2021,Printing & Stationery,UKRI - JBOS,Banner Group Ltd,99000382,12.00,Printing & Stationery
BEIS,UKRI - UKRI,08/07/2021,Printing & Stationery,UKRI - JBOS,Banner Group Ltd,99000382,12.00,Printing & Stationery
BEIS,UKRI - UKRI,08/07/2021,Printing & Stationery,UKRI - JBOS,Banner Group Ltd,99000382,19.20,Printing & Stationery
BEIS,UKRI - UKRI,08/07/2021,Printing & Stationery,UKRI - JBOS,Banner Group Ltd,99000382,23.40,Printing & Stationery
BEIS,UKRI - UKRI,08/07/2021,Printing & Stationery,UKRI - JBOS,Banner Group Ltd,99000382,3.60,Printing & Stationery
BEIS,UKRI - UKRI,08/07/2021,Printing & Stationery,UKRI - JBOS,Banner Group Ltd,99000382,51.66,Printing & Stationery
BEIS,UKRI - UKRI,08/07/2021,Printing & Stationery,UKRI - JBOS,Banner Group Ltd,99000382,9.36,Printing & Stationery
BEIS,UKRI - UKRI,08/07/2021,Printing & Stationery,UKRI - JBOS,Banner Group Ltd,99000382,23.40,Printing & Stationery
BEIS,UKRI - UKRI,08/07/2021,Printing & Stationery,UKRI - JBOS,Banner Group Ltd,99000382,17.68,Printing & Stationery
BEIS,UKRI - UKRI,08/07/2021,Printing & Stationery,UKRI - JBOS,Banner Group Ltd,99000382,5.52,Printing & Stationery
BEIS,UKRI - UKRI,08/07/2021,Printing & Stationery,UKRI - JBOS,Banner Group Ltd,99000382,276.15,Printing & Stationery
BEIS,UKRI - UKRI,08/07/2021,Printing & Stationery,UKRI - JBOS,Banner Group Ltd,99000382,32.35,Printing & Stationery
BEIS,UKRI - UKRI,08/07/2021,Printing & Stationery,UKRI - JBOS,Banner Group Ltd,99000382,84.60,Printing & Stationery
BEIS,UKRI - UKRI,08/07/2021,Printing & Stationery,UKRI - JBOS,Banner Group Ltd,99000382,258.12,Printing & Stationery
BEIS,UKRI - UKRI,08/07/2021,Printing & Stationery,UKRI - JBOS,Banner Group Ltd,99000382,199.68,Printing & Stationery
BEIS,UKRI - UKRI,08/07/2021,Printing & Stationery,UKRI - JBOS,Banner Group Ltd,99000382,6.12,Printing & Stationery
BEIS,UKRI - UKRI,08/07/2021,Printing & Stationery,UKRI - JBOS,Banner Group Ltd,99000382,9.24,Printing & Stationery
BEIS,UKRI - UKRI,08/07/2021,Printing & Stationery,UKRI - JBOS,Banner Group Ltd,99000382,24.23,Printing & Stationery
BEIS,UKRI - UKRI,08/07/2021,Unspecified,UKRI - Overseas Office India,"Foreign, Commonwealth and Development Office",99000383,350.47,Secondments
BEIS,UKRI - Research England,08/07/2021,Printing & Stationery,RE - Research Excellence Framework (REF),Banner Group Ltd,99000385,24.76,Printing & Stationery
BEIS,UKRI - UKRI,08/07/2021,Mobile Phone Costs,UKRI - Overseas Office India,"Foreign, Commonwealth and Development Office",99000387,88.39,Mobile Phone Costs
BEIS,UKRI - UKRI,08/07/2021,Unspecified,UKRI - Overseas Office India,"Foreign, Commonwealth and Development Office",99000387,5001.53,Secondments
BEIS,UKRI - UKRI,08/07/2021,Other Staff Benefits,UKRI - Overseas Office India,"Foreign, Commonwealth and Development Office",99000390,2224.94,Other Staff Benefits
BEIS,UKRI - Research England,08/07/2021,Printing & Stationery,RE - Research Excellence Framework (REF),Banner Group Ltd,99000392,9.48,Printing & Stationery
BEIS,UKRI - Research England,08/07/2021,Printing & Stationery,RE - Research Excellence Framework (REF),Banner Group Ltd,99000392,163.87,Printing & Stationery
BEIS,UKRI - Research England,08/07/2021,Printing & Stationery,RE - Research Excellence Framework (REF),Banner Group Ltd,99000392,9.16,Printing & Stationery
BEIS,UKRI - Research England,08/07/2021,Printing & Stationery,RE - Research Excellence Framework (REF),Banner Group Ltd,99000392,6.92,Printing & Stationery
BEIS,UKRI - UKRI,08/07/2021,Printing & Stationery,UKRI - JRS,Gemini Print Southern Ltd,99000408,1254.00,Printing & Stationery
BEIS,UKRI - UKRI,08/07/2021,Catering Contracts,UKRI - Procurement and Commercial,Baxter Storey Ltd,99000418,432.00,Catering Contracts
BEIS,UKRI - UKRI,08/07/2021,Recruitment Costs,UKRI People and Organisation Development,Onefix Recruitment Ltd,99000419,234.00,Recruitment Costs
BEIS,UKRI - Research England,08/07/2021,Unspecified,RE - Research Excellence Framework (REF),Muya Research Management Ltd,99000442,6175.00,Council & Committee Honoraria
BEIS,UKRI - Research England,08/07/2021,Non-staff travel and subsistance,RE - Research Excellence Framework (REF),Muya Research Management Ltd,99000443,19.50,Non-staff travel and subsistance
BEIS,UKRI - UKRI,08/07/2021,Consumables,UKRI - JRS,Ricoh Uk Ltd,99000450,765.12,Consumables
BEIS,UKRI - UKRI,08/07/2021,Consumables,UKRI - JRS,Ricoh Uk Ltd,99000450,765.12,Consumables
BEIS,UKRI - EPSRC,08/07/2021,Unspecified,ARCHER 2 - Programme Delivery,Unspecified,99000456,5118.02,Legal & Professional Services
BEIS,UKRI - UKRI,08/07/2021,IT / Computing Support Services,UKRI - Digital Data and Technology BAU Costs,MAYTECH COMMUNICATIONS LTD,99000460,1109.40,IT / Computing Support Services
BEIS,UKRI - UKRI,08/07/2021,Photocopy Costs,UKRI - JRS,Canon (UK) Ltd,99000477,453.04,Photocopy Costs
BEIS,UKRI - UKRI,08/07/2021,Computer Software Licences,UKRI - Digital Data and Technology BAU Costs,DATABARRACKS LTD,99000529,1200.00,Computer Software Licences
BEIS,UKRI - UKRI,08/07/2021,Computer Software Licences,UKRI - Digital Data and Technology BAU Costs,DATABARRACKS LTD,99000530,11700.00,Computer Software Licences
BEIS,UKRI - EPSRC,08/07/2021,Fees (Including College Members),Programme Delivery Physical Sciences,Unspecified,99000963,160.00,Fees (Including College Members)
BEIS,UKRI - EPSRC,08/07/2021,Fees (Including College Members),Programme Delivery Physical Sciences,Unspecified,99000964,160.00,Fees (Including College Members)
BEIS,UKRI - EPSRC,08/07/2021,Fees (Including College Members),Business Improvement,Unspecified,99000965,320.00,Fees (Including College Members)
BEIS,UKRI - UKRI,08/07/2021,Books Professional Journals & Guides,UKRI - Digital Data and Technology Library Services,Geological Society of Norfolk,99001430,90.00,Books Professional Journals & Guides
BEIS,UKRI - Research England,08/07/2021,Unspecified,RE - Research Excellence Framework (REF),University of Edinburgh,99001431,716.55,Council & Committee Honoraria
BEIS,UKRI - UKRI,08/07/2021,Mobile Phone Costs,UKRI - Overseas Office China,"Foreign, Commonwealth and Development Office",99001463,59.50,Mobile Phone Costs
BEIS,UKRI - UKRI,08/07/2021,Other Staff Benefits,UKRI - Overseas Office India,"Foreign, Commonwealth and Development Office",99001463,966.97,Other Staff Benefits
BEIS,UKRI - UKRI,08/07/2021,Unspecified,UKRI - Overseas Office China,"Foreign, Commonwealth and Development Office",99001463,34189.19,Secondments
BEIS,UKRI - UKRI,08/07/2021,T&S Overseas - Public Transport,UKRI - Overseas Office China,"Foreign, Commonwealth and Development Office",99001463,449.80,T&S Overseas - Public Transport
BEIS,UKRI - UKRI,08/07/2021,Building Rents,UKRI - Estates,Government Property Agency,99001479,2038.66,Building Rents
BEIS,UKRI - UKRI,08/07/2021,Health & Safety (inc. Medicals & Opticians),UKRI - Communication and Engagement,Unspecified,99001625,100.00,Health & Safety (inc. Medicals & Opticians)
BEIS,UKRI - UKRI,08/07/2021,T&S UK - Other Charges,UKRI - Communication and Engagement,Unspecified,99001625,155.98,T&S UK - Other Charges
BEIS,UKRI - EPSRC,08/07/2021,T&S UK - Other Charges,EPSRC Corporate Services,Unspecified,99001626,7.99,T&S UK - Other Charges
BEIS,UKRI - UKRI,08/07/2021,T&S UK - Other Charges,UKRI - Risk and Counter Fraud,Unspecified,99001627,8.10,T&S UK - Other Charges
BEIS,UKRI - UKRI,08/07/2021,T&S UK - Parking Tolls Congestion Charges,UKRI - Risk and Counter Fraud,Unspecified,99001627,17.00,T&S UK - Parking Tolls Congestion Charges
BEIS,UKRI - UKRI,08/07/2021,T&S UK - Subsistence,UKRI - Risk and Counter Fraud,Unspecified,99001627,3.10,T&S UK - Subsistence
BEIS,UKRI - UKRI,08/07/2021,T&S UK - Mileage,UKRI - Strategic Finance Business Partners,Unspecified,99001628,19.36,T&S UK - Mileage
BEIS,UKRI - UKRI,09/07/2021,Computer Software Licences,UKRI - JBOS,MRI Software EMEA Ltd,98967445,2864.92,Computer Software Licences
BEIS,UKRI - UKRI,09/07/2021,Telecoms - Non Capital Hardware Costs,UKRI - Digital Data and Technology BAU Costs,Telefonica UK Ltd (O2),98968812,394.80,Telecoms - Non Capital Hardware Costs
BEIS,UKRI - UKRI,09/07/2021,Telecoms - Non Capital Hardware Costs,UKRI - Digital Data and Technology BAU Costs,Telefonica UK Ltd (O2),98968814,394.80,Telecoms - Non Capital Hardware Costs
BEIS,UKRI - UKRI,09/07/2021,Telecoms - Non Capital Hardware Costs,UKRI - Digital Data and Technology BAU Costs,Telefonica UK Ltd (O2),98968816,394.80,Telecoms - Non Capital Hardware Costs
BEIS,UKRI - UKRI,09/07/2021,Telecoms - Non Capital Hardware Costs,UKRI - Digital Data and Technology BAU Costs,Telefonica UK Ltd (O2),98968817,394.80,Telecoms - Non Capital Hardware Costs
